Workbook

Sheet RESUMEN
A1: MINISTERIO DE SALUD
A2: SERVICIO DE SALUD COQUIMBO
A3: DEPARTAMENTO DE GESTIÓN, PLANIFICACIÓN Y CONTROL
A4: SUBDEPTO. DE ESTADÍSTICAS Y GESTIÓN DE LA INFORMACIÓN
A5: AÑO 2022
B6: INDICADOR 2.3: Porcentaje de cumplimiento de la programación de horas de consultas nuevas, tratamientos y procedimientos imagenológicos realizados por profesionales Cirujanos Dentista.
B12: HOSPITAL | C12: NUMERADOR | G12: DENOMINADOR | I12: INDICADOR
C14: Consultas nuevas, tratamientos y procedimientos imagenológicos de Especialidades Odontológicas, realizados por profesional Cirujano Dentista en el período | G14: Total de consultas nuevas, tratamientos y procedimientos imagenológicos de Especialidades Odontológicas, programados por profesional Cirujano Dentista en el período
C15: ACTIVIDADES DE ATENCIÓN EN ESPECIALIDADES ODONTOLÓGICAS | D15: ACTIVIDADES DE IMAGENOLOGÍA ORAL Y MAXILOFACIAL | E15: CONSULTAS, INGRESOS Y EGRESOS EN ESPECIALIDADES ODONTOLÓGICAS | F15: TOTAL
B18: HOSPITAL LA SERENA | C18: =HLS!$Q$66 -> 47143 | D18: =HLS!$Q$79 -> 3782 | E18: =HLS!$Q$83+HLS!$Q$169+HLS!$Q$170+HLS!$Q$171+HLS!$Q$172+HLS!$Q$174 -> 33073 | F18: =SUM(C18:E19) -> 83998 | I18: =F18/G18 -> 
B20: HOSPITAL COQUIMBO | C20: =HCQ!Q68 -> 31538 | D20: =HCQ!Q81 -> 6055 | E20: =HCQ!Q85+HCQ!Q171+HCQ!Q172+HCQ!Q173+HCQ!Q174+HCQ!Q176 -> 22854 | F20: =SUM(C20:E21) -> 60447 | I20: =F20/G20 -> 
B22: HOSPITAL OVALLE | C22: =HOV!Q68 -> 15646 | D22: =HLS!Q79 -> 3782 | E22: =HOV!Q85+HOV!Q171+HOV!Q172+HOV!Q173+HOV!Q174+HOV!Q176 -> 19138 | F22: =SUM(C22:E23) -> 38566 | I22: =F22/G22 -> 
B24: HOSPITAL ILLAPEL | C24: =HILL!Q68 -> 11492 | D24: =HILL!Q81 -> 1959 | E24: =HILL!Q85+HILL!Q171+HILL!Q172+HILL!Q173+HILL!Q174+HILL!Q176 -> 14710 | F24: =SUM(C24:E25) -> 28161 | I24: =F24/G24 -> 
B26: TOTAL | C26: =SUM(C18:C25) -> 105819 | D26: =SUM(D18:D25) -> 15578 | E26: =SUM(E18:E25) -> 89775 | F26: =SUM(F18:F25) -> 211172 | G26: =SUM(G18:H25) -> 0 | I26: =F26/G26 -> 
B29: Fuente: REM A09, Sección I

Sheet Consolidado
A1: MINISTERIO DE SALUD
A2: SERVICIO DE SALUD COQUIMBO
A3: DEPARTAMENTO DE GESTIÓN, PLANIFICACIÓN Y CONTROL
A4: SUBDEPTO. DE ESTADÍSTICAS Y GESTIÓN DE LA INFORMACIÓN
A5: AÑO 2022
C8: INDICADOR 2.3: Porcentaje de cumplimiento de la programación de horas de consultas nuevas, tratamientos y procedimientos imagenológicos realizados por profesionales Cirujanos Dentista.
D13: ACTIVIDADES DE ESPECIALIDADES | F13: Enero | G13: Febrero | H13: Marzo | I13: Abril | J13: Mayo | K13: Junio | L13: Julio | M13: Agosto | N13: Septiembre | O13: Octubre | P13: Noviembre | Q13: Diciembre | R13: Total
B14: 09204935 | D14: EXAMEN Y DIAGNÓSTICO DE ESPECIALIDAD | F14: =HLS!E12+HCQ!E14+HOV!E14+HILL!E14 -> 2238 | G14: =HLS!F12+HCQ!F14+HOV!F14+HILL!F14 -> 1308 | H14: =HLS!G12+HCQ!G14+HOV!G14+HILL!G14 -> 2444 | I14: =HLS!H12+HCQ!H14+HOV!H14+HILL!H14 -> 2196 | J14: =HLS!I12+HCQ!I14+HOV!I14+HILL!I14 -> 2231 | K14: =HLS!J12+HCQ!J14+HOV!J14+HILL!J14 -> 2069 | L14: =HLS!K12+HCQ!K14+HOV!K14+HILL!K14 -> 1961 | M14: =HLS!L12+HCQ!L14+HOV!L14+HILL!L14 -> 2282 | R14: =SUM(F14:Q14) -> 16729
B15: 09600110 | D15: EDUCACIÓN EN SALUD BUCAL | F15: =HLS!E13+HCQ!E15+HOV!E15+HILL!E15 -> 767 | G15: =HLS!F13+HCQ!F15+HOV!F15+HILL!F15 -> 330 | H15: =HLS!G13+HCQ!G15+HOV!G15+HILL!G15 -> 928 | I15: =HLS!H13+HCQ!H15+HOV!H15+HILL!H15 -> 800 | J15: =HLS!I13+HCQ!I15+HOV!I15+HILL!I15 -> 893 | K15: =HLS!J13+HCQ!J15+HOV!J15+HILL!J15 -> 695 | L15: =HLS!K13+HCQ!K15+HOV!K15+HILL!K15 -> 731 | M15: =HLS!L13+HCQ!L15+HOV!L15+HILL!L15 -> 992 | R15: =SUM(F15:Q15) -> 6136
B16: 09600111 | D16: RESPUESTA A INTERCONSULTA PERSONAS HOSPITALIZADOS | F16: =HLS!E14+HCQ!E16+HOV!E16+HILL!E16 -> 74 | G16: =HLS!F14+HCQ!F16+HOV!F16+HILL!F16 -> 48 | H16: =HLS!G14+HCQ!G16+HOV!G16+HILL!G16 -> 103 | I16: =HLS!H14+HCQ!H16+HOV!H16+HILL!H16 -> 52 | J16: =HLS!I14+HCQ!I16+HOV!I16+HILL!I16 -> 65 | K16: =HLS!J14+HCQ!J16+HOV!J16+HILL!J16 -> 45 | L16: =HLS!K14+HCQ!K16+HOV!K16+HILL!K16 -> 55 | M16: =HLS!L14+HCQ!L16+HOV!L16+HILL!L16 -> 81 | R16: 523
B17: 09600112 | D17: VISITA A SALA | F17: =HLS!E15+HCQ!E17+HOV!E17+HILL!E17 -> 46 | G17: =HLS!F15+HCQ!F17+HOV!F17+HILL!F17 -> 31 | H17: =HLS!G15+HCQ!G17+HOV!G17+HILL!G17 -> 58 | I17: =HLS!H15+HCQ!H17+HOV!H17+HILL!H17 -> 35 | J17: =HLS!I15+HCQ!I17+HOV!I17+HILL!I17 -> 66 | K17: =HLS!J15+HCQ!J17+HOV!J17+HILL!J17 -> 42 | L17: =HLS!K15+HCQ!K17+HOV!K17+HILL!K17 -> 45 | M17: =HLS!L15+HCQ!L17+HOV!L17+HILL!L17 -> 61 | R17: 384
B18: 09600113 | D18: CONTRALORÍA CLÍNICA | F18: =HLS!E16+HCQ!E18+HOV!E18+HILL!E18 -> 105 | G18: =HLS!F16+HCQ!F18+HOV!F18+HILL!F18 -> 0 | H18: =HLS!G16+HCQ!G18+HOV!G18+HILL!G18 -> 44 | I18: =HLS!H16+HCQ!H18+HOV!H18+HILL!H18 -> 128 | J18: =HLS!I16+HCQ!I18+HOV!I18+HILL!I18 -> 121 | K18: =HLS!J16+HCQ!J18+HOV!J18+HILL!J18 -> 47 | L18: =HLS!K16+HCQ!K18+HOV!K18+HILL!K18 -> 86 | M18: =HLS!L16+HCQ!L18+HOV!L18+HILL!L18 -> 70 | R18: 601
B19: 09600114 | D19: CIRUGÍA TERCER MOLAR | F19: =HLS!E17+HCQ!E19+HOV!E19+HILL!E19 -> 182 | G19: =HLS!F17+HCQ!F19+HOV!F19+HILL!F19 -> 162 | H19: =HLS!G17+HCQ!G19+HOV!G19+HILL!G19 -> 211 | I19: =HLS!H17+HCQ!H19+HOV!H19+HILL!H19 -> 142 | J19: =HLS!I17+HCQ!I19+HOV!I19+HILL!I19 -> 185 | K19: =HLS!J17+HCQ!J19+HOV!J19+HILL!J19 -> 224 | L19: =HLS!K17+HCQ!K19+HOV!K19+HILL!K19 -> 199 | M19: =HLS!L17+HCQ!L19+HOV!L19+HILL!L19 -> 274 | R19: 1579
B20: 09600115 | D20: CIRUGÍA MENOR AMBULATORIA | F20: =HLS!E18+HCQ!E20+HOV!E20+HILL!E20 -> 171 | G20: =HLS!F18+HCQ!F20+HOV!F20+HILL!F20 -> 172 | H20: =HLS!G18+HCQ!G20+HOV!G20+HILL!G20 -> 233 | I20: =HLS!H18+HCQ!H20+HOV!H20+HILL!H20 -> 291 | J20: =HLS!I18+HCQ!I20+HOV!I20+HILL!I20 -> 242 | K20: =HLS!J18+HCQ!J20+HOV!J20+HILL!J20 -> 165 | L20: =HLS!K18+HCQ!K20+HOV!K20+HILL!K20 -> 176 | M20: =HLS!L18+HCQ!L20+HOV!L20+HILL!L20 -> 416 | R20: 1866
B21: 09600116 | D21: CIRUGÍA MAYOR AMBULATORIA | F21: =HLS!E19+HCQ!E21+HOV!E21+HILL!E21 -> 38 | G21: =HLS!F19+HCQ!F21+HOV!F21+HILL!F21 -> 32 | H21: =HLS!G19+HCQ!G21+HOV!G21+HILL!G21 -> 22 | I21: =HLS!H19+HCQ!H21+HOV!H21+HILL!H21 -> 90 | J21: =HLS!I19+HCQ!I21+HOV!I21+HILL!I21 -> 45 | K21: =HLS!J19+HCQ!J21+HOV!J21+HILL!J21 -> 47 | L21: =HLS!K19+HCQ!K21+HOV!K21+HILL!K21 -> 37 | M21: =HLS!L19+HCQ!L21+HOV!L21+HILL!L21 -> 43 | R21: 354
B22: 09203813 | D22: TRATAMIENTO TRAUMATISMO DENTOALVEOLAR | F22: =HLS!E20+HCQ!E22+HOV!E22+HILL!E22 -> 7 | G22: =HLS!F20+HCQ!F22+HOV!F22+HILL!F22 -> 10 | H22: =HLS!G20+HCQ!G22+HOV!G22+HILL!G22 -> 20 | I22: =HLS!H20+HCQ!H22+HOV!H22+HILL!H22 -> 34 | J22: =HLS!I20+HCQ!I22+HOV!I22+HILL!I22 -> 37 | K22: =HLS!J20+HCQ!J22+HOV!J22+HILL!J22 -> 13 | L22: =HLS!K20+HCQ!K22+HOV!K22+HILL!K22 -> 13 | M22: =HLS!L20+HCQ!L22+HOV!L22+HILL!L22 -> 27 | R22: 161
B23: 09600117 | D23: OBTURACIÓN DIRECTA | F23: =HLS!E21+HCQ!E23+HOV!E23+HILL!E23 -> 220 | G23: =HLS!F21+HCQ!F23+HOV!F23+HILL!F23 -> 176 | H23: =HLS!G21+HCQ!G23+HOV!G23+HILL!G23 -> 309 | I23: =HLS!H21+HCQ!H23+HOV!H23+HILL!H23 -> 278 | J23: =HLS!I21+HCQ!I23+HOV!I23+HILL!I23 -> 436 | K23: =HLS!J21+HCQ!J23+HOV!J23+HILL!J23 -> 314 | L23: =HLS!K21+HCQ!K23+HOV!K23+HILL!K23 -> 311 | M23: =HLS!L21+HCQ!L23+HOV!L23+HILL!L23 -> 286 | R23: 2330
B24: 09600118 | D24: OBTURACIÓN INDIRECTA (INLAYS U ONLAYS) | F24: =HLS!E22+HCQ!E24+HOV!E24+HILL!E24 -> 3 | G24: =HLS!F22+HCQ!F24+HOV!F24+HILL!F24 -> 5 | H24: =HLS!G22+HCQ!G24+HOV!G24+HILL!G24 -> 22 | I24: =HLS!H22+HCQ!H24+HOV!H24+HILL!H24 -> 1 | J24: =HLS!I22+HCQ!I24+HOV!I24+HILL!I24 -> 2 | K24: =HLS!J22+HCQ!J24+HOV!J24+HILL!J24 -> 3 | L24: =HLS!K22+HCQ!K24+HOV!K24+HILL!K24 -> 0 | M24: =HLS!L22+HCQ!L24+HOV!L24+HILL!L24 -> 0 | R24: 36
B25: 09203213 | D25: INSTALACIÓN APARATO REMOVIBLE ORTODÓNCICO | F25: =HLS!E23+HCQ!E25+HOV!E25+HILL!E25 -> 37 | G25: =HLS!F23+HCQ!F25+HOV!F25+HILL!F25 -> 38 | H25: =HLS!G23+HCQ!G25+HOV!G25+HILL!G25 -> 29 | I25: =HLS!H23+HCQ!H25+HOV!H25+HILL!H25 -> 37 | J25: =HLS!I23+HCQ!I25+HOV!I25+HILL!I25 -> 39 | K25: =HLS!J23+HCQ!J25+HOV!J25+HILL!J25 -> 26 | L25: =HLS!K23+HCQ!K25+HOV!K25+HILL!K25 -> 27 | M25: =HLS!L23+HCQ!L25+HOV!L25+HILL!L25 -> 19 | R25: 252
B26: 09305700 | D26: INSTALACIÓN APARATO FIJO ORTODÓNCICO | F26: =HLS!E24+HCQ!E26+HOV!E26+HILL!E26 -> 96 | G26: =HLS!F24+HCQ!F26+HOV!F26+HILL!F26 -> 26 | H26: =HLS!G24+HCQ!G26+HOV!G26+HILL!G26 -> 125 | I26: =HLS!H24+HCQ!H26+HOV!H26+HILL!H26 -> 109 | J26: =HLS!I24+HCQ!I26+HOV!I26+HILL!I26 -> 128 | K26: =HLS!J24+HCQ!J26+HOV!J26+HILL!J26 -> 92 | L26: =HLS!K24+HCQ!K26+HOV!K26+HILL!K26 -> 72 | M26: =HLS!L24+HCQ!L26+HOV!L26+HILL!L26 -> 90 | R26: 738
B27: 09305800 | D27: INSTALACIÓN APARATO DE CONTENCIÓN ORTODÓNCICO | F27: =HLS!E25+HCQ!E27+HOV!E27+HILL!E27 -> 12 | G27: =HLS!F25+HCQ!F27+HOV!F27+HILL!F27 -> 20 | H27: =HLS!G25+HCQ!G27+HOV!G27+HILL!G27 -> 21 | I27: =HLS!H25+HCQ!H27+HOV!H27+HILL!H27 -> 26 | J27: =HLS!I25+HCQ!I27+HOV!I27+HILL!I27 -> 27 | K27: =HLS!J25+HCQ!J27+HOV!J27+HILL!J27 -> 46 | L27: =HLS!K25+HCQ!K27+HOV!K27+HILL!K27 -> 50 | M27: =HLS!L25+HCQ!L27+HOV!L27+HILL!L27 -> 40 | R27: 242
B28: 09600119 | D28: RETIRO APARATOLOGÍA DE ORTODONCIA | F28: =HLS!E26+HCQ!E28+HOV!E28+HILL!E28 -> 62 | G28: =HLS!F26+HCQ!F28+HOV!F28+HILL!F28 -> 27 | H28: =HLS!G26+HCQ!G28+HOV!G28+HILL!G28 -> 27 | I28: =HLS!H26+HCQ!H28+HOV!H28+HILL!H28 -> 26 | J28: =HLS!I26+HCQ!I28+HOV!I28+HILL!I28 -> 36 | K28: =HLS!J26+HCQ!J28+HOV!J28+HILL!J28 -> 36 | L28: =HLS!K26+HCQ!K28+HOV!K28+HILL!K28 -> 36 | M28: =HLS!L26+HCQ!L28+HOV!L28+HILL!L28 -> 47 | R28: 297
B29: 09600120 | D29: ORTOPEDIA PREQUIRÚRGICA | F29: =HLS!E27+HCQ!E29+HOV!E29+HILL!E29 -> 0 | G29: =HLS!F27+HCQ!F29+HOV!F29+HILL!F29 -> 0 | H29: =HLS!G27+HCQ!G29+HOV!G29+HILL!G29 -> 0 | I29: =HLS!H27+HCQ!H29+HOV!H29+HILL!H29 -> 2 | J29: =HLS!I27+HCQ!I29+HOV!I29+HILL!I29 -> 0 | K29: =HLS!J27+HCQ!J29+HOV!J29+HILL!J29 -> 0 | L29: =HLS!K27+HCQ!K29+HOV!K29+HILL!K29 -> 0 | M29: =HLS!L27+HCQ!L29+HOV!L29+HILL!L29 -> 0 | R29: 2
B30: 09600121 | D30: ORTODONCIA PREVENTIVA E INTERCEPTIVA (OPI) | F30: =HLS!E28+HCQ!E30+HOV!E30+HILL!E30 -> 133 | G30: =HLS!F28+HCQ!F30+HOV!F30+HILL!F30 -> 63 | H30: =HLS!G28+HCQ!G30+HOV!G30+HILL!G30 -> 153 | I30: =HLS!H28+HCQ!H30+HOV!H30+HILL!H30 -> 129 | J30: =HLS!I28+HCQ!I30+HOV!I30+HILL!I30 -> 167 | K30: =HLS!J28+HCQ!J30+HOV!J30+HILL!J30 -> 128 | L30: =HLS!K28+HCQ!K30+HOV!K30+HILL!K30 -> 32 | M30: =HLS!L28+HCQ!L30+HOV!L30+HILL!L30 -> 85 | R30: 890
B31: 09202725 | D31: TRATAMIENTO ENDODONCIA UNIRRADICULAR | F31: =HLS!E29+HCQ!E31+HOV!E31+HILL!E31 -> 62 | G31: =HLS!F29+HCQ!F31+HOV!F31+HILL!F31 -> 39 | H31: =HLS!G29+HCQ!G31+HOV!G31+HILL!G31 -> 74 | I31: =HLS!H29+HCQ!H31+HOV!H31+HILL!H31 -> 70 | J31: =HLS!I29+HCQ!I31+HOV!I31+HILL!I31 -> 81 | K31: =HLS!J29+HCQ!J31+HOV!J31+HILL!J31 -> 71 | L31: =HLS!K29+HCQ!K31+HOV!K31+HILL!K31 -> 85 | M31: =HLS!L29+HCQ!L31+HOV!L31+HILL!L31 -> 100 | R31: 582
B32: 09202735 | D32: TRATAMIENTO ENDODONCIA BIRRADICULAR | F32: =HLS!E30+HCQ!E32+HOV!E32+HILL!E32 -> 96 | G32: =HLS!F30+HCQ!F32+HOV!F32+HILL!F32 -> 28 | H32: =HLS!G30+HCQ!G32+HOV!G32+HILL!G32 -> 102 | I32: =HLS!H30+HCQ!H32+HOV!H32+HILL!H32 -> 76 | J32: =HLS!I30+HCQ!I32+HOV!I32+HILL!I32 -> 70 | K32: =HLS!J30+HCQ!J32+HOV!J32+HILL!J32 -> 76 | L32: =HLS!K30+HCQ!K32+HOV!K32+HILL!K32 -> 65 | M32: =HLS!L30+HCQ!L32+HOV!L32+HILL!L32 -> 82 | R32: 595
B33: 09202745 | D33: TRATAMIENTO ENDODONCIA MULTIRRADICULAR | F33: =HLS!E31+HCQ!E33+HOV!E33+HILL!E33 -> 127 | G33: =HLS!F31+HCQ!F33+HOV!F33+HILL!F33 -> 42 | H33: =HLS!G31+HCQ!G33+HOV!G33+HILL!G33 -> 140 | I33: =HLS!H31+HCQ!H33+HOV!H33+HILL!H33 -> 121 | J33: =HLS!I31+HCQ!I33+HOV!I33+HILL!I33 -> 149 | K33: =HLS!J31+HCQ!J33+HOV!J33+HILL!J33 -> 99 | L33: =HLS!K31+HCQ!K33+HOV!K33+HILL!K33 -> 100 | M33: =HLS!L31+HCQ!L33+HOV!L33+HILL!L33 -> 156 | R33: 934
B34: 09600122 | D34: INDUCCIÓN AL CIERRE APICAL | F34: =HLS!E32+HCQ!E34+HOV!E34+HILL!E34 -> 1 | G34: =HLS!F32+HCQ!F34+HOV!F34+HILL!F34 -> 3 | H34: =HLS!G32+HCQ!G34+HOV!G34+HILL!G34 -> 2 | I34: =HLS!H32+HCQ!H34+HOV!H34+HILL!H34 -> 3 | J34: =HLS!I32+HCQ!I34+HOV!I34+HILL!I34 -> 1 | K34: =HLS!J32+HCQ!J34+HOV!J34+HILL!J34 -> 1 | L34: =HLS!K32+HCQ!K34+HOV!K34+HILL!K34 -> 2 | M34: =HLS!L32+HCQ!L34+HOV!L34+HILL!L34 -> 1 | R34: 14
B35: 09600123 | D35: RETRATAMIENTO DE ENDODONCIA | F35: =HLS!E33+HCQ!E35+HOV!E35+HILL!E35 -> 7 | G35: =HLS!F33+HCQ!F35+HOV!F35+HILL!F35 -> 4 | H35: =HLS!G33+HCQ!G35+HOV!G35+HILL!G35 -> 8 | I35: =HLS!H33+HCQ!H35+HOV!H35+HILL!H35 -> 10 | J35: =HLS!I33+HCQ!I35+HOV!I35+HILL!I35 -> 8 | K35: =HLS!J33+HCQ!J35+HOV!J35+HILL!J35 -> 8 | L35: =HLS!K33+HCQ!K35+HOV!K35+HILL!K35 -> 5 | M35: =HLS!L33+HCQ!L35+HOV!L35+HILL!L35 -> 6 | R35: 56
B36: 09600124 | D36: CIRUGÍA APICAL | F36: =HLS!E34+HCQ!E36+HOV!E36+HILL!E36 -> 1 | G36: =HLS!F34+HCQ!F36+HOV!F36+HILL!F36 -> 1 | H36: =HLS!G34+HCQ!G36+HOV!G36+HILL!G36 -> 1 | I36: =HLS!H34+HCQ!H36+HOV!H36+HILL!H36 -> 6 | J36: =HLS!I34+HCQ!I36+HOV!I36+HILL!I36 -> 5 | K36: =HLS!J34+HCQ!J36+HOV!J36+HILL!J36 -> 1 | L36: =HLS!K34+HCQ!K36+HOV!K36+HILL!K36 -> 1 | M36: =HLS!L34+HCQ!L36+HOV!L36+HILL!L36 -> 0 | R36: 16
B37: 09600125 | D37: ADAPTACIÓN A LA ATENCIÓN ODONTOLÓGICA | F37: =HLS!E35+HCQ!E37+HOV!E37+HILL!E37 -> 189 | G37: =HLS!F35+HCQ!F37+HOV!F37+HILL!F37 -> 145 | H37: =HLS!G35+HCQ!G37+HOV!G37+HILL!G37 -> 259 | I37: =HLS!H35+HCQ!H37+HOV!H37+HILL!H37 -> 197 | J37: =HLS!I35+HCQ!I37+HOV!I37+HILL!I37 -> 290 | K37: =HLS!J35+HCQ!J37+HOV!J37+HILL!J37 -> 194 | L37: =HLS!K35+HCQ!K37+HOV!K37+HILL!K37 -> 206 | M37: =HLS!L35+HCQ!L37+HOV!L37+HILL!L37 -> 183 | R37: 1663
B38: 09600126 | D38: PROCEDIMIENTO RESTAURADOR (ODONTOPEDIATRÍA) | F38: =HLS!E36+HCQ!E38+HOV!E38+HILL!E38 -> 130 | G38: =HLS!F36+HCQ!F38+HOV!F38+HILL!F38 -> 89 | H38: =HLS!G36+HCQ!G38+HOV!G38+HILL!G38 -> 153 | I38: =HLS!H36+HCQ!H38+HOV!H38+HILL!H38 -> 144 | J38: =HLS!I36+HCQ!I38+HOV!I38+HILL!I38 -> 160 | K38: =HLS!J36+HCQ!J38+HOV!J38+HILL!J38 -> 119 | L38: =HLS!K36+HCQ!K38+HOV!K38+HILL!K38 -> 110 | M38: =HLS!L36+HCQ!L38+HOV!L38+HILL!L38 -> 135 | R38: 1040
B39: 09600127 | D39: PROCEDIMIENTO PULPAR (ODONTOPEDIATRÍA) | F39: =HLS!E37+HCQ!E39+HOV!E39+HILL!E39 -> 33 | G39: =HLS!F37+HCQ!F39+HOV!F39+HILL!F39 -> 22 | H39: =HLS!G37+HCQ!G39+HOV!G39+HILL!G39 -> 43 | I39: =HLS!H37+HCQ!H39+HOV!H39+HILL!H39 -> 26 | J39: =HLS!I37+HCQ!I39+HOV!I39+HILL!I39 -> 49 | K39: =HLS!J37+HCQ!J39+HOV!J39+HILL!J39 -> 39 | L39: =HLS!K37+HCQ!K39+HOV!K39+HILL!K39 -> 28 | M39: =HLS!L37+HCQ!L39+HOV!L39+HILL!L39 -> 30 | R39: 270
B40: 09600128 | D40: CIRUGÍA AMBULATORIA (ODONTOPEDIATRÍA) | F40: =HLS!E38+HCQ!E40+HOV!E40+HILL!E40 -> 21 | G40: =HLS!F38+HCQ!F40+HOV!F40+HILL!F40 -> 14 | H40: =HLS!G38+HCQ!G40+HOV!G40+HILL!G40 -> 27 | I40: =HLS!H38+HCQ!H40+HOV!H40+HILL!H40 -> 27 | J40: =HLS!I38+HCQ!I40+HOV!I40+HILL!I40 -> 21 | K40: =HLS!J38+HCQ!J40+HOV!J40+HILL!J40 -> 17 | L40: =HLS!K38+HCQ!K40+HOV!K40+HILL!K40 -> 7 | M40: =HLS!L38+HCQ!L40+HOV!L40+HILL!L40 -> 43 | R40: 177
B41: 09305600 | D41: DESTARTRAJE SUBGINGIVAL O PULIDO RADICULAR | F41: =HLS!E39+HCQ!E41+HOV!E41+HILL!E41 -> 1413 | G41: =HLS!F39+HCQ!F41+HOV!F41+HILL!F41 -> 680 | H41: =HLS!G39+HCQ!G41+HOV!G41+HILL!G41 -> 1563 | I41: =HLS!H39+HCQ!H41+HOV!H41+HILL!H41 -> 940 | J41: =HLS!I39+HCQ!I41+HOV!I41+HILL!I41 -> 879 | K41: =HLS!J39+HCQ!J41+HOV!J41+HILL!J41 -> 1376 | L41: =HLS!K39+HCQ!K41+HOV!K41+HILL!K41 -> 888 | M41: =HLS!L39+HCQ!L41+HOV!L41+HILL!L41 -> 1535 | R41: 9274
B42: 09600129 | D42: DESTARTRAJE SUPRAGINGIVAL O PULIDO CORONARIO | F42: =HLS!E40+HCQ!E42+HOV!E42+HILL!E42 -> 452 | G42: =HLS!F40+HCQ!F42+HOV!F42+HILL!F42 -> 311 | H42: =HLS!G40+HCQ!G42+HOV!G42+HILL!G42 -> 725 | I42: =HLS!H40+HCQ!H42+HOV!H42+HILL!H42 -> 609 | J42: =HLS!I40+HCQ!I42+HOV!I42+HILL!I42 -> 254 | K42: =HLS!J40+HCQ!J42+HOV!J42+HILL!J42 -> 605 | L42: =HLS!K40+HCQ!K42+HOV!K42+HILL!K42 -> 465 | M42: =HLS!L40+HCQ!L42+HOV!L42+HILL!L42 -> 698 | R42: 4119
B43: 09600130 | D43: PROCEDIMIENTO QUIRÚRGICO (PERIODONCIA) | F43: =HLS!E41+HCQ!E43+HOV!E43+HILL!E43 -> 2 | G43: =HLS!F41+HCQ!F43+HOV!F43+HILL!F43 -> 0 | H43: =HLS!G41+HCQ!G43+HOV!G43+HILL!G43 -> 1 | I43: =HLS!H41+HCQ!H43+HOV!H43+HILL!H43 -> 5 | J43: =HLS!I41+HCQ!I43+HOV!I43+HILL!I43 -> 3 | K43: =HLS!J41+HCQ!J43+HOV!J43+HILL!J43 -> 11 | L43: =HLS!K41+HCQ!K43+HOV!K43+HILL!K43 -> 5 | M43: =HLS!L41+HCQ!L43+HOV!L43+HILL!L43 -> 3 | R43: 30
B44: 09600131 | D44: PROCEDIMIENTO QUIRÚRGICO PERIIMPLANTAR (PERIODONCIA) | F44: =HLS!E42+HCQ!E44+HOV!E44+HILL!E44 -> 0 | G44: =HLS!F42+HCQ!F44+HOV!F44+HILL!F44 -> 0 | H44: =HLS!G42+HCQ!G44+HOV!G44+HILL!G44 -> 0 | I44: =HLS!H42+HCQ!H44+HOV!H44+HILL!H44 -> 0 | J44: =HLS!I42+HCQ!I44+HOV!I44+HILL!I44 -> 1 | K44: =HLS!J42+HCQ!J44+HOV!J44+HILL!J44 -> 0 | L44: =HLS!K42+HCQ!K44+HOV!K44+HILL!K44 -> 0 | M44: =HLS!L42+HCQ!L44+HOV!L44+HILL!L44 -> 0 | R44: 1
B45: 09600132 | D45: FERULIZACIÓN | F45: =HLS!E43+HCQ!E45+HOV!E45+HILL!E45 -> 7 | G45: =HLS!F43+HCQ!F45+HOV!F45+HILL!F45 -> 4 | H45: =HLS!G43+HCQ!G45+HOV!G45+HILL!G45 -> 10 | I45: =HLS!H43+HCQ!H45+HOV!H45+HILL!H45 -> 7 | J45: =HLS!I43+HCQ!I45+HOV!I45+HILL!I45 -> 11 | K45: =HLS!J43+HCQ!J45+HOV!J45+HILL!J45 -> 4 | L45: =HLS!K43+HCQ!K45+HOV!K45+HILL!K45 -> 7 | M45: =HLS!L43+HCQ!L45+HOV!L45+HILL!L45 -> 4 | R45: 54
B46: 09203425 | D46: REHABILITACIÓN MEDIANTE PRÓTESIS REMOVIBLE ACRÍLICA PARCIAL O TOTAL | F46: =HLS!E44+HCQ!E46+HOV!E46+HILL!E46 -> 848 | G46: =HLS!F44+HCQ!F46+HOV!F46+HILL!F46 -> 607 | H46: =HLS!G44+HCQ!G46+HOV!G46+HILL!G46 -> 1093 | I46: =HLS!H44+HCQ!H46+HOV!H46+HILL!H46 -> 1048 | J46: =HLS!I44+HCQ!I46+HOV!I46+HILL!I46 -> 617 | K46: =HLS!J44+HCQ!J46+HOV!J46+HILL!J46 -> 733 | L46: =HLS!K44+HCQ!K46+HOV!K46+HILL!K46 -> 503 | M46: =HLS!L44+HCQ!L46+HOV!L46+HILL!L46 -> 839 | R46: 6288
B47: 09203435 | D47: REHABILITACIÓN MEDIANTE PRÓTESIS REMOVIBLE METÁLICA PARCIAL | F47: =HLS!E45+HCQ!E47+HOV!E47+HILL!E47 -> 0 | G47: =HLS!F45+HCQ!F47+HOV!F47+HILL!F47 -> 4 | H47: =HLS!G45+HCQ!G47+HOV!G47+HILL!G47 -> 2 | I47: =HLS!H45+HCQ!H47+HOV!H47+HILL!H47 -> 0 | J47: =HLS!I45+HCQ!I47+HOV!I47+HILL!I47 -> 11 | K47: =HLS!J45+HCQ!J47+HOV!J47+HILL!J47 -> 0 | L47: =HLS!K45+HCQ!K47+HOV!K47+HILL!K47 -> 1 | M47: =HLS!L45+HCQ!L47+HOV!L47+HILL!L47 -> 1 | R47: 19
B48: 09203313 | D48: REHABILITACIÓN MEDIANTE PRÓTESIS FIJA UNITARIA O PLURAL | F48: =HLS!E46+HCQ!E48+HOV!E48+HILL!E48 -> 0 | G48: =HLS!F46+HCQ!F48+HOV!F48+HILL!F48 -> 4 | H48: =HLS!G46+HCQ!G48+HOV!G48+HILL!G48 -> 6 | I48: =HLS!H46+HCQ!H48+HOV!H48+HILL!H48 -> 5 | J48: =HLS!I46+HCQ!I48+HOV!I48+HILL!I48 -> 7 | K48: =HLS!J46+HCQ!J48+HOV!J48+HILL!J48 -> 3 | L48: =HLS!K46+HCQ!K48+HOV!K48+HILL!K48 -> 5 | M48: =HLS!L46+HCQ!L48+HOV!L48+HILL!L48 -> 9 | R48: 39
B49: 09600133 | D49: REHABILITACIÓN MEDIANTE PRÓTESIS FIJA IMPLANTOASISTIDA | F49: =HLS!E47+HCQ!E49+HOV!E49+HILL!E49 -> 13 | G49: =HLS!F47+HCQ!F49+HOV!F49+HILL!F49 -> 10 | H49: =HLS!G47+HCQ!G49+HOV!G49+HILL!G49 -> 48 | I49: =HLS!H47+HCQ!H49+HOV!H49+HILL!H49 -> 83 | J49: =HLS!I47+HCQ!I49+HOV!I49+HILL!I49 -> 9 | K49: =HLS!J47+HCQ!J49+HOV!J49+HILL!J49 -> 47 | L49: =HLS!K47+HCQ!K49+HOV!K49+HILL!K49 -> 27 | M49: =HLS!L47+HCQ!L49+HOV!L49+HILL!L49 -> 37 | R49: 274
B50: 09600134 | D50: REHABILITACIÓN MEDIANTE PRÓTESIS MUCO- IMPLANTOASISTIDA | F50: =HLS!E48+HCQ!E50+HOV!E50+HILL!E50 -> 18 | G50: =HLS!F48+HCQ!F50+HOV!F50+HILL!F50 -> 7 | H50: =HLS!G48+HCQ!G50+HOV!G50+HILL!G50 -> 41 | I50: =HLS!H48+HCQ!H50+HOV!H50+HILL!H50 -> 31 | J50: =HLS!I48+HCQ!I50+HOV!I50+HILL!I50 -> 2 | K50: =HLS!J48+HCQ!J50+HOV!J50+HILL!J50 -> 21 | L50: =HLS!K48+HCQ!K50+HOV!K50+HILL!K50 -> 26 | M50: =HLS!L48+HCQ!L50+HOV!L50+HILL!L50 -> 21 | R50: 167
B51: 09306000 | D51: REPARACIÓN DE PRÓTESIS | F51: =HLS!E49+HCQ!E51+HOV!E51+HILL!E51 -> 204 | G51: =HLS!F49+HCQ!F51+HOV!F51+HILL!F51 -> 124 | H51: =HLS!G49+HCQ!G51+HOV!G51+HILL!G51 -> 188 | I51: =HLS!H49+HCQ!H51+HOV!H51+HILL!H51 -> 248 | J51: =HLS!I49+HCQ!I51+HOV!I51+HILL!I51 -> 279 | K51: =HLS!J49+HCQ!J51+HOV!J51+HILL!J51 -> 194 | L51: =HLS!K49+HCQ!K51+HOV!K51+HILL!K51 -> 145 | M51: =HLS!L49+HCQ!L51+HOV!L51+HILL!L51 -> 245 | R51: 1627
B52: 09600135 | D52: IMPLANTOLOGÍA QUIRÚRGICA | F52: =HLS!E50+HCQ!E52+HOV!E52+HILL!E52 -> 11 | G52: =HLS!F50+HCQ!F52+HOV!F52+HILL!F52 -> 4 | H52: =HLS!G50+HCQ!G52+HOV!G52+HILL!G52 -> 4 | I52: =HLS!H50+HCQ!H52+HOV!H52+HILL!H52 -> 2 | J52: =HLS!I50+HCQ!I52+HOV!I52+HILL!I52 -> 8 | K52: =HLS!J50+HCQ!J52+HOV!J52+HILL!J52 -> 15 | L52: =HLS!K50+HCQ!K52+HOV!K52+HILL!K52 -> 12 | M52: =HLS!L50+HCQ!L52+HOV!L52+HILL!L52 -> 26 | R52: 82
B53: 09600137 | D53: TOMA DE BIOPSIA | F53: =HLS!E51+HCQ!E53+HOV!E53+HILL!E53 -> 7 | G53: =HLS!F51+HCQ!F53+HOV!F53+HILL!F53 -> 2 | H53: =HLS!G51+HCQ!G53+HOV!G53+HILL!G53 -> 8 | I53: =HLS!H51+HCQ!H53+HOV!H53+HILL!H53 -> 11 | J53: =HLS!I51+HCQ!I53+HOV!I53+HILL!I53 -> 9 | K53: =HLS!J51+HCQ!J53+HOV!J53+HILL!J53 -> 4 | L53: =HLS!K51+HCQ!K53+HOV!K53+HILL!K53 -> 1 | M53: =HLS!L51+HCQ!L53+HOV!L53+HILL!L53 -> 12 | R53: 54
B54: 09600138 | D54: ESTUDIO HISTOPATOLÓGICO | F54: =HLS!E52+HCQ!E54+HOV!E54+HILL!E54 -> 6 | G54: =HLS!F52+HCQ!F54+HOV!F54+HILL!F54 -> 6 | H54: =HLS!G52+HCQ!G54+HOV!G54+HILL!G54 -> 4 | I54: =HLS!H52+HCQ!H54+HOV!H54+HILL!H54 -> 12 | J54: =HLS!I52+HCQ!I54+HOV!I54+HILL!I54 -> 14 | K54: =HLS!J52+HCQ!J54+HOV!J54+HILL!J54 -> 6 | L54: =HLS!K52+HCQ!K54+HOV!K54+HILL!K54 -> 6 | M54: =HLS!L52+HCQ!L54+HOV!L54+HILL!L54 -> 8 | R54: 62
B55: 09600139 | D55: SIALOMETRÍA | F55: =HLS!E53+HCQ!E55+HOV!E55+HILL!E55 -> 0 | G55: =HLS!F53+HCQ!F55+HOV!F55+HILL!F55 -> 0 | H55: =HLS!G53+HCQ!G55+HOV!G55+HILL!G55 -> 0 | I55: =HLS!H53+HCQ!H55+HOV!H55+HILL!H55 -> 0 | J55: =HLS!I53+HCQ!I55+HOV!I55+HILL!I55 -> 0 | K55: =HLS!J53+HCQ!J55+HOV!J55+HILL!J55 -> 0 | L55: =HLS!K53+HCQ!K55+HOV!K55+HILL!K55 -> 0 | M55: =HLS!L53+HCQ!L55+HOV!L55+HILL!L55 -> 0 | R55: 0
B56: 09600140 | D56: TERAPIA FARMACOLÓGICA DE LESIONES DEL TERRITORIO ORAL Y MAXILOFACIAL | F56: =HLS!E54+HCQ!E56+HOV!E56+HILL!E56 -> 221 | G56: =HLS!F54+HCQ!F56+HOV!F56+HILL!F56 -> 151 | H56: =HLS!G54+HCQ!G56+HOV!G56+HILL!G56 -> 327 | I56: =HLS!H54+HCQ!H56+HOV!H56+HILL!H56 -> 279 | J56: =HLS!I54+HCQ!I56+HOV!I56+HILL!I56 -> 254 | K56: =HLS!J54+HCQ!J56+HOV!J56+HILL!J56 -> 135 | L56: =HLS!K54+HCQ!K56+HOV!K56+HILL!K56 -> 122 | M56: =HLS!L54+HCQ!L56+HOV!L56+HILL!L56 -> 178 | R56: 1667
B57: 09600316 | D57: TERAPIA NO FARMACOLÓGICA DE LESIONES DEL TERRITORIO ORAL Y MAXILOFACIAL | F57: =HLS!E55+HCQ!E57+HOV!E57+HILL!E57 -> 534 | G57: =HLS!F55+HCQ!F57+HOV!F57+HILL!F57 -> 464 | H57: =HLS!G55+HCQ!G57+HOV!G57+HILL!G57 -> 688 | I57: =HLS!H55+HCQ!H57+HOV!H57+HILL!H57 -> 668 | J57: =HLS!I55+HCQ!I57+HOV!I57+HILL!I57 -> 729 | K57: =HLS!J55+HCQ!J57+HOV!J57+HILL!J57 -> 738 | L57: =HLS!K55+HCQ!K57+HOV!K57+HILL!K57 -> 437 | M57: =HLS!L55+HCQ!L57+HOV!L57+HILL!L57 -> 818 | R57: 5076
B58: 09600317 | D58: ESTUDIO CLÍNICO LESIONES DEL TERRITORIO ORAL MAXILOFACIAL | F58: =HLS!E56+HCQ!E58+HOV!E58+HILL!E58 -> 132 | G58: =HLS!F56+HCQ!F58+HOV!F58+HILL!F58 -> 42 | H58: =HLS!G56+HCQ!G58+HOV!G58+HILL!G58 -> 95 | I58: =HLS!H56+HCQ!H58+HOV!H58+HILL!H58 -> 96 | J58: =HLS!I56+HCQ!I58+HOV!I58+HILL!I58 -> 132 | K58: =HLS!J56+HCQ!J58+HOV!J58+HILL!J58 -> 116 | L58: =HLS!K56+HCQ!K58+HOV!K58+HILL!K58 -> 90 | M58: =HLS!L56+HCQ!L58+HOV!L58+HILL!L58 -> 62 | R58: 765
B59: 09600141 | D59: TERAPIA FÍSICA EN TRASTORNOS TEMPOROMANDIBULARES (TTM) Y DOLOR OROFACIAL (DOF) | F59: =HLS!E57+HCQ!E59+HOV!E59+HILL!E59 -> 34 | G59: =HLS!F57+HCQ!F59+HOV!F59+HILL!F59 -> 24 | H59: =HLS!G57+HCQ!G59+HOV!G59+HILL!G59 -> 48 | I59: =HLS!H57+HCQ!H59+HOV!H59+HILL!H59 -> 62 | J59: =HLS!I57+HCQ!I59+HOV!I59+HILL!I59 -> 75 | K59: =HLS!J57+HCQ!J59+HOV!J59+HILL!J59 -> 58 | L59: =HLS!K57+HCQ!K59+HOV!K59+HILL!K59 -> 41 | M59: =HLS!L57+HCQ!L59+HOV!L59+HILL!L59 -> 47 | R59: 389
B60: 09600142 | D60: INFILTRACIÓN EN ARTICULACIÓN TEMPORO MANDIBULAR (ATM) | F60: =HLS!E58+HCQ!E60+HOV!E60+HILL!E60 -> 24 | G60: =HLS!F58+HCQ!F60+HOV!F60+HILL!F60 -> 14 | H60: =HLS!G58+HCQ!G60+HOV!G60+HILL!G60 -> 39 | I60: =HLS!H58+HCQ!H60+HOV!H60+HILL!H60 -> 37 | J60: =HLS!I58+HCQ!I60+HOV!I60+HILL!I60 -> 62 | K60: =HLS!J58+HCQ!J60+HOV!J60+HILL!J60 -> 73 | L60: =HLS!K58+HCQ!K60+HOV!K60+HILL!K60 -> 42 | M60: =HLS!L58+HCQ!L60+HOV!L60+HILL!L60 -> 40 | R60: 331
B61: 09600143 | D61: BLOQUEO ANESTÉSICO Y/O MEDICAMENTOSO EN TTM Y DOF | F61: =HLS!E59+HCQ!E61+HOV!E61+HILL!E61 -> 77 | G61: =HLS!F59+HCQ!F61+HOV!F61+HILL!F61 -> 34 | H61: =HLS!G59+HCQ!G61+HOV!G61+HILL!G61 -> 75 | I61: =HLS!H59+HCQ!H61+HOV!H61+HILL!H61 -> 106 | J61: =HLS!I59+HCQ!I61+HOV!I61+HILL!I61 -> 134 | K61: =HLS!J59+HCQ!J61+HOV!J61+HILL!J61 -> 132 | L61: =HLS!K59+HCQ!K61+HOV!K61+HILL!K61 -> 80 | M61: =HLS!L59+HCQ!L61+HOV!L61+HILL!L61 -> 78 | R61: 716
B62: 09600144 | D62: ARTROCENTESIS EN ATM | F62: =HLS!E60+HCQ!E62+HOV!E62+HILL!E62 -> 46 | G62: =HLS!F60+HCQ!F62+HOV!F62+HILL!F62 -> 14 | H62: =HLS!G60+HCQ!G62+HOV!G62+HILL!G62 -> 51 | I62: =HLS!H60+HCQ!H62+HOV!H62+HILL!H62 -> 39 | J62: =HLS!I60+HCQ!I62+HOV!I62+HILL!I62 -> 49 | K62: =HLS!J60+HCQ!J62+HOV!J62+HILL!J62 -> 43 | L62: =HLS!K60+HCQ!K62+HOV!K62+HILL!K62 -> 19 | M62: =HLS!L60+HCQ!L62+HOV!L62+HILL!L62 -> 27 | R62: 288
B63: 09600145 | D63: TERAPIA BIOCONDUCTUAL | F63: =HLS!E61+HCQ!E63+HOV!E63+HILL!E63 -> 101 | G63: =HLS!F61+HCQ!F63+HOV!F63+HILL!F63 -> 51 | H63: =HLS!G61+HCQ!G63+HOV!G63+HILL!G63 -> 75 | I63: =HLS!H61+HCQ!H63+HOV!H63+HILL!H63 -> 92 | J63: =HLS!I61+HCQ!I63+HOV!I63+HILL!I63 -> 65 | K63: =HLS!J61+HCQ!J63+HOV!J63+HILL!J63 -> 57 | L63: =HLS!K61+HCQ!K63+HOV!K63+HILL!K63 -> 55 | M63: =HLS!L61+HCQ!L63+HOV!L63+HILL!L63 -> 64 | R63: 560
B64: 09600146 | D64: DESGASTE SELECTIVO | F64: =HLS!E62+HCQ!E64+HOV!E64+HILL!E64 -> 28 | G64: =HLS!F62+HCQ!F64+HOV!F64+HILL!F64 -> 10 | H64: =HLS!G62+HCQ!G64+HOV!G64+HILL!G64 -> 27 | I64: =HLS!H62+HCQ!H64+HOV!H64+HILL!H64 -> 54 | J64: =HLS!I62+HCQ!I64+HOV!I64+HILL!I64 -> 69 | K64: =HLS!J62+HCQ!J64+HOV!J64+HILL!J64 -> 59 | L64: =HLS!K62+HCQ!K64+HOV!K64+HILL!K64 -> 41 | M64: =HLS!L62+HCQ!L64+HOV!L64+HILL!L64 -> 59 | R64: 347
B65: 09600147 | D65: INSTALACIÓN DE DISPOSITIVO ORTOPÉDICO | F65: =HLS!E63+HCQ!E65+HOV!E65+HILL!E65 -> 33 | G65: =HLS!F63+HCQ!F65+HOV!F65+HILL!F65 -> 6 | H65: =HLS!G63+HCQ!G65+HOV!G65+HILL!G65 -> 34 | I65: =HLS!H63+HCQ!H65+HOV!H65+HILL!H65 -> 10 | J65: =HLS!I63+HCQ!I65+HOV!I65+HILL!I65 -> 48 | K65: =HLS!J63+HCQ!J65+HOV!J65+HILL!J65 -> 47 | L65: =HLS!K63+HCQ!K65+HOV!K65+HILL!K65 -> 28 | M65: =HLS!L63+HCQ!L65+HOV!L65+HILL!L65 -> 32 | R65: 238
B66: 09600148 | D66: ACTIVIDADES SOMATOPRÓTESIS | F66: =HLS!E64+HCQ!E66+HOV!E66+HILL!E66 -> 6 | G66: =HLS!F64+HCQ!F66+HOV!F66+HILL!F66 -> 1 | H66: =HLS!G64+HCQ!G66+HOV!G66+HILL!G66 -> 5 | I66: =HLS!H64+HCQ!H66+HOV!H66+HILL!H66 -> 5 | J66: =HLS!I64+HCQ!I66+HOV!I66+HILL!I66 -> 4 | K66: =HLS!J64+HCQ!J66+HOV!J66+HILL!J66 -> 3 | L66: =HLS!K64+HCQ!K66+HOV!K66+HILL!K66 -> 1 | M66: =HLS!L64+HCQ!L66+HOV!L66+HILL!L66 -> 4 | R66: 29
B67: 09600318 | D67: REHABILITACIÓN DE PRÓTESIS MAXILOFACIAL | F67: =HLS!E65+HCQ!E67+HOV!E67+HILL!E67 -> 1 | G67: =HLS!F65+HCQ!F67+HOV!F67+HILL!F67 -> 0 | H67: =HLS!G65+HCQ!G67+HOV!G67+HILL!G67 -> 3 | I67: =HLS!H65+HCQ!H67+HOV!H67+HILL!H67 -> 1 | J67: =HLS!I65+HCQ!I67+HOV!I67+HILL!I67 -> 0 | K67: =HLS!J65+HCQ!J67+HOV!J67+HILL!J67 -> 0 | L67: =HLS!K65+HCQ!K67+HOV!K67+HILL!K67 -> 0 | M67: =HLS!L65+HCQ!L67+HOV!L67+HILL!L67 -> 0 | R67: 5
D68: TOTAL | F68: =SUM(F14:F67) -> 9076 | G68: =SUM(G14:G67) -> 5409 | H68: 10718 | I68: 9506 | J68: 9279 | K68: 9097 | L68: 7487 | M68: 10396 | N68: 0 | O68: 0 | P68: 0 | Q68: 0 | R68: 70968
D71: ACTIVIDADES DE ESPECIALIDADES | F71: Enero | G71: Febrero | H71: Marzo | I71: Abril | J71: Mayo | K71: Junio | L71: Julio | M71: Agosto | N71: Septiembre | O71: Octubre | P71: Noviembre | Q71: Diciembre | R71: Total
B72: 09600149 | D72: RADIOGRAFÍA INTRAORAL MEDIANTE TÉCNICAS RETROALVEOLARES (POR PLACA) | F72: =HLS!E70+HCQ!E72+HOV!E72+HILL!E72 -> 796 | G72: =HLS!F70+HCQ!F72+HOV!F72+HILL!F72 -> 677 | H72: =HLS!G70+HCQ!G72+HOV!G72+HILL!G72 -> 1036 | I72: =HLS!H70+HCQ!H72+HOV!H72+HILL!H72 -> 898 | J72: =HLS!I70+HCQ!I72+HOV!I72+HILL!I72 -> 860 | K72: =HLS!J70+HCQ!J72+HOV!J72+HILL!J72 -> 772 | R72: =SUM(F72:Q72) -> 5039
B73: 09600319 | D73: RADIOGRAFÍA INTRAORAL MEDIANTE TÉCNICAS BITE WING (POR PLACA) | F73: =HLS!E71+HCQ!E73+HOV!E73+HILL!E73 -> 59 | G73: =HLS!F71+HCQ!F73+HOV!F73+HILL!F73 -> 34 | H73: =HLS!G71+HCQ!G73+HOV!G73+HILL!G73 -> 57 | I73: =HLS!H71+HCQ!H73+HOV!H73+HILL!H73 -> 48 | J73: =HLS!I71+HCQ!I73+HOV!I73+HILL!I73 -> 64 | K73: =HLS!J71+HCQ!J73+HOV!J73+HILL!J73 -> 81 | R73: =SUM(F73:Q73) -> 343
B74: 09203913 | D74: RADIOGRAFÍA EXTRAORAL (POR PLACA) | F74: =HLS!E72+HCQ!E74+HOV!E74+HILL!E74 -> 1 | G74: =HLS!F72+HCQ!F74+HOV!F74+HILL!F74 -> 0 | H74: =HLS!G72+HCQ!G74+HOV!G74+HILL!G74 -> 0 | I74: =HLS!H72+HCQ!H74+HOV!H74+HILL!H74 -> 1 | J74: =HLS!I72+HCQ!I74+HOV!I74+HILL!I74 -> 0 | K74: =HLS!J72+HCQ!J74+HOV!J74+HILL!J74 -> 0 | R74: 2
B75: 09306200 | D75: RADIOGRAFÍA OCLUSAL (POR PLACA) | F75: =HLS!E73+HCQ!E75+HOV!E75+HILL!E75 -> 0 | G75: =HLS!F73+HCQ!F75+HOV!F75+HILL!F75 -> 0 | H75: =HLS!G73+HCQ!G75+HOV!G75+HILL!G75 -> 1 | I75: =HLS!H73+HCQ!H75+HOV!H75+HILL!H75 -> 0 | J75: =HLS!I73+HCQ!I75+HOV!I75+HILL!I75 -> 2 | K75: =HLS!J73+HCQ!J75+HOV!J75+HILL!J75 -> 0 | R75: 3
B76: 09306300 | D76: TELERRADIOGRAFÍA (POR PLACA) | F76: =HLS!E74+HCQ!E76+HOV!E76+HILL!E76 -> 89 | G76: =HLS!F74+HCQ!F76+HOV!F76+HILL!F76 -> 72 | H76: =HLS!G74+HCQ!G76+HOV!G76+HILL!G76 -> 74 | I76: =HLS!H74+HCQ!H76+HOV!H76+HILL!H76 -> 57 | J76: =HLS!I74+HCQ!I76+HOV!I76+HILL!I76 -> 47 | K76: =HLS!J74+HCQ!J76+HOV!J76+HILL!J76 -> 22 | R76: 361
B77: 09306400 | D77: RADIOGRAFÍA PANORÁMICA (POR PLACA) | F77: =HLS!E75+HCQ!E77+HOV!E77+HILL!E77 -> 405 | G77: =HLS!F75+HCQ!F77+HOV!F77+HILL!F77 -> 234 | H77: =HLS!G75+HCQ!G77+HOV!G77+HILL!G77 -> 270 | I77: =HLS!H75+HCQ!H77+HOV!H77+HILL!H77 -> 254 | J77: =HLS!I75+HCQ!I77+HOV!I77+HILL!I77 -> 155 | K77: =HLS!J75+HCQ!J77+HOV!J77+HILL!J77 -> 113 | R77: 1431
B78: 09306500 | D78: TOMOGRAFÍA COMPUTACIONAL MAXILO FACIAL CONE BEAM (POR ADQUISICIÓN) | F78: =HLS!E76+HCQ!E78+HOV!E78+HILL!E78 -> 136 | G78: =HLS!F76+HCQ!F78+HOV!F78+HILL!F78 -> 114 | H78: =HLS!G76+HCQ!G78+HOV!G78+HILL!G78 -> 151 | I78: =HLS!H76+HCQ!H78+HOV!H78+HILL!H78 -> 106 | J78: =HLS!I76+HCQ!I78+HOV!I78+HILL!I78 -> 72 | K78: =HLS!J76+HCQ!J78+HOV!J78+HILL!J78 -> 94 | R78: 673
B79: 09204013 | D79: SIALOGRAFÍAS (POR PROCEDIMIENTO) | F79: =HLS!E77+HCQ!E79+HOV!E79+HILL!E79 -> 0 | G79: =HLS!F77+HCQ!F79+HOV!F79+HILL!F79 -> 0 | H79: =HLS!G77+HCQ!G79+HOV!G79+HILL!G79 -> 0 | I79: =HLS!H77+HCQ!H79+HOV!H79+HILL!H79 -> 0 | J79: =HLS!I77+HCQ!I79+HOV!I79+HILL!I79 -> 0 | K79: =HLS!J77+HCQ!J79+HOV!J79+HILL!J79 -> 0 | R79: 0
B80: 09600150 | D80: PROCEDIMIENTO IMAGENOLÓGICO COMPLEJO (POR PROCEDIMIENTO) | F80: =HLS!E78+HCQ!E80+HOV!E80+HILL!E80 -> 0 | G80: =HLS!F78+HCQ!F80+HOV!F80+HILL!F80 -> 0 | H80: =HLS!G78+HCQ!G80+HOV!G80+HILL!G80 -> 0 | I80: =HLS!H78+HCQ!H80+HOV!H80+HILL!H80 -> 0 | J80: =HLS!I78+HCQ!I80+HOV!I80+HILL!I80 -> 0 | K80: =HLS!J78+HCQ!J80+HOV!J80+HILL!J80 -> 387 | R80: 387
D81: TOTAL | F81: =SUM(F72:F80) -> 1486 | G81: 1131 | H81: 1589 | I81: 1364 | J81: 1200 | K81: 1469 | L81: 0 | M81: 0 | N81: 0 | O81: 0 | P81: 0 | Q81: 0 | R81: 8239
C84: ESPECIALIDAD Y TIPO DE INGRESO O EGRESO | D84: Tipo de Ingreso | F84: Enero | G84: Febrero | H84: Marzo | I84: Abril | J84: Mayo | K84: Junio | L84: Julio | M84: Agosto | N84: Septiembre | O84: Octubre | P84: Noviembre | Q84: Diciembre | R84: Total
B85: 09240700 | C85: CONSULTAS DE URGENCIA | D85: CONSULTAS GES | F85: =HLS!E83+HCQ!E85+HOV!E85+HILL!E85 -> 61 | G85: =HLS!F83+HCQ!F85+HOV!F85+HILL!F85 -> 56 | H85: =HLS!G83+HCQ!G85+HOV!G85+HILL!G85 -> 71 | I85: =HLS!H83+HCQ!H85+HOV!H85+HILL!H85 -> 65 | J85: =HLS!I83+HCQ!I85+HOV!I85+HILL!I85 -> 78 | K85: =HLS!J83+HCQ!J85+HOV!J85+HILL!J85 -> 33 | R85: =SUM(F85:Q85) -> 364
B86: 09600325 | D86: CONSULTA NO GES | F86: =HLS!E84+HCQ!E86+HOV!E86+HILL!E86 -> 86 | G86: =HLS!F84+HCQ!F86+HOV!F86+HILL!F86 -> 76 | H86: =HLS!G84+HCQ!G86+HOV!G86+HILL!G86 -> 114 | I86: =HLS!H84+HCQ!H86+HOV!H86+HILL!H86 -> 63 | J86: =HLS!I84+HCQ!I86+HOV!I86+HILL!I86 -> 83 | K86: =HLS!J84+HCQ!J86+HOV!J86+HILL!J86 -> 59 | R86: =SUM(F86:Q86) -> 481
B87: 09600155 | C87: CIRUGÍA BUCAL | D87: CONSULTA NUEVA | F87: =HLS!E85+HCQ!E87+HOV!E87+HILL!E87 -> 29 | G87: =HLS!F85+HCQ!F87+HOV!F87+HILL!F87 -> 28 | H87: =HLS!G85+HCQ!G87+HOV!G87+HILL!G87 -> 47 | I87: =HLS!H85+HCQ!H87+HOV!H87+HILL!H87 -> 27 | J87: =HLS!I85+HCQ!I87+HOV!I87+HILL!I87 -> 61 | K87: =HLS!J85+HCQ!J87+HOV!J87+HILL!J87 -> 49 | R87: 241
B88: 09600156 | D88: CONTROL | F88: =HLS!E86+HCQ!E88+HOV!E88+HILL!E88 -> 106 | G88: =HLS!F86+HCQ!F88+HOV!F88+HILL!F88 -> 95 | H88: =HLS!G86+HCQ!G88+HOV!G88+HILL!G88 -> 120 | I88: =HLS!H86+HCQ!H88+HOV!H88+HILL!H88 -> 59 | J88: =HLS!I86+HCQ!I88+HOV!I88+HILL!I88 -> 140 | K88: =HLS!J86+HCQ!J88+HOV!J88+HILL!J88 -> 135 | R88: 655
B89: 09216113 | D89: INGRESOS A TRATAMIENTO | F89: =HLS!E87+HCQ!E89+HOV!E89+HILL!E89 -> 28 | G89: =HLS!F87+HCQ!F89+HOV!F89+HILL!F89 -> 28 | H89: =HLS!G87+HCQ!G89+HOV!G89+HILL!G89 -> 47 | I89: =HLS!H87+HCQ!H89+HOV!H89+HILL!H89 -> 26 | J89: =HLS!I87+HCQ!I89+HOV!I89+HILL!I89 -> 62 | K89: =HLS!J87+HCQ!J89+HOV!J89+HILL!J89 -> 46 | R89: 237
B90: 09216213 | D90: ALTAS DE TRATAMIENTO | F90: =HLS!E88+HCQ!E90+HOV!E90+HILL!E90 -> 36 | G90: =HLS!F88+HCQ!F90+HOV!F90+HILL!F90 -> 22 | H90: =HLS!G88+HCQ!G90+HOV!G90+HILL!G90 -> 41 | I90: =HLS!H88+HCQ!H90+HOV!H90+HILL!H90 -> 25 | J90: =HLS!I88+HCQ!I90+HOV!I90+HILL!I90 -> 44 | K90: =HLS!J88+HCQ!J90+HOV!J90+HILL!J90 -> 38 | R90: 206
B91: 09600326 | D91: CONTROL DE ESPECIALIDAD POST ALTA | F91: =HLS!E89+HCQ!E91+HOV!E91+HILL!E91 -> 51 | G91: =HLS!F89+HCQ!F91+HOV!F91+HILL!F91 -> 49 | H91: =HLS!G89+HCQ!G91+HOV!G91+HILL!G91 -> 41 | I91: =HLS!H89+HCQ!H91+HOV!H91+HILL!H91 -> 32 | J91: =HLS!I89+HCQ!I91+HOV!I91+HILL!I91 -> 57 | K91: =HLS!J89+HCQ!J91+HOV!J91+HILL!J91 -> 58 | R91: 288
B92: 09600157 | D92: ALTAS ADMINISTRATIVAS | F92: =HLS!E90+HCQ!E92+HOV!E92+HILL!E92 -> 0 | G92: =HLS!F90+HCQ!F92+HOV!F92+HILL!F92 -> 0 | H92: =HLS!G90+HCQ!G92+HOV!G92+HILL!G92 -> 0 | I92: =HLS!H90+HCQ!H92+HOV!H92+HILL!H92 -> 0 | J92: =HLS!I90+HCQ!I92+HOV!I92+HILL!I92 -> 0 | K92: =HLS!J90+HCQ!J92+HOV!J92+HILL!J92 -> 0 | R92: 0
B93: 09600158 | C93: CIRUGÍA Y TRAUMATOLOGÍA MAXILOFACIAL | D93: CONSULTA NUEVA | F93: =HLS!E91+HCQ!E93+HOV!E93+HILL!E93 -> 201 | G93: =HLS!F91+HCQ!F93+HOV!F93+HILL!F93 -> 171 | H93: =HLS!G91+HCQ!G93+HOV!G93+HILL!G93 -> 213 | I93: =HLS!H91+HCQ!H93+HOV!H93+HILL!H93 -> 236 | J93: =HLS!I91+HCQ!I93+HOV!I93+HILL!I93 -> 300 | K93: =HLS!J91+HCQ!J93+HOV!J93+HILL!J93 -> 263 | R93: 1384
B94: 09600159 | D94: CONTROL | F94: =HLS!E92+HCQ!E94+HOV!E94+HILL!E94 -> 477 | G94: =HLS!F92+HCQ!F94+HOV!F94+HILL!F94 -> 443 | H94: =HLS!G92+HCQ!G94+HOV!G94+HILL!G94 -> 517 | I94: =HLS!H92+HCQ!H94+HOV!H94+HILL!H94 -> 585 | J94: =HLS!I92+HCQ!I94+HOV!I94+HILL!I94 -> 578 | K94: =HLS!J92+HCQ!J94+HOV!J94+HILL!J94 -> 565 | R94: 3165
B95: 09204953 | D95: INGRESOS A TRATAMIENTO | F95: =HLS!E93+HCQ!E95+HOV!E95+HILL!E95 -> 167 | G95: =HLS!F93+HCQ!F95+HOV!F95+HILL!F95 -> 149 | H95: =HLS!G93+HCQ!G95+HOV!G95+HILL!G95 -> 160 | I95: =HLS!H93+HCQ!H95+HOV!H95+HILL!H95 -> 211 | J95: =HLS!I93+HCQ!I95+HOV!I95+HILL!I95 -> 196 | K95: =HLS!J93+HCQ!J95+HOV!J95+HILL!J95 -> 167 | R95: 1050
B96: 09204954 | D96: ALTAS DE TRATAMIENTO | F96: =HLS!E94+HCQ!E96+HOV!E96+HILL!E96 -> 119 | G96: =HLS!F94+HCQ!F96+HOV!F96+HILL!F96 -> 106 | H96: =HLS!G94+HCQ!G96+HOV!G96+HILL!G96 -> 160 | I96: =HLS!H94+HCQ!H96+HOV!H96+HILL!H96 -> 197 | J96: =HLS!I94+HCQ!I96+HOV!I96+HILL!I96 -> 163 | K96: =HLS!J94+HCQ!J96+HOV!J96+HILL!J96 -> 185 | R96: 930
B97: 09600327 | D97: CONTROL DE ESPECIALIDAD POST ALTA | F97: =HLS!E95+HCQ!E97+HOV!E97+HILL!E97 -> 26 | G97: =HLS!F95+HCQ!F97+HOV!F97+HILL!F97 -> 43 | H97: =HLS!G95+HCQ!G97+HOV!G97+HILL!G97 -> 25 | I97: =HLS!H95+HCQ!H97+HOV!H97+HILL!H97 -> 35 | J97: =HLS!I95+HCQ!I97+HOV!I97+HILL!I97 -> 100 | K97: =HLS!J95+HCQ!J97+HOV!J97+HILL!J97 -> 104 | R97: 333
B98: 09600160 | D98: ALTAS ADMINISTRATIVAS | F98: =HLS!E96+HCQ!E98+HOV!E98+HILL!E98 -> 0 | G98: =HLS!F96+HCQ!F98+HOV!F98+HILL!F98 -> 0 | H98: =HLS!G96+HCQ!G98+HOV!G98+HILL!G98 -> 0 | I98: =HLS!H96+HCQ!H98+HOV!H98+HILL!H98 -> 0 | J98: =HLS!I96+HCQ!I98+HOV!I98+HILL!I98 -> 3 | K98: =HLS!J96+HCQ!J98+HOV!J98+HILL!J98 -> 9 | R98: 12
B99: 09600161 | C99: ENDODONCIA | D99: CONSULTA NUEVA | F99: =HLS!E97+HCQ!E99+HOV!E99+HILL!E99 -> 285 | G99: =HLS!F97+HCQ!F99+HOV!F99+HILL!F99 -> 167 | H99: =HLS!G97+HCQ!G99+HOV!G99+HILL!G99 -> 401 | I99: =HLS!H97+HCQ!H99+HOV!H99+HILL!H99 -> 338 | J99: =HLS!I97+HCQ!I99+HOV!I99+HILL!I99 -> 400 | K99: =HLS!J97+HCQ!J99+HOV!J99+HILL!J99 -> 415 | R99: 2006
B100: 09600162 | D100: CONTROL | F100: =HLS!E98+HCQ!E100+HOV!E100+HILL!E100 -> 531 | G100: =HLS!F98+HCQ!F100+HOV!F100+HILL!F100 -> 300 | H100: =HLS!G98+HCQ!G100+HOV!G100+HILL!G100 -> 614 | I100: =HLS!H98+HCQ!H100+HOV!H100+HILL!H100 -> 585 | J100: =HLS!I98+HCQ!I100+HOV!I100+HILL!I100 -> 739 | K100: =HLS!J98+HCQ!J100+HOV!J100+HILL!J100 -> 636 | R100: 3405
B101: 09216513 | D101: INGRESOS A TRATAMIENTO | F101: =HLS!E99+HCQ!E101+HOV!E101+HILL!E101 -> 215 | G101: =HLS!F99+HCQ!F101+HOV!F101+HILL!F101 -> 128 | H101: =HLS!G99+HCQ!G101+HOV!G101+HILL!G101 -> 292 | I101: =HLS!H99+HCQ!H101+HOV!H101+HILL!H101 -> 267 | J101: =HLS!I99+HCQ!I101+HOV!I101+HILL!I101 -> 320 | K101: =HLS!J99+HCQ!J101+HOV!J101+HILL!J101 -> 294 | R101: 1516
B102: 09216613 | D102: ALTAS DE TRATAMIENTO | F102: =HLS!E100+HCQ!E102+HOV!E102+HILL!E102 -> 172 | G102: =HLS!F100+HCQ!F102+HOV!F102+HILL!F102 -> 92 | H102: =HLS!G100+HCQ!G102+HOV!G102+HILL!G102 -> 215 | I102: =HLS!H100+HCQ!H102+HOV!H102+HILL!H102 -> 196 | J102: =HLS!I100+HCQ!I102+HOV!I102+HILL!I102 -> 244 | K102: =HLS!J100+HCQ!J102+HOV!J102+HILL!J102 -> 239 | R102: 1158
B103: 09600328 | D103: CONTROL DE ESPECIALIDAD POST ALTA | F103: =HLS!E101+HCQ!E103+HOV!E103+HILL!E103 -> 47 | G103: =HLS!F101+HCQ!F103+HOV!F103+HILL!F103 -> 17 | H103: =HLS!G101+HCQ!G103+HOV!G103+HILL!G103 -> 68 | I103: =HLS!H101+HCQ!H103+HOV!H103+HILL!H103 -> 67 | J103: =HLS!I101+HCQ!I103+HOV!I103+HILL!I103 -> 52 | K103: =HLS!J101+HCQ!J103+HOV!J103+HILL!J103 -> 69 | R103: 320
B104: 09600163 | D104: ALTAS ADMINISTRATIVAS | F104: =HLS!E102+HCQ!E104+HOV!E104+HILL!E104 -> 2 | G104: =HLS!F102+HCQ!F104+HOV!F104+HILL!F104 -> 15 | H104: =HLS!G102+HCQ!G104+HOV!G104+HILL!G104 -> 4 | I104: =HLS!H102+HCQ!H104+HOV!H104+HILL!H104 -> 5 | J104: =HLS!I102+HCQ!I104+HOV!I104+HILL!I104 -> 2 | K104: =HLS!J102+HCQ!J104+HOV!J104+HILL!J104 -> 3 | R104: 31
B105: 09600164 | C105: ODONTOPEDIATRÍA | D105: CONSULTA NUEVA | F105: =HLS!E103+HCQ!E105+HOV!E105+HILL!E105 -> 111 | G105: =HLS!F103+HCQ!F105+HOV!F105+HILL!F105 -> 57 | H105: =HLS!G103+HCQ!G105+HOV!G105+HILL!G105 -> 123 | I105: =HLS!H103+HCQ!H105+HOV!H105+HILL!H105 -> 104 | J105: =HLS!I103+HCQ!I105+HOV!I105+HILL!I105 -> 137 | K105: =HLS!J103+HCQ!J105+HOV!J105+HILL!J105 -> 128 | R105: 660
B106: 09600165 | D106: CONTROL | F106: =HLS!E104+HCQ!E106+HOV!E106+HILL!E106 -> 376 | G106: =HLS!F104+HCQ!F106+HOV!F106+HILL!F106 -> 326 | H106: =HLS!G104+HCQ!G106+HOV!G106+HILL!G106 -> 597 | I106: =HLS!H104+HCQ!H106+HOV!H106+HILL!H106 -> 605 | J106: =HLS!I104+HCQ!I106+HOV!I106+HILL!I106 -> 765 | K106: =HLS!J104+HCQ!J106+HOV!J106+HILL!J106 -> 611 | R106: 3280
B107: 09216913 | D107: INGRESOS A TRATAMIENTO | F107: =HLS!E105+HCQ!E107+HOV!E107+HILL!E107 -> 100 | G107: =HLS!F105+HCQ!F107+HOV!F107+HILL!F107 -> 83 | H107: =HLS!G105+HCQ!G107+HOV!G107+HILL!G107 -> 100 | I107: =HLS!H105+HCQ!H107+HOV!H107+HILL!H107 -> 98 | J107: =HLS!I105+HCQ!I107+HOV!I107+HILL!I107 -> 126 | K107: =HLS!J105+HCQ!J107+HOV!J107+HILL!J107 -> 112 | R107: 619
B108: 09217013 | D108: ALTAS DE TRATAMIENTO | F108: =HLS!E106+HCQ!E108+HOV!E108+HILL!E108 -> 75 | G108: =HLS!F106+HCQ!F108+HOV!F108+HILL!F108 -> 76 | H108: =HLS!G106+HCQ!G108+HOV!G108+HILL!G108 -> 85 | I108: =HLS!H106+HCQ!H108+HOV!H108+HILL!H108 -> 102 | J108: =HLS!I106+HCQ!I108+HOV!I108+HILL!I108 -> 128 | K108: =HLS!J106+HCQ!J108+HOV!J108+HILL!J108 -> 125 | R108: 591
B109: 09600329 | D109: CONTROL DE ESPECIALIDAD POST ALTA | F109: =HLS!E107+HCQ!E109+HOV!E109+HILL!E109 -> 13 | G109: =HLS!F107+HCQ!F109+HOV!F109+HILL!F109 -> 8 | H109: =HLS!G107+HCQ!G109+HOV!G109+HILL!G109 -> 21 | I109: =HLS!H107+HCQ!H109+HOV!H109+HILL!H109 -> 19 | J109: =HLS!I107+HCQ!I109+HOV!I109+HILL!I109 -> 14 | K109: =HLS!J107+HCQ!J109+HOV!J109+HILL!J109 -> 12 | R109: 87
B110: 09600166 | D110: ALTAS ADMINISTRATIVAS | F110: =HLS!E108+HCQ!E110+HOV!E110+HILL!E110 -> 0 | G110: =HLS!F108+HCQ!F110+HOV!F110+HILL!F110 -> 0 | H110: =HLS!G108+HCQ!G110+HOV!G110+HILL!G110 -> 0 | I110: =HLS!H108+HCQ!H110+HOV!H110+HILL!H110 -> 0 | J110: =HLS!I108+HCQ!I110+HOV!I110+HILL!I110 -> 0 | K110: =HLS!J108+HCQ!J110+HOV!J110+HILL!J110 -> 1 | R110: 1
B111: 09600167 | C111: OPERATORIA | D111: CONSULTA NUEVA | F111: =HLS!E109+HCQ!E111+HOV!E111+HILL!E111 -> 27 | G111: =HLS!F109+HCQ!F111+HOV!F111+HILL!F111 -> 19 | H111: =HLS!G109+HCQ!G111+HOV!G111+HILL!G111 -> 18 | I111: =HLS!H109+HCQ!H111+HOV!H111+HILL!H111 -> 12 | J111: =HLS!I109+HCQ!I111+HOV!I111+HILL!I111 -> 22 | K111: =HLS!J109+HCQ!J111+HOV!J111+HILL!J111 -> 19 | R111: 117
B112: 09600168 | D112: CONTROL | F112: =HLS!E110+HCQ!E112+HOV!E112+HILL!E112 -> 124 | G112: =HLS!F110+HCQ!F112+HOV!F112+HILL!F112 -> 81 | H112: =HLS!G110+HCQ!G112+HOV!G112+HILL!G112 -> 86 | I112: =HLS!H110+HCQ!H112+HOV!H112+HILL!H112 -> 103 | J112: =HLS!I110+HCQ!I112+HOV!I112+HILL!I112 -> 129 | K112: =HLS!J110+HCQ!J112+HOV!J112+HILL!J112 -> 71 | R112: 594
B113: 09217413 | D113: INGRESOS A TRATAMIENTO | F113: =HLS!E111+HCQ!E113+HOV!E113+HILL!E113 -> 31 | G113: =HLS!F111+HCQ!F113+HOV!F113+HILL!F113 -> 20 | H113: =HLS!G111+HCQ!G113+HOV!G113+HILL!G113 -> 21 | I113: =HLS!H111+HCQ!H113+HOV!H113+HILL!H113 -> 16 | J113: =HLS!I111+HCQ!I113+HOV!I113+HILL!I113 -> 25 | K113: =HLS!J111+HCQ!J113+HOV!J113+HILL!J113 -> 22 | R113: 135
B114: 09217513 | D114: ALTAS DE TRATAMIENTO | F114: =HLS!E112+HCQ!E114+HOV!E114+HILL!E114 -> 37 | G114: =HLS!F112+HCQ!F114+HOV!F114+HILL!F114 -> 24 | H114: =HLS!G112+HCQ!G114+HOV!G114+HILL!G114 -> 25 | I114: =HLS!H112+HCQ!H114+HOV!H114+HILL!H114 -> 21 | J114: =HLS!I112+HCQ!I114+HOV!I114+HILL!I114 -> 39 | K114: =HLS!J112+HCQ!J114+HOV!J114+HILL!J114 -> 28 | R114: 174
B115: 09600330 | D115: CONTROL DE ESPECIALIDAD POST ALTA | F115: =HLS!E113+HCQ!E115+HOV!E115+HILL!E115 -> 9 | G115: =HLS!F113+HCQ!F115+HOV!F115+HILL!F115 -> 2 | H115: =HLS!G113+HCQ!G115+HOV!G115+HILL!G115 -> 0 | I115: =HLS!H113+HCQ!H115+HOV!H115+HILL!H115 -> 1 | J115: =HLS!I113+HCQ!I115+HOV!I115+HILL!I115 -> 5 | K115: =HLS!J113+HCQ!J115+HOV!J115+HILL!J115 -> 0 | R115: 17
B116: 09600169 | D116: ALTAS ADMINISTRATIVAS | F116: =HLS!E114+HCQ!E116+HOV!E116+HILL!E116 -> 0 | G116: =HLS!F114+HCQ!F116+HOV!F116+HILL!F116 -> 0 | H116: =HLS!G114+HCQ!G116+HOV!G116+HILL!G116 -> 0 | I116: =HLS!H114+HCQ!H116+HOV!H116+HILL!H116 -> 0 | J116: =HLS!I114+HCQ!I116+HOV!I116+HILL!I116 -> 1 | K116: =HLS!J114+HCQ!J116+HOV!J116+HILL!J116 -> 0 | R116: 1
B117: 09600170 | C117: ORTODONCIA Y ORTOPEDIA DENTO MAXILOFACIAL: APARATOLOGÍA FIJA | D117: CONSULTA NUEVA | F117: =HLS!E115+HCQ!E117+HOV!E117+HILL!E117 -> 92 | G117: =HLS!F115+HCQ!F117+HOV!F117+HILL!F117 -> 51 | H117: =HLS!G115+HCQ!G117+HOV!G117+HILL!G117 -> 96 | I117: =HLS!H115+HCQ!H117+HOV!H117+HILL!H117 -> 95 | J117: =HLS!I115+HCQ!I117+HOV!I117+HILL!I117 -> 102 | K117: =HLS!J115+HCQ!J117+HOV!J117+HILL!J117 -> 102 | R117: 538
B118: 09600171 | D118: CONTROL | F118: =HLS!E116+HCQ!E118+HOV!E118+HILL!E118 -> 912 | G118: =HLS!F116+HCQ!F118+HOV!F118+HILL!F118 -> 643 | H118: =HLS!G116+HCQ!G118+HOV!G118+HILL!G118 -> 1056 | I118: =HLS!H116+HCQ!H118+HOV!H118+HILL!H118 -> 793 | J118: =HLS!I116+HCQ!I118+HOV!I118+HILL!I118 -> 1015 | K118: =HLS!J116+HCQ!J118+HOV!J118+HILL!J118 -> 967 | R118: 5386
B119: 09217913 | D119: INGRESOS A TRATAMIENTO | F119: =HLS!E117+HCQ!E119+HOV!E119+HILL!E119 -> 45 | G119: =HLS!F117+HCQ!F119+HOV!F119+HILL!F119 -> 198 | H119: =HLS!G117+HCQ!G119+HOV!G119+HILL!G119 -> 99 | I119: =HLS!H117+HCQ!H119+HOV!H119+HILL!H119 -> 96 | J119: =HLS!I117+HCQ!I119+HOV!I119+HILL!I119 -> 83 | K119: =HLS!J117+HCQ!J119+HOV!J119+HILL!J119 -> 70 | R119: 591
B120: 09218013 | D120: ALTAS DE TRATAMIENTO | F120: =HLS!E118+HCQ!E120+HOV!E120+HILL!E120 -> 43 | G120: =HLS!F118+HCQ!F120+HOV!F120+HILL!F120 -> 35 | H120: =HLS!G118+HCQ!G120+HOV!G120+HILL!G120 -> 31 | I120: =HLS!H118+HCQ!H120+HOV!H120+HILL!H120 -> 27 | J120: =HLS!I118+HCQ!I120+HOV!I120+HILL!I120 -> 27 | K120: =HLS!J118+HCQ!J120+HOV!J120+HILL!J120 -> 57 | R120: 220
B121: 09600331 | D121: CONTROL DE ESPECIALIDAD POST ALTA | F121: =HLS!E119+HCQ!E121+HOV!E121+HILL!E121 -> 18 | G121: =HLS!F119+HCQ!F121+HOV!F121+HILL!F121 -> 17 | H121: =HLS!G119+HCQ!G121+HOV!G121+HILL!G121 -> 32 | I121: =HLS!H119+HCQ!H121+HOV!H121+HILL!H121 -> 27 | J121: =HLS!I119+HCQ!I121+HOV!I121+HILL!I121 -> 20 | K121: =HLS!J119+HCQ!J121+HOV!J121+HILL!J121 -> 28 | R121: 142
B122: 09600172 | D122: ALTAS ADMINISTRATIVAS | F122: =HLS!E120+HCQ!E122+HOV!E122+HILL!E122 -> 1 | G122: =HLS!F120+HCQ!F122+HOV!F122+HILL!F122 -> 4 | H122: =HLS!G120+HCQ!G122+HOV!G122+HILL!G122 -> 0 | I122: =HLS!H120+HCQ!H122+HOV!H122+HILL!H122 -> 3 | J122: =HLS!I120+HCQ!I122+HOV!I122+HILL!I122 -> 1 | K122: =HLS!J120+HCQ!J122+HOV!J122+HILL!J122 -> 4 | R122: 13
B123: 09600173 | C123: ORTODONCIA Y ORTOPEDIA DENTO MAXILOFACIAL: APARATOLOGÍA REMOVIBLE | D123: CONSULTA NUEVA | F123: =HLS!E121+HCQ!E123+HOV!E123+HILL!E123 -> 16 | G123: =HLS!F121+HCQ!F123+HOV!F123+HILL!F123 -> 7 | H123: =HLS!G121+HCQ!G123+HOV!G123+HILL!G123 -> 21 | I123: =HLS!H121+HCQ!H123+HOV!H123+HILL!H123 -> 1 | J123: =HLS!I121+HCQ!I123+HOV!I123+HILL!I123 -> 11 | K123: =HLS!J121+HCQ!J123+HOV!J123+HILL!J123 -> 8 | R123: 64
B124: 09600174 | D124: CONTROL | F124: =HLS!E122+HCQ!E124+HOV!E124+HILL!E124 -> 116 | G124: =HLS!F122+HCQ!F124+HOV!F124+HILL!F124 -> 53 | H124: =HLS!G122+HCQ!G124+HOV!G124+HILL!G124 -> 132 | I124: =HLS!H122+HCQ!H124+HOV!H124+HILL!H124 -> 115 | J124: =HLS!I122+HCQ!I124+HOV!I124+HILL!I124 -> 140 | K124: =HLS!J122+HCQ!J124+HOV!J124+HILL!J124 -> 92 | R124: 648
B125: 09600175 | D125: INGRESOS A TRATAMIENTO | F125: =HLS!E123+HCQ!E125+HOV!E125+HILL!E125 -> 21 | G125: =HLS!F123+HCQ!F125+HOV!F125+HILL!F125 -> 2 | H125: =HLS!G123+HCQ!G125+HOV!G125+HILL!G125 -> 13 | I125: =HLS!H123+HCQ!H125+HOV!H125+HILL!H125 -> 12 | J125: =HLS!I123+HCQ!I125+HOV!I125+HILL!I125 -> 20 | K125: =HLS!J123+HCQ!J125+HOV!J125+HILL!J125 -> 18 | R125: 86
B126: 09600176 | D126: ALTAS DE TRATAMIENTO | F126: =HLS!E124+HCQ!E126+HOV!E126+HILL!E126 -> 7 | G126: =HLS!F124+HCQ!F126+HOV!F126+HILL!F126 -> 10 | H126: =HLS!G124+HCQ!G126+HOV!G126+HILL!G126 -> 12 | I126: =HLS!H124+HCQ!H126+HOV!H126+HILL!H126 -> 13 | J126: =HLS!I124+HCQ!I126+HOV!I126+HILL!I126 -> 21 | K126: =HLS!J124+HCQ!J126+HOV!J126+HILL!J126 -> 10 | R126: 73
B127: 09600332 | D127: CONTROL DE ESPECIALIDAD POST ALTA | F127: =HLS!E125+HCQ!E127+HOV!E127+HILL!E127 -> 2 | G127: =HLS!F125+HCQ!F127+HOV!F127+HILL!F127 -> 4 | H127: =HLS!G125+HCQ!G127+HOV!G127+HILL!G127 -> 1 | I127: =HLS!H125+HCQ!H127+HOV!H127+HILL!H127 -> 6 | J127: =HLS!I125+HCQ!I127+HOV!I127+HILL!I127 -> 1 | K127: =HLS!J125+HCQ!J127+HOV!J127+HILL!J127 -> 0 | R127: 14
B128: 09600177 | D128: ALTAS ADMINISTRATIVAS | F128: =HLS!E126+HCQ!E128+HOV!E128+HILL!E128 -> 0 | G128: =HLS!F126+HCQ!F128+HOV!F128+HILL!F128 -> 1 | H128: =HLS!G126+HCQ!G128+HOV!G128+HILL!G128 -> 0 | I128: =HLS!H126+HCQ!H128+HOV!H128+HILL!H128 -> 0 | J128: =HLS!I126+HCQ!I128+HOV!I128+HILL!I128 -> 0 | K128: =HLS!J126+HCQ!J128+HOV!J128+HILL!J128 -> 0 | R128: 1
B129: 09600178 | C129: PERIODONCIA | D129: CONSULTA NUEVA | F129: =HLS!E127+HCQ!E129+HOV!E129+HILL!E129 -> 124 | G129: =HLS!F127+HCQ!F129+HOV!F129+HILL!F129 -> 79 | H129: =HLS!G127+HCQ!G129+HOV!G129+HILL!G129 -> 126 | I129: =HLS!H127+HCQ!H129+HOV!H129+HILL!H129 -> 108 | J129: =HLS!I127+HCQ!I129+HOV!I129+HILL!I129 -> 114 | K129: =HLS!J127+HCQ!J129+HOV!J129+HILL!J129 -> 175 | R129: 726
B130: 09600179 | D130: CONTROL | F130: =HLS!E128+HCQ!E130+HOV!E130+HILL!E130 -> 399 | G130: =HLS!F128+HCQ!F130+HOV!F130+HILL!F130 -> 198 | H130: =HLS!G128+HCQ!G130+HOV!G130+HILL!G130 -> 478 | I130: =HLS!H128+HCQ!H130+HOV!H130+HILL!H130 -> 398 | J130: =HLS!I128+HCQ!I130+HOV!I130+HILL!I130 -> 457 | K130: =HLS!J128+HCQ!J130+HOV!J130+HILL!J130 -> 433 | R130: 2363
B131: 09218313 | D131: INGRESOS A TRATAMIENTO | F131: =HLS!E129+HCQ!E131+HOV!E131+HILL!E131 -> 115 | G131: =HLS!F129+HCQ!F131+HOV!F131+HILL!F131 -> 66 | H131: =HLS!G129+HCQ!G131+HOV!G131+HILL!G131 -> 107 | I131: =HLS!H129+HCQ!H131+HOV!H131+HILL!H131 -> 96 | J131: =HLS!I129+HCQ!I131+HOV!I131+HILL!I131 -> 104 | K131: =HLS!J129+HCQ!J131+HOV!J131+HILL!J131 -> 168 | R131: 656
B132: 09218413 | D132: ALTAS DE TRATAMIENTO | F132: =HLS!E130+HCQ!E132+HOV!E132+HILL!E132 -> 93 | G132: =HLS!F130+HCQ!F132+HOV!F132+HILL!F132 -> 40 | H132: =HLS!G130+HCQ!G132+HOV!G132+HILL!G132 -> 94 | I132: =HLS!H130+HCQ!H132+HOV!H132+HILL!H132 -> 83 | J132: =HLS!I130+HCQ!I132+HOV!I132+HILL!I132 -> 88 | K132: =HLS!J130+HCQ!J132+HOV!J132+HILL!J132 -> 102 | R132: 500
B133: 09600333 | D133: CONTROL DE ESPECIALIDAD POST ALTA | F133: =HLS!E131+HCQ!E133+HOV!E133+HILL!E133 -> 7 | G133: =HLS!F131+HCQ!F133+HOV!F133+HILL!F133 -> 20 | H133: =HLS!G131+HCQ!G133+HOV!G133+HILL!G133 -> 8 | I133: =HLS!H131+HCQ!H133+HOV!H133+HILL!H133 -> 10 | J133: =HLS!I131+HCQ!I133+HOV!I133+HILL!I133 -> 21 | K133: =HLS!J131+HCQ!J133+HOV!J133+HILL!J133 -> 45 | R133: 111
B134: 09600180 | D134: ALTAS ADMINISTRATIVAS | F134: =HLS!E132+HCQ!E134+HOV!E134+HILL!E134 -> 5 | G134: =HLS!F132+HCQ!F134+HOV!F134+HILL!F134 -> 0 | H134: =HLS!G132+HCQ!G134+HOV!G134+HILL!G134 -> 2 | I134: =HLS!H132+HCQ!H134+HOV!H134+HILL!H134 -> 2 | J134: =HLS!I132+HCQ!I134+HOV!I134+HILL!I134 -> 3 | K134: =HLS!J132+HCQ!J134+HOV!J134+HILL!J134 -> 1 | R134: 13
B135: 09600181 | C135: REHABILITACIÓN: PRÓTESIS FIJA | D135: CONSULTA NUEVA | F135: =HLS!E133+HCQ!E135+HOV!E135+HILL!E135 -> 0 | G135: =HLS!F133+HCQ!F135+HOV!F135+HILL!F135 -> 4 | H135: =HLS!G133+HCQ!G135+HOV!G135+HILL!G135 -> 9 | I135: =HLS!H133+HCQ!H135+HOV!H135+HILL!H135 -> 2 | J135: =HLS!I133+HCQ!I135+HOV!I135+HILL!I135 -> 5 | K135: =HLS!J133+HCQ!J135+HOV!J135+HILL!J135 -> 7 | R135: 27
B136: 09600182 | D136: CONTROL | F136: =HLS!E134+HCQ!E136+HOV!E136+HILL!E136 -> 12 | G136: =HLS!F134+HCQ!F136+HOV!F136+HILL!F136 -> 15 | H136: =HLS!G134+HCQ!G136+HOV!G136+HILL!G136 -> 17 | I136: =HLS!H134+HCQ!H136+HOV!H136+HILL!H136 -> 11 | J136: =HLS!I134+HCQ!I136+HOV!I136+HILL!I136 -> 19 | K136: =HLS!J134+HCQ!J136+HOV!J136+HILL!J136 -> 12 | R136: 86
B137: 09218813 | D137: INGRESOS A TRATAMIENTO | F137: =HLS!E135+HCQ!E137+HOV!E137+HILL!E137 -> 1 | G137: =HLS!F135+HCQ!F137+HOV!F137+HILL!F137 -> 6 | H137: =HLS!G135+HCQ!G137+HOV!G137+HILL!G137 -> 8 | I137: =HLS!H135+HCQ!H137+HOV!H137+HILL!H137 -> 3 | J137: =HLS!I135+HCQ!I137+HOV!I137+HILL!I137 -> 8 | K137: =HLS!J135+HCQ!J137+HOV!J137+HILL!J137 -> 9 | R137: 35
B138: 09218913 | D138: ALTAS DE TRATAMIENTO | F138: =HLS!E136+HCQ!E138+HOV!E138+HILL!E138 -> 2 | G138: =HLS!F136+HCQ!F138+HOV!F138+HILL!F138 -> 6 | H138: =HLS!G136+HCQ!G138+HOV!G138+HILL!G138 -> 7 | I138: =HLS!H136+HCQ!H138+HOV!H138+HILL!H138 -> 2 | J138: =HLS!I136+HCQ!I138+HOV!I138+HILL!I138 -> 4 | K138: =HLS!J136+HCQ!J138+HOV!J138+HILL!J138 -> 5 | R138: 26
B139: 09600334 | D139: CONTROL DE ESPECIALIDAD POST ALTA | F139: =HLS!E137+HCQ!E139+HOV!E139+HILL!E139 -> 0 | G139: =HLS!F137+HCQ!F139+HOV!F139+HILL!F139 -> 0 | H139: =HLS!G137+HCQ!G139+HOV!G139+HILL!G139 -> 0 | I139: =HLS!H137+HCQ!H139+HOV!H139+HILL!H139 -> 0 | J139: =HLS!I137+HCQ!I139+HOV!I139+HILL!I139 -> 0 | K139: =HLS!J137+HCQ!J139+HOV!J139+HILL!J139 -> 0 | R139: 0
B140: 09600183 | D140: ALTAS ADMINISTRATIVAS | F140: =HLS!E138+HCQ!E140+HOV!E140+HILL!E140 -> 0 | G140: =HLS!F138+HCQ!F140+HOV!F140+HILL!F140 -> 0 | H140: =HLS!G138+HCQ!G140+HOV!G140+HILL!G140 -> 0 | I140: =HLS!H138+HCQ!H140+HOV!H140+HILL!H140 -> 0 | J140: =HLS!I138+HCQ!I140+HOV!I140+HILL!I140 -> 0 | K140: =HLS!J138+HCQ!J140+HOV!J140+HILL!J140 -> 0 | R140: 0
B141: 09600184 | C141: REHABILITACIÓN: PRÓTESIS REMOVIBLE | D141: CONSULTA NUEVA | F141: =HLS!E139+HCQ!E141+HOV!E141+HILL!E141 -> 212 | G141: =HLS!F139+HCQ!F141+HOV!F141+HILL!F141 -> 133 | H141: =HLS!G139+HCQ!G141+HOV!G141+HILL!G141 -> 207 | I141: =HLS!H139+HCQ!H141+HOV!H141+HILL!H141 -> 197 | J141: =HLS!I139+HCQ!I141+HOV!I141+HILL!I141 -> 164 | K141: =HLS!J139+HCQ!J141+HOV!J141+HILL!J141 -> 133 | R141: 1046
B142: 09600185 | D142: CONTROL | F142: =HLS!E140+HCQ!E142+HOV!E142+HILL!E142 -> 1037 | G142: =HLS!F140+HCQ!F142+HOV!F142+HILL!F142 -> 586 | H142: =HLS!G140+HCQ!G142+HOV!G142+HILL!G142 -> 982 | I142: =HLS!H140+HCQ!H142+HOV!H142+HILL!H142 -> 994 | J142: =HLS!I140+HCQ!I142+HOV!I142+HILL!I142 -> 831 | K142: =HLS!J140+HCQ!J142+HOV!J142+HILL!J142 -> 453 | R142: 4883
B143: 09219213 | D143: INGRESOS A TRATAMIENTO | F143: =HLS!E141+HCQ!E143+HOV!E143+HILL!E143 -> 181 | G143: =HLS!F141+HCQ!F143+HOV!F143+HILL!F143 -> 245 | H143: =HLS!G141+HCQ!G143+HOV!G143+HILL!G143 -> 175 | I143: =HLS!H141+HCQ!H143+HOV!H143+HILL!H143 -> 214 | J143: =HLS!I141+HCQ!I143+HOV!I143+HILL!I143 -> 180 | K143: =HLS!J141+HCQ!J143+HOV!J143+HILL!J143 -> 96 | R143: 1091
B144: 09219313 | D144: ALTAS DE TRATAMIENTO | F144: =HLS!E142+HCQ!E144+HOV!E144+HILL!E144 -> 169 | G144: =HLS!F142+HCQ!F144+HOV!F144+HILL!F144 -> 91 | H144: =HLS!G142+HCQ!G144+HOV!G144+HILL!G144 -> 213 | I144: =HLS!H142+HCQ!H144+HOV!H144+HILL!H144 -> 185 | J144: =HLS!I142+HCQ!I144+HOV!I144+HILL!I144 -> 217 | K144: =HLS!J142+HCQ!J144+HOV!J144+HILL!J144 -> 93 | R144: 968
B145: 09600335 | D145: CONTROL DE ESPECIALIDAD POST ALTA | F145: =HLS!E143+HCQ!E145+HOV!E145+HILL!E145 -> 107 | G145: =HLS!F143+HCQ!F145+HOV!F145+HILL!F145 -> 40 | H145: =HLS!G143+HCQ!G145+HOV!G145+HILL!G145 -> 54 | I145: =HLS!H143+HCQ!H145+HOV!H145+HILL!H145 -> 65 | J145: =HLS!I143+HCQ!I145+HOV!I145+HILL!I145 -> 77 | K145: =HLS!J143+HCQ!J145+HOV!J145+HILL!J145 -> 8 | R145: 351
B146: 09600186 | D146: ALTAS ADMINISTRATIVAS | F146: =HLS!E144+HCQ!E146+HOV!E146+HILL!E146 -> 0 | G146: =HLS!F144+HCQ!F146+HOV!F146+HILL!F146 -> 18 | H146: =HLS!G144+HCQ!G146+HOV!G146+HILL!G146 -> 1 | I146: =HLS!H144+HCQ!H146+HOV!H146+HILL!H146 -> 3 | J146: =HLS!I144+HCQ!I146+HOV!I146+HILL!I146 -> 1 | K146: =HLS!J144+HCQ!J146+HOV!J146+HILL!J146 -> 1 | R146: 24
B147: 09600187 | C147: REHABILITACIÓN: PRÓTESIS IMPLANTOASISTIDA | D147: CONSULTA NUEVA | F147: =HLS!E145+HCQ!E147+HOV!E147+HILL!E147 -> 4 | G147: =HLS!F145+HCQ!F147+HOV!F147+HILL!F147 -> 0 | H147: =HLS!G145+HCQ!G147+HOV!G147+HILL!G147 -> 9 | I147: =HLS!H145+HCQ!H147+HOV!H147+HILL!H147 -> 5 | J147: =HLS!I145+HCQ!I147+HOV!I147+HILL!I147 -> 6 | K147: =HLS!J145+HCQ!J147+HOV!J147+HILL!J147 -> 3 | R147: 27
B148: 09600188 | D148: CONTROL | F148: =HLS!E146+HCQ!E148+HOV!E148+HILL!E148 -> 34 | G148: =HLS!F146+HCQ!F148+HOV!F148+HILL!F148 -> 23 | H148: =HLS!G146+HCQ!G148+HOV!G148+HILL!G148 -> 47 | I148: =HLS!H146+HCQ!H148+HOV!H148+HILL!H148 -> 52 | J148: =HLS!I146+HCQ!I148+HOV!I148+HILL!I148 -> 54 | K148: =HLS!J146+HCQ!J148+HOV!J148+HILL!J148 -> 31 | R148: 241
B149: 09600189 | D149: INGRESOS A TRATAMIENTO | F149: =HLS!E147+HCQ!E149+HOV!E149+HILL!E149 -> 5 | G149: =HLS!F147+HCQ!F149+HOV!F149+HILL!F149 -> 0 | H149: =HLS!G147+HCQ!G149+HOV!G149+HILL!G149 -> 11 | I149: =HLS!H147+HCQ!H149+HOV!H149+HILL!H149 -> 7 | J149: =HLS!I147+HCQ!I149+HOV!I149+HILL!I149 -> 7 | K149: =HLS!J147+HCQ!J149+HOV!J149+HILL!J149 -> 5 | R149: 35
B150: 09600190 | D150: ALTAS DE TRATAMIENTO | F150: =HLS!E148+HCQ!E150+HOV!E150+HILL!E150 -> 5 | G150: =HLS!F148+HCQ!F150+HOV!F150+HILL!F150 -> 2 | H150: =HLS!G148+HCQ!G150+HOV!G150+HILL!G150 -> 5 | I150: =HLS!H148+HCQ!H150+HOV!H150+HILL!H150 -> 9 | J150: =HLS!I148+HCQ!I150+HOV!I150+HILL!I150 -> 10 | K150: =HLS!J148+HCQ!J150+HOV!J150+HILL!J150 -> 5 | R150: =SUM(F150:Q150) -> 36
B151: 09600336 | D151: CONTROL DE ESPECIALIDAD POST ALTA | F151: =HLS!E149+HCQ!E151+HOV!E151+HILL!E151 -> 7 | G151: =HLS!F149+HCQ!F151+HOV!F151+HILL!F151 -> 1 | H151: =HLS!G149+HCQ!G151+HOV!G151+HILL!G151 -> 4 | I151: =HLS!H149+HCQ!H151+HOV!H151+HILL!H151 -> 5 | J151: =HLS!I149+HCQ!I151+HOV!I151+HILL!I151 -> 2 | K151: =HLS!J149+HCQ!J151+HOV!J151+HILL!J151 -> 4 | R151: 23
B152: 09600191 | D152: ALTAS ADMINISTRATIVAS | F152: =HLS!E150+HCQ!E152+HOV!E152+HILL!E152 -> 0 | G152: =HLS!F150+HCQ!F152+HOV!F152+HILL!F152 -> 0 | H152: =HLS!G150+HCQ!G152+HOV!G152+HILL!G152 -> 0 | I152: =HLS!H150+HCQ!H152+HOV!H152+HILL!H152 -> 0 | J152: =HLS!I150+HCQ!I152+HOV!I152+HILL!I152 -> 0 | K152: =HLS!J150+HCQ!J152+HOV!J152+HILL!J152 -> 0 | R152: 0
B153: 09600192 | C153: IMPLANTOLOGÍA BUCO MAXILOFACIAL | D153: CONSULTA NUEVA | F153: =HLS!E151+HCQ!E153+HOV!E153+HILL!E153 -> 29 | G153: =HLS!F151+HCQ!F153+HOV!F153+HILL!F153 -> 14 | H153: =HLS!G151+HCQ!G153+HOV!G153+HILL!G153 -> 47 | I153: =HLS!H151+HCQ!H153+HOV!H153+HILL!H153 -> 29 | J153: =HLS!I151+HCQ!I153+HOV!I153+HILL!I153 -> 33 | K153: =HLS!J151+HCQ!J153+HOV!J153+HILL!J153 -> 65 | R153: 217
B154: 09600193 | D154: CONTROL | F154: =HLS!E152+HCQ!E154+HOV!E154+HILL!E154 -> 83 | G154: =HLS!F152+HCQ!F154+HOV!F154+HILL!F154 -> 31 | H154: =HLS!G152+HCQ!G154+HOV!G154+HILL!G154 -> 130 | I154: =HLS!H152+HCQ!H154+HOV!H154+HILL!H154 -> 117 | J154: =HLS!I152+HCQ!I154+HOV!I154+HILL!I154 -> 122 | K154: =HLS!J152+HCQ!J154+HOV!J154+HILL!J154 -> 142 | R154: 625
B155: 09309000 | D155: INGRESOS A TRATAMIENTO | F155: =HLS!E153+HCQ!E155+HOV!E155+HILL!E155 -> 16 | G155: =HLS!F153+HCQ!F155+HOV!F155+HILL!F155 -> 15 | H155: =HLS!G153+HCQ!G155+HOV!G155+HILL!G155 -> 10 | I155: =HLS!H153+HCQ!H155+HOV!H155+HILL!H155 -> 13 | J155: =HLS!I153+HCQ!I155+HOV!I155+HILL!I155 -> 24 | K155: =HLS!J153+HCQ!J155+HOV!J155+HILL!J155 -> 19 | R155: 97
B156: 09309050 | D156: ALTAS DE TRATAMIENTO | F156: =HLS!E154+HCQ!E156+HOV!E156+HILL!E156 -> 10 | G156: =HLS!F154+HCQ!F156+HOV!F156+HILL!F156 -> 3 | H156: =HLS!G154+HCQ!G156+HOV!G156+HILL!G156 -> 16 | I156: =HLS!H154+HCQ!H156+HOV!H156+HILL!H156 -> 22 | J156: =HLS!I154+HCQ!I156+HOV!I156+HILL!I156 -> 25 | K156: =HLS!J154+HCQ!J156+HOV!J156+HILL!J156 -> 49 | R156: 125
B157: 09600337 | D157: CONTROL DE ESPECIALIDAD POST ALTA | F157: =HLS!E155+HCQ!E157+HOV!E157+HILL!E157 -> 8 | G157: =HLS!F155+HCQ!F157+HOV!F157+HILL!F157 -> 6 | H157: =HLS!G155+HCQ!G157+HOV!G157+HILL!G157 -> 19 | I157: =HLS!H155+HCQ!H157+HOV!H157+HILL!H157 -> 21 | J157: =HLS!I155+HCQ!I157+HOV!I157+HILL!I157 -> 16 | K157: =HLS!J155+HCQ!J157+HOV!J157+HILL!J157 -> 26 | R157: 96
B158: 09600194 | D158: ALTAS ADMINISTRATIVAS | F158: =HLS!E156+HCQ!E158+HOV!E158+HILL!E158 -> 0 | G158: =HLS!F156+HCQ!F158+HOV!F158+HILL!F158 -> 1 | H158: =HLS!G156+HCQ!G158+HOV!G158+HILL!G158 -> 0 | I158: =HLS!H156+HCQ!H158+HOV!H158+HILL!H158 -> 0 | J158: =HLS!I156+HCQ!I158+HOV!I158+HILL!I158 -> 0 | K158: =HLS!J156+HCQ!J158+HOV!J158+HILL!J158 -> 0 | R158: 1
B159: 09600195 | C159: PATOLOGÍA ORAL | D159: CONSULTA NUEVA | F159: =HLS!E157+HCQ!E159+HOV!E159+HILL!E159 -> 0 | G159: =HLS!F157+HCQ!F159+HOV!F159+HILL!F159 -> 0 | H159: =HLS!G157+HCQ!G159+HOV!G159+HILL!G159 -> 0 | I159: =HLS!H157+HCQ!H159+HOV!H159+HILL!H159 -> 0 | J159: =HLS!I157+HCQ!I159+HOV!I159+HILL!I159 -> 0 | K159: =HLS!J157+HCQ!J159+HOV!J159+HILL!J159 -> 0 | R159: 0
B160: 09600196 | D160: CONTROL | F160: =HLS!E158+HCQ!E160+HOV!E160+HILL!E160 -> 0 | G160: =HLS!F158+HCQ!F160+HOV!F160+HILL!F160 -> 0 | H160: =HLS!G158+HCQ!G160+HOV!G160+HILL!G160 -> 0 | I160: =HLS!H158+HCQ!H160+HOV!H160+HILL!H160 -> 0 | J160: =HLS!I158+HCQ!I160+HOV!I160+HILL!I160 -> 0 | K160: =HLS!J158+HCQ!J160+HOV!J160+HILL!J160 -> 0 | R160: 0
B161: 09309200 | D161: INGRESOS A TRATAMIENTO | F161: =HLS!E159+HCQ!E161+HOV!E161+HILL!E161 -> 0 | G161: =HLS!F159+HCQ!F161+HOV!F161+HILL!F161 -> 0 | H161: =HLS!G159+HCQ!G161+HOV!G161+HILL!G161 -> 0 | I161: =HLS!H159+HCQ!H161+HOV!H161+HILL!H161 -> 0 | J161: =HLS!I159+HCQ!I161+HOV!I161+HILL!I161 -> 0 | K161: =HLS!J159+HCQ!J161+HOV!J161+HILL!J161 -> 0 | R161: 0
B162: 09309250 | D162: ALTAS DE TRATAMIENTO | F162: =HLS!E160+HCQ!E162+HOV!E162+HILL!E162 -> 0 | G162: =HLS!F160+HCQ!F162+HOV!F162+HILL!F162 -> 0 | H162: =HLS!G160+HCQ!G162+HOV!G162+HILL!G162 -> 0 | I162: =HLS!H160+HCQ!H162+HOV!H162+HILL!H162 -> 0 | J162: =HLS!I160+HCQ!I162+HOV!I162+HILL!I162 -> 0 | K162: =HLS!J160+HCQ!J162+HOV!J162+HILL!J162 -> 0 | R162: 0
B163: 09600338 | D163: CONTROL DE ESPECIALIDAD POST ALTA | F163: =HLS!E161+HCQ!E163+HOV!E163+HILL!E163 -> 0 | G163: =HLS!F161+HCQ!F163+HOV!F163+HILL!F163 -> 0 | H163: =HLS!G161+HCQ!G163+HOV!G163+HILL!G163 -> 0 | I163: =HLS!H161+HCQ!H163+HOV!H163+HILL!H163 -> 0 | J163: =HLS!I161+HCQ!I163+HOV!I163+HILL!I163 -> 0 | K163: =HLS!J161+HCQ!J163+HOV!J163+HILL!J163 -> 0 | R163: 0
B164: 09600197 | D164: ALTAS ADMINISTRATIVAS | F164: =HLS!E162+HCQ!E164+HOV!E164+HILL!E164 -> 0 | G164: =HLS!F162+HCQ!F164+HOV!F164+HILL!F164 -> 0 | H164: =HLS!G162+HCQ!G164+HOV!G164+HILL!G164 -> 0 | I164: =HLS!H162+HCQ!H164+HOV!H164+HILL!H164 -> 0 | J164: =HLS!I162+HCQ!I164+HOV!I164+HILL!I164 -> 0 | K164: =HLS!J162+HCQ!J164+HOV!J164+HILL!J164 -> 0 | R164: 0
B165: 09600198 | C165: TRASTORNOS TEMPOROMANDIBULARES Y DOLOR OROFACIAL | D165: CONSULTA NUEVA | F165: =HLS!E163+HCQ!E165+HOV!E165+HILL!E165 -> 35 | G165: =HLS!F163+HCQ!F165+HOV!F165+HILL!F165 -> 22 | H165: =HLS!G163+HCQ!G165+HOV!G165+HILL!G165 -> 34 | I165: =HLS!H163+HCQ!H165+HOV!H165+HILL!H165 -> 46 | J165: =HLS!I163+HCQ!I165+HOV!I165+HILL!I165 -> 44 | K165: =HLS!J163+HCQ!J165+HOV!J165+HILL!J165 -> 97 | R165: 278
B166: 09600199 | D166: CONTROL | F166: =HLS!E164+HCQ!E166+HOV!E166+HILL!E166 -> 218 | G166: =HLS!F164+HCQ!F166+HOV!F166+HILL!F166 -> 119 | H166: =HLS!G164+HCQ!G166+HOV!G166+HILL!G166 -> 161 | I166: =HLS!H164+HCQ!H166+HOV!H166+HILL!H166 -> 171 | J166: =HLS!I164+HCQ!I166+HOV!I166+HILL!I166 -> 181 | K166: =HLS!J164+HCQ!J166+HOV!J166+HILL!J166 -> 307 | R166: 1157
B167: 09240500 | D167: INGRESOS A TRATAMIENTO | F167: =HLS!E165+HCQ!E167+HOV!E167+HILL!E167 -> 37 | G167: =HLS!F165+HCQ!F167+HOV!F167+HILL!F167 -> 23 | H167: =HLS!G165+HCQ!G167+HOV!G167+HILL!G167 -> 34 | I167: =HLS!H165+HCQ!H167+HOV!H167+HILL!H167 -> 42 | J167: =HLS!I165+HCQ!I167+HOV!I167+HILL!I167 -> 45 | K167: =HLS!J165+HCQ!J167+HOV!J167+HILL!J167 -> 65 | R167: 246
B168: 09240600 | D168: ALTAS DE TRATAMIENTO | F168: =HLS!E166+HCQ!E168+HOV!E168+HILL!E168 -> 21 | G168: =HLS!F166+HCQ!F168+HOV!F168+HILL!F168 -> 21 | H168: =HLS!G166+HCQ!G168+HOV!G168+HILL!G168 -> 31 | I168: =HLS!H166+HCQ!H168+HOV!H168+HILL!H168 -> 40 | J168: =HLS!I166+HCQ!I168+HOV!I168+HILL!I168 -> 56 | K168: =HLS!J166+HCQ!J168+HOV!J168+HILL!J168 -> 87 | R168: 256
B169: 09600339 | D169: CONTROL DE ESPECIALIDAD POST ALTA | F169: =HLS!E167+HCQ!E169+HOV!E169+HILL!E169 -> 0 | G169: =HLS!F167+HCQ!F169+HOV!F169+HILL!F169 -> 4 | H169: =HLS!G167+HCQ!G169+HOV!G169+HILL!G169 -> 1 | I169: =HLS!H167+HCQ!H169+HOV!H169+HILL!H169 -> 0 | J169: =HLS!I167+HCQ!I169+HOV!I169+HILL!I169 -> 0 | K169: =HLS!J167+HCQ!J169+HOV!J169+HILL!J169 -> 0 | R169: 5
B170: 09600200 | D170: ALTAS ADMINISTRATIVAS | F170: =HLS!E168+HCQ!E170+HOV!E170+HILL!E170 -> 0 | G170: =HLS!F168+HCQ!F170+HOV!F170+HILL!F170 -> 0 | H170: =HLS!G168+HCQ!G170+HOV!G170+HILL!G170 -> 0 | I170: =HLS!H168+HCQ!H170+HOV!H170+HILL!H170 -> 0 | J170: =HLS!I168+HCQ!I170+HOV!I170+HILL!I170 -> 0 | K170: =HLS!J168+HCQ!J170+HOV!J170+HILL!J170 -> 0 | R170: =SUM(F170:Q170) -> 0
C171: TOTAL | D171: CONSULTA NUEVA | F171: =F87+F93+F99+F105+F111+F117+F123+F129+F135+F141+F147+F153+F159+F165 -> 1165 | G171: =G87+G93+G99+G105+G111+G117+G123+G129+G135+G141+G147+G153+G159+G165 -> 752 | H171: 1351 | I171: 1200 | J171: 1399 | K171: 1464 | L171: 0 | M171: 0 | N171: 0 | O171: 0 | P171: 0 | Q171: 0 | R171: =SUM(F171:Q171) -> 7331
D172: CONTROL | F172: =F88+F94+F100+F106+F112+F118+F124+F130+F136+F142+F148+F154+F160+F166 -> 4425 | G172: 2913 | H172: 4937 | I172: 4588 | J172: 5170 | K172: 4455 | L172: 0 | M172: 0 | N172: 0 | O172: 0 | P172: 0 | Q172: 0 | R172: =SUM(F172:Q172) -> 26488
D173: INGRESOS A TRATAMIENTO | F173: 962 | G173: 963 | H173: 1077 | I173: 1101 | J173: 1200 | K173: 1091 | L173: 0 | M173: 0 | N173: 0 | O173: 0 | P173: 0 | Q173: 0 | R173: 6394
D174: ALTAS DE TRATAMIENTO | F174: 789 | G174: 528 | H174: 935 | I174: 922 | J174: 1066 | K174: 1023 | L174: 0 | M174: 0 | N174: 0 | O174: 0 | P174: 0 | Q174: 0 | R174: 5263
D175: CONTROL DE ESPECIALIDAD POST ALTA | F175: 295 | G175: 211 | H175: 274 | I175: 288 | J175: 365 | K175: 354 | L175: 0 | M175: 0 | N175: 0 | O175: 0 | P175: 0 | Q175: 0 | R175: 1787
D176: ALTAS ADMINISTRATIVAS | F176: 8 | G176: 39 | H176: 7 | I176: 13 | J176: 11 | K176: 19 | L176: 0 | M176: 0 | N176: 0 | O176: 0 | P176: 0 | Q176: 0 | R176: 97
C177: Fuente: REM A09, Sección F, F1, I

Sheet HLS
A1: MINISTERIO DE SALUD
A2: SERVICIO DE SALUD COQUIMBO
A3: DEPARTAMENTO DE GESTIÓN, PLANIFICACIÓN Y CONTROL
A4: SUBDEPTO. DE ESTADÍSTICAS Y GESTIÓN DE LA INFORMACIÓN
A5: AÑO 2022
B6: INDICADOR 2.3: Porcentaje de cumplimiento de la programación de horas de consultas nuevas, tratamientos y procedimientos imagenológicos realizados por profesionales Cirujanos Dentista.
C11: ACTIVIDADES DE ESPECIALIDADES | E11: Enero | F11: Febrero | G11: Marzo | H11: Abril | I11: Mayo | J11: Junio | K11: Julio | L11: Agosto | M11: Septiembre | N11: Octubre | O11: Noviembre | P11: Diciembre | Q11: Total
C12: EXAMEN Y DIAGNÓSTICO DE ESPECIALIDAD | E12: 853 | F12: 545 | G12: 839 | H12: 658 | I12: 757 | J12: 766 | K12: 746 | L12: 668 | M12: 407 | N12: 715 | O12: 774 | P12: 562 | Q12: =SUM(E12:P12) -> 8290
C13: EDUCACIÓN EN SALUD BUCAL | E13: 233 | F13: 83 | G13: 295 | H13: 214 | I13: 283 | J13: 160 | K13: 250 | L13: 349 | M13: 72 | N13: 301 | O13: 292 | P13: 269 | Q13: =SUM(E13:P13) -> 2801
C14: RESPUESTA A INTERCONSULTA PERSONAS HOSPITALIZADOS | E14: 38 | F14: 26 | G14: 61 | H14: 24 | I14: 35 | J14: 18 | K14: 22 | L14: 37 | M14: 20 | N14: 18 | O14: 29 | P14: 21 | Q14: 349
C15: VISITA A SALA | E15: 0 | F15: 0 | G15: 3 | H15: 0 | I15: 5 | J15: 0 | K15: 4 | L15: 12 | M15: 2 | N15: 4 | O15: 12 | P15: 1 | Q15: 43
C16: CONTRALORÍA CLÍNICA | E16: 0 | F16: 0 | G16: 0 | H16: 0 | I16: 0 | J16: 0 | K16: 0 | L16: 0 | M16: 0 | N16: 0 | O16: 0 | P16: 0 | Q16: 0
C17: CIRUGÍA TERCER MOLAR | E17: 43 | F17: 49 | G17: 79 | H17: 66 | I17: 52 | J17: 65 | K17: 54 | L17: 67 | M17: 65 | N17: 94 | O17: 66 | P17: 99 | Q17: 799
C18: CIRUGÍA MENOR AMBULATORIA | E18: 91 | F18: 106 | G18: 125 | H18: 93 | I18: 133 | J18: 101 | K18: 81 | L18: 98 | M18: 78 | N18: 96 | O18: 86 | P18: 83 | Q18: 1171
C19: CIRUGÍA MAYOR AMBULATORIA | E19: 3 | F19: 2 | G19: 6 | H19: 4 | I19: 7 | J19: 2 | K19: 1 | L19: 4 | M19: 1 | N19: 5 | O19: 7 | P19: 8 | Q19: 50
C20: TRATAMIENTO TRAUMATISMO DENTOALVEOLAR | E20: 6 | F20: 7 | G20: 10 | H20: 23 | I20: 18 | J20: 7 | K20: 7 | L20: 16 | M20: 13 | N20: 9 | O20: 21 | P20: 11 | Q20: 148
C21: OBTURACIÓN DIRECTA | E21: 157 | F21: 91 | G21: 187 | H21: 152 | I21: 196 | J21: 138 | K21: 151 | L21: 130 | M21: 131 | N21: 146 | O21: 201 | P21: 226 | Q21: 1906
C22: OBTURACIÓN INDIRECTA (INLAYS U ONLAYS) | E22: 2 | F22: 3 | G22: 5 | H22: 1 | I22: 1 | J22: 3 | K22: 0 | L22: 0 | M22: 0 | N22: 0 | O22: 4 | P22: 5 | Q22: 24
C23: INSTALACIÓN APARATO REMOVIBLE ORTODÓNCICO | E23: 36 | F23: 6 | G23: 28 | H23: 35 | I23: 33 | J23: 23 | K23: 26 | L23: 17 | M23: 2 | N23: 20 | O23: 19 | P23: 18 | Q23: 263
C24: INSTALACIÓN APARATO FIJO ORTODÓNCICO | E24: 29 | F24: 2 | G24: 36 | H24: 35 | I24: 16 | J24: 11 | K24: 42 | L24: 22 | M24: 13 | N24: 15 | O24: 19 | P24: 20 | Q24: 260
C25: INSTALACIÓN APARATO DE CONTENCIÓN ORTODÓNCICO | E25: 7 | F25: 2 | G25: 8 | H25: 5 | I25: 10 | J25: 6 | K25: 16 | L25: 13 | M25: 3 | N25: 17 | O25: 17 | P25: 4 | Q25: 108
C26: RETIRO APARATOLOGÍA DE ORTODONCIA | E26: 21 | F26: 8 | G26: 8 | H26: 10 | I26: 16 | J26: 6 | K26: 17 | L26: 16 | M26: 2 | N26: 29 | O26: 16 | P26: 3 | Q26: 152
C27: ORTOPEDIA PREQUIRÚRGICA | E27: 0 | F27: 0 | G27: 0 | H27: 0 | I27: 0 | J27: 0 | K27: 0 | L27: 0 | M27: 0 | N27: 0 | O27: 0 | P27: 0 | Q27: 0
C28: ORTODONCIA PREVENTIVA E INTERCEPTIVA (OPI) | E28: 7 | F28: 3 | G28: 7 | H28: 7 | I28: 18 | J28: 6 | K28: 9 | L28: 11 | M28: 9 | N28: 7 | O28: 16 | P28: 21 | Q28: 121
C29: TRATAMIENTO ENDODONCIA UNIRRADICULAR | E29: 18 | F29: 14 | G29: 26 | H29: 6 | I29: 20 | J29: 20 | K29: 18 | L29: 14 | M29: 9 | N29: 13 | O29: 5 | P29: 8 | Q29: 171
C30: TRATAMIENTO ENDODONCIA BIRRADICULAR | E30: 13 | F30: 7 | G30: 16 | H30: 13 | I30: 14 | J30: 12 | K30: 18 | L30: 15 | M30: 15 | N30: 14 | O30: 20 | P30: 17 | Q30: 174
C31: TRATAMIENTO ENDODONCIA MULTIRRADICULAR | E31: 34 | F31: 15 | G31: 33 | H31: 25 | I31: 34 | J31: 23 | K31: 27 | L31: 32 | M31: 30 | N31: 49 | O31: 35 | P31: 29 | Q31: 366
C32: INDUCCIÓN AL CIERRE APICAL | E32: 0 | F32: 2 | G32: 1 | H32: 2 | I32: 1 | J32: 1 | K32: 1 | L32: 1 | M32: 0 | N32: 2 | O32: 0 | P32: 2 | Q32: 13
C33: RETRATAMIENTO DE ENDODONCIA | E33: 0 | F33: 0 | G33: 0 | H33: 0 | I33: 1 | J33: 0 | K33: 0 | L33: 0 | M33: 0 | N33: 0 | O33: 0 | P33: 1 | Q33: 2
C34: CIRUGÍA APICAL | E34: 0 | F34: 1 | G34: 1 | H34: 0 | I34: 2 | J34: 0 | K34: 1 | L34: 0 | M34: 0 | N34: 0 | O34: 2 | P34: 0 | Q34: 7
C35: ADAPTACIÓN A LA ATENCIÓN ODONTOLÓGICA | E35: 142 | F35: 102 | G35: 157 | H35: 114 | I35: 169 | J35: 120 | K35: 153 | L35: 78 | M35: 137 | N35: 113 | O35: 166 | P35: 143 | Q35: 1594
C36: PROCEDIMIENTO RESTAURADOR (ODONTOPEDIATRÍA) | E36: 96 | F36: 60 | G36: 108 | H36: 92 | I36: 104 | J36: 79 | K36: 85 | L36: 72 | M36: 75 | N36: 91 | O36: 112 | P36: 107 | Q36: 1081
C37: PROCEDIMIENTO PULPAR (ODONTOPEDIATRÍA) | E37: 17 | F37: 7 | G37: 14 | H37: 7 | I37: 13 | J37: 12 | K37: 21 | L37: 3 | M37: 12 | N37: 11 | O37: 26 | P37: 10 | Q37: 153
C38: CIRUGÍA AMBULATORIA (ODONTOPEDIATRÍA) | E38: 7 | F38: 4 | G38: 5 | H38: 7 | I38: 7 | J38: 7 | K38: 6 | L38: 11 | M38: 9 | N38: 9 | O38: 9 | P38: 6 | Q38: 87
C39: DESTARTRAJE SUBGINGIVAL O PULIDO RADICULAR | E39: 794 | F39: 455 | G39: 918 | H39: 391 | I39: 638 | J39: 773 | K39: 519 | L39: 944 | M39: 529 | N39: 616 | O39: 739 | P39: 589 | Q39: 7905
C40: DESTARTRAJE SUPRAGINGIVAL O PULIDO CORONARIO | E40: 69 | F40: 38 | G40: 58 | H40: 27 | I40: 80 | J40: 53 | K40: 56 | L40: 96 | M40: 65 | N40: 64 | O40: 82 | P40: 68 | Q40: 756
C41: PROCEDIMIENTO QUIRÚRGICO (PERIODONCIA) | E41: 0 | F41: 0 | G41: 0 | H41: 0 | I41: 0 | J41: 1 | K41: 0 | L41: 1 | M41: 1 | N41: 0 | O41: 0 | P41: 0 | Q41: 3
C42: PROCEDIMIENTO QUIRÚRGICO PERIIMPLANTAR (PERIODONCIA) | E42: 0 | F42: 0 | G42: 0 | H42: 0 | I42: 0 | J42: 0 | K42: 0 | L42: 0 | M42: 0 | N42: 0 | O42: 0 | P42: 0 | Q42: 0
C43: FERULIZACIÓN | E43: 0 | F43: 0 | G43: 0 | H43: 0 | I43: 0 | J43: 0 | K43: 0 | L43: 0 | M43: 1 | N43: 0 | O43: 1 | P43: 0 | Q43: 2
C44: REHABILITACIÓN MEDIANTE PRÓTESIS REMOVIBLE ACRÍLICA PARCIAL O TOTAL | E44: 472 | F44: 306 | G44: 593 | H44: 636 | I44: 528 | J44: 476 | K44: 255 | L44: 562 | M44: 492 | N44: 453 | O44: 471 | P44: 296 | Q44: 5540
C45: REHABILITACIÓN MEDIANTE PRÓTESIS REMOVIBLE METÁLICA PARCIAL | E45: 0 | F45: 1 | G45: 2 | H45: 0 | I45: 10 | J45: 0 | K45: 0 | L45: 0 | M45: 2 | N45: 2 | O45: 2 | P45: 0 | Q45: 19
C46: REHABILITACIÓN MEDIANTE PRÓTESIS FIJA UNITARIA O PLURAL | E46: 0 | F46: 2 | G46: 4 | H46: 5 | I46: 5 | J46: 3 | K46: 3 | L46: 7 | M46: 3 | N46: 3 | O46: 0 | P46: 1 | Q46: 36
C47: REHABILITACIÓN MEDIANTE PRÓTESIS FIJA IMPLANTOASISTIDA | E47: 2 | F47: 2 | G47: 2 | H47: 6 | I47: 5 | J47: 1 | K47: 1 | L47: 2 | M47: 2 | N47: 0 | O47: 3 | P47: 3 | Q47: 29
C48: REHABILITACIÓN MEDIANTE PRÓTESIS MUCO- IMPLANTOASISTIDA | E48: 2 | F48: 0 | G48: 1 | H48: 4 | I48: 1 | J48: 0 | K48: 0 | L48: 1 | M48: 0 | N48: 0 | O48: 0 | P48: 0 | Q48: 9
C49: REPARACIÓN DE PRÓTESIS | E49: 197 | F49: 115 | G49: 170 | H49: 245 | I49: 277 | J49: 186 | K49: 129 | L49: 238 | M49: 232 | N49: 231 | O49: 208 | P49: 121 | Q49: 2349
C50: IMPLANTOLOGÍA QUIRÚRGICA | E50: 5 | F50: 1 | G50: 3 | H50: 2 | I50: 2 | J50: 2 | K50: 0 | L50: 5 | M50: 2 | N50: 3 | O50: 1 | P50: 3 | Q50: 29
C51: TOMA DE BIOPSIA | E51: 0 | F51: 0 | G51: 0 | H51: 0 | I51: 0 | J51: 1 | K51: 0 | L51: 1 | M51: 1 | N51: 0 | O51: 2 | P51: 0 | Q51: 5
C52: ESTUDIO HISTOPATOLÓGICO | E52: 0 | F52: 0 | G52: 0 | H52: 0 | I52: 0 | J52: 0 | K52: 0 | L52: 0 | M52: 0 | N52: 0 | O52: 0 | P52: 0 | Q52: 0
C53: SIALOMETRÍA | E53: 0 | F53: 0 | G53: 0 | H53: 0 | I53: 0 | J53: 0 | K53: 0 | L53: 0 | M53: 0 | N53: 0 | O53: 0 | P53: 0 | Q53: 0
C54: TERAPIA FARMACOLÓGICA DE LESIONES DEL TERRITORIO ORAL Y MAXILOFACIAL | E54: 126 | F54: 100 | G54: 129 | H54: 108 | I54: 103 | J54: 78 | K54: 50 | L54: 77 | M54: 53 | N54: 56 | O54: 75 | P54: 86 | Q54: 1041
C55: TERAPIA NO FARMACOLÓGICA DE LESIONES DEL TERRITORIO ORAL Y MAXILOFACIAL | E55: 462 | F55: 421 | G55: 659 | H55: 593 | I55: 669 | J55: 657 | K55: 402 | L55: 730 | M55: 620 | N55: 558 | O55: 625 | P55: 571 | Q55: 6967
C56: ESTUDIO CLÍNICO LESIONES DEL TERRITORIO ORAL MAXILOFACIAL | E56: 122 | F56: 42 | G56: 89 | H56: 84 | I56: 124 | J56: 109 | K56: 83 | L56: 59 | M56: 98 | N56: 107 | O56: 144 | P56: 128 | Q56: 1189
C57: TERAPIA FÍSICA EN TRASTORNOS TEMPOROMANDIBULARES (TTM) Y DOLOR OROFACIAL (DOF) | E57: 21 | F57: 24 | G57: 23 | H57: 32 | I57: 35 | J57: 33 | K57: 21 | L57: 27 | M57: 28 | N57: 36 | O57: 16 | P57: 17 | Q57: 313
C58: INFILTRACIÓN EN ARTICULACIÓN TEMPORO MANDIBULAR (ATM) | E58: 4 | F58: 1 | G58: 1 | H58: 3 | I58: 1 | J58: 2 | K58: 0 | L58: 3 | M58: 1 | N58: 0 | O58: 2 | P58: 2 | Q58: 20
C59: BLOQUEO ANESTÉSICO Y/O MEDICAMENTOSO EN TTM Y DOF | E59: 13 | F59: 12 | G59: 14 | H59: 12 | I59: 9 | J59: 18 | K59: 5 | L59: 8 | M59: 14 | N59: 13 | O59: 8 | P59: 4 | Q59: 130
C60: ARTROCENTESIS EN ATM | E60: 4 | F60: 1 | G60: 1 | H60: 3 | I60: 2 | J60: 2 | K60: 0 | L60: 3 | M60: 1 | N60: 0 | O60: 2 | P60: 2 | Q60: 21
C61: TERAPIA BIOCONDUCTUAL | E61: 25 | F61: 31 | G61: 27 | H61: 36 | I61: 38 | J61: 36 | K61: 25 | L61: 32 | M61: 33 | N61: 37 | O61: 16 | P61: 18 | Q61: 354
C62: DESGASTE SELECTIVO | E62: 22 | F62: 8 | G62: 9 | H62: 9 | I62: 23 | J62: 17 | K62: 18 | L62: 20 | M62: 23 | N62: 14 | O62: 12 | P62: 13 | Q62: 188
C63: INSTALACIÓN DE DISPOSITIVO ORTOPÉDICO | E63: 7 | F63: 2 | G63: 5 | H63: 5 | I63: 9 | J63: 8 | K63: 6 | L63: 5 | M63: 11 | N63: 2 | O63: 0 | P63: 3 | Q63: 63
C64: ACTIVIDADES SOMATOPRÓTESIS | E64: 6 | F64: 1 | G64: 5 | H64: 5 | I64: 4 | J64: 3 | K64: 1 | L64: 4 | M64: 4 | N64: 2 | O64: 0 | P64: 3 | Q64: 38
C65: REHABILITACIÓN DE PRÓTESIS MAXILOFACIAL | E65: 1 | F65: 0 | G65: 1 | H65: 1 | I65: 0 | J65: 0 | K65: 0 | L65: 0 | M65: 1 | N65: 0 | O65: 0 | P65: 0 | Q65: 4
C66: TOTAL | E66: =SUM(E12:E65) -> 4207 | F66: =SUM(F12:F65) -> 2708 | G66: 4772 | H66: 3800 | I66: 4508 | J66: 4045 | K66: 3330 | L66: 4511 | M66: 3322 | N66: 3975 | O66: 4363 | P66: 3602 | Q66: 47143
C69: ACTIVIDADES DE ESPECIALIDADES | E69: Enero | F69: Febrero | G69: Marzo | H69: Abril | I69: Mayo | J69: Junio | K69: Julio | L69: Agosto | M69: Septiembre | N69: Octubre | O69: Noviembre | P69: Diciembre | Q69: Total
C70: RADIOGRAFÍA INTRAORAL MEDIANTE TÉCNICAS RETROALVEOLARES (POR PLACA) | E70: 241 | F70: 181 | G70: 329 | H70: 213 | I70: 287 | J70: 224 | K70: 217 | L70: 235 | M70: 207 | N70: 228 | O70: 261 | P70: 283 | Q70: =SUM(E70:P70) -> 2906
C71: RADIOGRAFÍA INTRAORAL MEDIANTE TÉCNICAS BITE WING (POR PLACA) | E71: 2 | F71: 0 | G71: 0 | H71: 0 | I71: 0 | J71: 0 | K71: 0 | L71: 0 | M71: 0 | N71: 0 | O71: 47 | P71: 23 | Q71: =SUM(E71:P71) -> 72
C72: RADIOGRAFÍA EXTRAORAL (POR PLACA) | E72: 0 | F72: 0 | G72: 0 | H72: 0 | I72: 0 | J72: 0 | K72: 0 | L72: 0 | M72: 0 | N72: 0 | O72: 0 | P72: 0 | Q72: 0
C73: RADIOGRAFÍA OCLUSAL (POR PLACA) | E73: 0 | F73: 0 | G73: 0 | H73: 0 | I73: 0 | J73: 0 | K73: 0 | L73: 0 | M73: 0 | N73: 0 | O73: 4 | P73: 0 | Q73: 4
C74: TELERRADIOGRAFÍA (POR PLACA) | E74: 30 | F74: 25 | G74: 14 | H74: 0 | I74: 0 | J74: 0 | K74: 0 | L74: 0 | M74: 0 | N74: 0 | O74: 25 | P74: 19 | Q74: 113
C75: RADIOGRAFÍA PANORÁMICA (POR PLACA) | E75: 183 | F75: 111 | G75: 65 | H75: 0 | I75: 0 | J75: 0 | K75: 0 | L75: 0 | M75: 0 | N75: 0 | O75: 94 | P75: 65 | Q75: 518
C76: TOMOGRAFÍA COMPUTACIONAL MAXILO FACIAL CONE BEAM (POR ADQUISICIÓN) | E76: 32 | F76: 24 | G76: 20 | H76: 0 | I76: 0 | J76: 0 | K76: 0 | L76: 0 | M76: 0 | N76: 0 | O76: 46 | P76: 47 | Q76: 169
C77: SIALOGRAFÍAS (POR PROCEDIMIENTO) | E77: 0 | F77: 0 | G77: 0 | H77: 0 | I77: 0 | J77: 0 | K77: 0 | L77: 0 | M77: 0 | N77: 0 | O77: 0 | P77: 0 | Q77: 0
C78: PROCEDIMIENTO IMAGENOLÓGICO COMPLEJO (POR PROCEDIMIENTO) | E78: 0 | F78: 0 | G78: 0 | H78: 0 | I78: 0 | J78: 0 | K78: 0 | L78: 0 | M78: 0 | N78: 0 | O78: 0 | P78: 0 | Q78: 0
C79: TOTAL | E79: =SUM(E70:E78) -> 488 | F79: 341 | G79: 428 | H79: 213 | I79: 287 | J79: 224 | K79: 217 | L79: 235 | M79: 207 | N79: 228 | O79: 477 | P79: 437 | Q79: 3782
B82: ESPECIALIDAD Y TIPO DE INGRESO O EGRESO | C82: Tipo de Ingreso | E82: Enero | F82: Febrero | G82: Marzo | H82: Abril | I82: Mayo | J82: Junio | K82: Julio | L82: Agosto | M82: Septiembre | N82: Octubre | O82: Noviembre | P82: Diciembre | Q82: Total
B83: CONSULTAS DE URGENCIA | C83: CONSULTAS GES | E83: 48 | F83: 36 | G83: 37 | H83: 41 | I83: 38 | J83: 10 | K83: 18 | L83: 37 | M83: 17 | N83: 22 | O83: 22 | P83: 11 | Q83: =SUM(E83:P83) -> 337
C84: CONSULTA NO GES | E84: 27 | F84: 14 | G84: 16 | H84: 12 | I84: 11 | J84: 1 | K84: 12 | L84: 17 | M84: 2 | N84: 11 | O84: 3 | P84: 6 | Q84: =SUM(E84:P84) -> 132
B85: CIRUGÍA BUCAL | C85: CONSULTA NUEVA | E85: 16 | F85: 24 | G85: 25 | H85: 7 | I85: 36 | J85: 39 | K85: 36 | L85: 11 | M85: 45 | N85: 59 | O85: 59 | P85: 35 | Q85: 392
C86: CONTROL | E86: 75 | F86: 92 | G86: 75 | H86: 25 | I86: 89 | J86: 93 | K86: 104 | L86: 132 | M86: 76 | N86: 92 | O86: 118 | P86: 55 | Q86: 1026
C87: INGRESOS A TRATAMIENTO | E87: 15 | F87: 24 | G87: 25 | H87: 6 | I87: 37 | J87: 36 | K87: 37 | L87: 11 | M87: 45 | N87: 57 | O87: 56 | P87: 34 | Q87: 383
C88: ALTAS DE TRATAMIENTO | E88: 25 | F88: 20 | G88: 15 | H88: 8 | I88: 23 | J88: 19 | K88: 20 | L88: 15 | M88: 11 | N88: 25 | O88: 30 | P88: 16 | Q88: 227
C89: CONTROL DE ESPECIALIDAD POST ALTA | E89: 38 | F89: 46 | G89: 28 | H89: 12 | I89: 34 | J89: 40 | K89: 36 | L89: 41 | M89: 23 | N89: 26 | O89: 37 | P89: 18 | Q89: 379
C90: ALTAS ADMINISTRATIVAS | E90: 0 | F90: 0 | G90: 0 | H90: 0 | I90: 0 | J90: 0 | K90: 0 | L90: 0 | M90: 0 | N90: 0 | O90: 0 | P90: 0 | Q90: 0
B91: CIRUGÍA Y TRAUMATOLOGÍA MAXILOFACIAL | C91: CONSULTA NUEVA | E91: 45 | F91: 55 | G91: 53 | H91: 52 | I91: 61 | J91: 65 | K91: 42 | L91: 50 | M91: 67 | N91: 90 | O91: 90 | P91: 73 | Q91: 743
C92: CONTROL | E92: 120 | F92: 151 | G92: 210 | H92: 229 | I92: 193 | J92: 193 | K92: 136 | L92: 165 | M92: 140 | N92: 201 | O92: 208 | P92: 252 | Q92: 2198
C93: INGRESOS A TRATAMIENTO | E93: 35 | F93: 37 | G93: 41 | H93: 47 | I93: 49 | J93: 47 | K93: 34 | L93: 25 | M93: 25 | N93: 67 | O93: 87 | P93: 67 | Q93: 561
C94: ALTAS DE TRATAMIENTO | E94: 11 | F94: 34 | G94: 53 | H94: 54 | I94: 38 | J94: 40 | K94: 24 | L94: 33 | M94: 25 | N94: 33 | O94: 35 | P94: 49 | Q94: 429
C95: CONTROL DE ESPECIALIDAD POST ALTA | E95: 0 | F95: 0 | G95: 0 | H95: 0 | I95: 54 | J95: 70 | K95: 31 | L95: 62 | M95: 40 | N95: 46 | O95: 60 | P95: 77 | Q95: 440
C96: ALTAS ADMINISTRATIVAS | E96: 0 | F96: 0 | G96: 0 | H96: 0 | I96: 0 | J96: 0 | K96: 0 | L96: 1 | M96: 1 | N96: 0 | O96: 3 | P96: 2 | Q96: 7
B97: ENDODONCIA | C97: CONSULTA NUEVA | E97: 112 | F97: 88 | G97: 175 | H97: 124 | I97: 128 | J97: 139 | K97: 146 | L97: 104 | M97: 84 | N97: 82 | O97: 85 | P97: 66 | Q97: 1333
C98: CONTROL | E98: 189 | F98: 153 | G98: 251 | H98: 172 | I98: 246 | J98: 180 | K98: 216 | L98: 223 | M98: 187 | N98: 226 | O98: 198 | P98: 190 | Q98: 2431
C99: INGRESOS A TRATAMIENTO | E99: 89 | F99: 64 | G99: 127 | H99: 98 | I99: 98 | J99: 101 | K99: 130 | L99: 83 | M99: 70 | N99: 64 | O99: 73 | P99: 61 | Q99: 1058
C100: ALTAS DE TRATAMIENTO | E100: 71 | F100: 41 | G100: 87 | H100: 48 | I100: 80 | J100: 62 | K100: 75 | L100: 62 | M100: 58 | N100: 89 | O100: 68 | P100: 66 | Q100: 807
C101: CONTROL DE ESPECIALIDAD POST ALTA | E101: 0 | F101: 0 | G101: 0 | H101: 0 | I101: 0 | J101: 0 | K101: 0 | L101: 0 | M101: 0 | N101: 0 | O101: 0 | P101: 0 | Q101: 0
C102: ALTAS ADMINISTRATIVAS | E102: 0 | F102: 0 | G102: 1 | H102: 0 | I102: 0 | J102: 0 | K102: 0 | L102: 0 | M102: 1 | N102: 0 | O102: 0 | P102: 0 | Q102: 2
B103: ODONTOPEDIATRÍA | C103: CONSULTA NUEVA | E103: 70 | F103: 30 | G103: 48 | H103: 48 | I103: 49 | J103: 42 | K103: 55 | L103: 36 | M103: 32 | N103: 44 | O103: 42 | P103: 35 | Q103: 531
C104: CONTROL | E104: 227 | F104: 139 | G104: 226 | H104: 189 | I104: 225 | J104: 176 | K104: 233 | L104: 187 | M104: 191 | N104: 192 | O104: 248 | P104: 245 | Q104: 2478
C105: INGRESOS A TRATAMIENTO | E105: 63 | F105: 23 | G105: 33 | H105: 44 | I105: 37 | J105: 40 | K105: 47 | L105: 29 | M105: 34 | N105: 42 | O105: 43 | P105: 35 | Q105: 470
C106: ALTAS DE TRATAMIENTO | E106: 56 | F106: 40 | G106: 47 | H106: 53 | I106: 60 | J106: 44 | K106: 66 | L106: 44 | M106: 50 | N106: 47 | O106: 62 | P106: 58 | Q106: 627
C107: CONTROL DE ESPECIALIDAD POST ALTA | E107: 0 | F107: 0 | G107: 0 | H107: 0 | I107: 0 | J107: 0 | K107: 0 | L107: 0 | M107: 0 | N107: 0 | O107: 0 | P107: 0 | Q107: 0
C108: ALTAS ADMINISTRATIVAS | E108: 0 | F108: 0 | G108: 0 | H108: 0 | I108: 0 | J108: 0 | K108: 0 | L108: 0 | M108: 0 | N108: 0 | O108: 1 | P108: 0 | Q108: 1
B109: OPERATORIA | C109: CONSULTA NUEVA | E109: 11 | F109: 5 | G109: 9 | H109: 6 | I109: 11 | J109: 15 | K109: 7 | L109: 6 | M109: 8 | N109: 6 | O109: 14 | P109: 4 | Q109: 102
C110: CONTROL | E110: 52 | F110: 17 | G110: 35 | H110: 32 | I110: 50 | J110: 30 | K110: 20 | L110: 41 | M110: 30 | N110: 25 | O110: 26 | P110: 15 | Q110: 373
C111: INGRESOS A TRATAMIENTO | E111: 14 | F111: 6 | G111: 11 | H111: 7 | I111: 13 | J111: 15 | K111: 7 | L111: 19 | M111: 14 | N111: 12 | O111: 11 | P111: 9 | Q111: 138
C112: ALTAS DE TRATAMIENTO | E112: 25 | F112: 13 | G112: 15 | H112: 14 | I112: 25 | J112: 20 | K112: 17 | L112: 23 | M112: 23 | N112: 18 | O112: 15 | P112: 10 | Q112: 218
C113: CONTROL DE ESPECIALIDAD POST ALTA | E113: 0 | F113: 0 | G113: 0 | H113: 0 | I113: 0 | J113: 0 | K113: 0 | L113: 0 | M113: 0 | N113: 0 | O113: 0 | P113: 0 | Q113: 0
C114: ALTAS ADMINISTRATIVAS | E114: 0 | F114: 0 | G114: 0 | H114: 0 | I114: 1 | J114: 0 | K114: 0 | L114: 0 | M114: 0 | N114: 0 | O114: 0 | P114: 0 | Q114: 1
B115: ORTODONCIA Y ORTOPEDIA DENTO MAXILOFACIAL: APARATOLOGÍA FIJA | C115: CONSULTA NUEVA | E115: 31 | F115: 12 | G115: 42 | H115: 38 | I115: 52 | J115: 52 | K115: 68 | L115: 10 | M115: 0 | N115: 0 | O115: 43 | P115: 57 | Q115: 405
C116: CONTROL | E116: 216 | F116: 110 | G116: 309 | H116: 260 | I116: 327 | J116: 196 | K116: 345 | L116: 364 | M116: 82 | N116: 303 | O116: 292 | P116: 336 | Q116: 3140
C117: INGRESOS A TRATAMIENTO | E117: 20 | F117: 3 | G117: 22 | H117: 34 | I117: 26 | J117: 11 | K117: 29 | L117: 10 | M117: 4 | N117: 5 | O117: 17 | P117: 18 | Q117: 199
C118: ALTAS DE TRATAMIENTO | E118: 11 | F118: 2 | G118: 8 | H118: 10 | I118: 9 | J118: 7 | K118: 14 | L118: 17 | M118: 1 | N118: 17 | O118: 8 | P118: 4 | Q118: 108
C119: CONTROL DE ESPECIALIDAD POST ALTA | E119: 4 | F119: 1 | G119: 7 | H119: 11 | I119: 5 | J119: 2 | K119: 10 | L119: 13 | M119: 0 | N119: 10 | O119: 6 | P119: 11 | Q119: 80
C120: ALTAS ADMINISTRATIVAS | E120: 0 | F120: 0 | G120: 0 | H120: 2 | I120: 0 | J120: 2 | K120: 2 | L120: 4 | M120: 0 | N120: 2 | O120: 1 | P120: 1 | Q120: 14
B121: ORTODONCIA Y ORTOPEDIA DENTO MAXILOFACIAL: APARATOLOGÍA REMOVIBLE | C121: CONSULTA NUEVA | E121: 14 | F121: 3 | G121: 10 | H121: 1 | I121: 8 | J121: 7 | K121: 10 | L121: 1 | M121: 0 | N121: 0 | O121: 16 | P121: 13 | Q121: 83
C122: CONTROL | E122: 101 | F122: 38 | G122: 117 | H122: 105 | I122: 129 | J122: 73 | K122: 104 | L122: 126 | M122: 27 | N122: 116 | O122: 93 | P122: 85 | Q122: 1114
C123: INGRESOS A TRATAMIENTO | E123: 17 | F123: 0 | G123: 11 | H123: 11 | I123: 16 | J123: 11 | K123: 14 | L123: 7 | M123: 0 | N123: 2 | O123: 4 | P123: 2 | Q123: 95
C124: ALTAS DE TRATAMIENTO | E124: 5 | F124: 8 | G124: 11 | H124: 13 | I124: 20 | J124: 5 | K124: 7 | L124: 15 | M124: 0 | N124: 11 | O124: 10 | P124: 4 | Q124: 109
C125: CONTROL DE ESPECIALIDAD POST ALTA | E125: 2 | F125: 0 | G125: 0 | H125: 0 | I125: 1 | J125: 0 | K125: 0 | L125: 0 | M125: 3 | N125: 1 | O125: 1 | P125: 1 | Q125: 9
C126: ALTAS ADMINISTRATIVAS | E126: 0 | F126: 0 | G126: 0 | H126: 0 | I126: 0 | J126: 0 | K126: 1 | L126: 1 | M126: 0 | N126: 0 | O126: 1 | P126: 0 | Q126: 3
B127: PERIODONCIA | C127: CONSULTA NUEVA | E127: 40 | F127: 43 | G127: 46 | H127: 33 | I127: 42 | J127: 102 | K127: 68 | L127: 66 | M127: 62 | N127: 81 | O127: 69 | P127: 56 | Q127: 708
C128: CONTROL | E128: 181 | F128: 112 | G128: 214 | H128: 105 | I128: 158 | J128: 170 | K128: 118 | L128: 201 | M128: 131 | N128: 148 | O128: 158 | P128: 129 | Q128: 1825
C129: INGRESOS A TRATAMIENTO | E129: 48 | F129: 42 | G129: 37 | H129: 37 | I129: 44 | J129: 100 | K129: 69 | L129: 67 | M129: 62 | N129: 81 | O129: 70 | P129: 56 | Q129: 713
C130: ALTAS DE TRATAMIENTO | E130: 31 | F130: 26 | G130: 40 | H130: 25 | I130: 30 | J130: 42 | K130: 27 | L130: 42 | M130: 26 | N130: 20 | O130: 19 | P130: 14 | Q130: 342
C131: CONTROL DE ESPECIALIDAD POST ALTA | E131: 0 | F131: 0 | G131: 0 | H131: 0 | I131: 0 | J131: 0 | K131: 0 | L131: 0 | M131: 0 | N131: 0 | O131: 0 | P131: 0 | Q131: 0
C132: ALTAS ADMINISTRATIVAS | E132: 1 | F132: 0 | G132: 0 | H132: 0 | I132: 0 | J132: 1 | K132: 0 | L132: 1 | M132: 0 | N132: 0 | O132: 0 | P132: 0 | Q132: 3
B133: REHABILITACIÓN: PRÓTESIS FIJA | C133: CONSULTA NUEVA | E133: 0 | F133: 4 | G133: 9 | H133: 2 | I133: 4 | J133: 6 | K133: 1 | L133: 0 | M133: 2 | N133: 5 | O133: 5 | P133: 0 | Q133: 38
C134: CONTROL | E134: 7 | F134: 4 | G134: 10 | H134: 6 | I134: 10 | J134: 5 | K134: 5 | L134: 11 | M134: 10 | N134: 6 | O134: 8 | P134: 8 | Q134: 90
C135: INGRESOS A TRATAMIENTO | E135: 1 | F135: 4 | G135: 8 | H135: 2 | I135: 5 | J135: 7 | K135: 1 | L135: 1 | M135: 5 | N135: 5 | O135: 6 | P135: 1 | Q135: 46
C136: ALTAS DE TRATAMIENTO | E136: 2 | F136: 4 | G136: 5 | H136: 2 | I136: 2 | J136: 5 | K136: 0 | L136: 4 | M136: 2 | N136: 1 | O136: 5 | P136: 5 | Q136: 37
C137: CONTROL DE ESPECIALIDAD POST ALTA | E137: 0 | F137: 0 | G137: 0 | H137: 0 | I137: 0 | J137: 0 | K137: 0 | L137: 0 | M137: 0 | N137: 0 | O137: 0 | P137: 0 | Q137: 0
C138: ALTAS ADMINISTRATIVAS | E138: 0 | F138: 0 | G138: 0 | H138: 0 | I138: 0 | J138: 0 | K138: 0 | L138: 0 | M138: 0 | N138: 0 | O138: 0 | P138: 0 | Q138: 0
B139: REHABILITACIÓN: PRÓTESIS REMOVIBLE | C139: CONSULTA NUEVA | E139: 62 | F139: 40 | G139: 63 | H139: 53 | I139: 54 | J139: 92 | K139: 65 | L139: 24 | M139: 25 | N139: 34 | O139: 78 | P139: 28 | Q139: 618
C140: CONTROL | E140: 337 | F140: 203 | G140: 367 | H140: 406 | I140: 376 | J140: 264 | K140: 179 | L140: 464 | M140: 364 | N140: 287 | O140: 292 | P140: 166 | Q140: 3705
C141: INGRESOS A TRATAMIENTO | E141: 59 | F141: 27 | G141: 57 | H141: 61 | I141: 62 | J141: 71 | K141: 49 | L141: 49 | M141: 33 | N141: 44 | O141: 58 | P141: 31 | Q141: 601
C142: ALTAS DE TRATAMIENTO | E142: 74 | F142: 35 | G142: 61 | H142: 88 | I142: 84 | J142: 53 | K142: 36 | L142: 74 | M142: 82 | N142: 54 | O142: 59 | P142: 35 | Q142: 735
C143: CONTROL DE ESPECIALIDAD POST ALTA | E143: 0 | F143: 0 | G143: 0 | H143: 0 | I143: 0 | J143: 0 | K143: 0 | L143: 3 | M143: 0 | N143: 0 | O143: 0 | P143: 0 | Q143: 3
C144: ALTAS ADMINISTRATIVAS | E144: 0 | F144: 0 | G144: 0 | H144: 0 | I144: 1 | J144: 0 | K144: 1 | L144: 1 | M144: 0 | N144: 0 | O144: 1 | P144: 0 | Q144: 4
B145: REHABILITACIÓN: PRÓTESIS IMPLANTOASISTIDA | C145: CONSULTA NUEVA | E145: 2 | F145: 0 | G145: 4 | H145: 2 | I145: 3 | J145: 0 | K145: 1 | L145: 5 | M145: 2 | N145: 1 | O145: 0 | P145: 0 | Q145: 20
C146: CONTROL | E146: 27 | F146: 11 | G146: 28 | H146: 32 | I146: 33 | J146: 16 | K146: 3 | L146: 20 | M146: 14 | N146: 4 | O146: 14 | P146: 11 | Q146: 213
C147: INGRESOS A TRATAMIENTO | E147: 2 | F147: 0 | G147: 6 | H147: 3 | I147: 4 | J147: 2 | K147: 2 | L147: 6 | M147: 3 | N147: 1 | O147: 1 | P147: 2 | Q147: 32
C148: ALTAS DE TRATAMIENTO | E148: 4 | F148: 2 | G148: 3 | H148: 8 | I148: 6 | J148: 2 | K148: 1 | L148: 5 | M148: 2 | N148: 0 | O148: 3 | P148: 5 | Q148: =SUM(E148:P148) -> 41
C149: CONTROL DE ESPECIALIDAD POST ALTA | E149: 0 | F149: 0 | G149: 0 | H149: 0 | I149: 0 | J149: 0 | K149: 0 | L149: 0 | M149: 0 | N149: 0 | O149: 0 | P149: 0 | Q149: 0
C150: ALTAS ADMINISTRATIVAS | E150: 0 | F150: 0 | G150: 0 | H150: 0 | I150: 0 | J150: 0 | K150: 0 | L150: 0 | M150: 0 | N150: 0 | O150: 0 | P150: 0 | Q150: 0
B151: IMPLANTOLOGÍA BUCO MAXILOFACIAL | C151: CONSULTA NUEVA | E151: 14 | F151: 2 | G151: 14 | H151: 10 | I151: 14 | J151: 17 | K151: 1 | L151: 0 | M151: 2 | N151: 0 | O151: 0 | P151: 0 | Q151: 74
C152: CONTROL | E152: 38 | F152: 3 | G152: 29 | H152: 17 | I152: 19 | J152: 18 | K152: 4 | L152: 19 | M152: 22 | N152: 5 | O152: 18 | P152: 25 | Q152: 217
C153: INGRESOS A TRATAMIENTO | E153: 12 | F153: 0 | G153: 2 | H153: 5 | I153: 10 | J153: 8 | K153: 1 | L153: 1 | M153: 3 | N153: 0 | O153: 1 | P153: 0 | Q153: 43
C154: ALTAS DE TRATAMIENTO | E154: 2 | F154: 0 | G154: 4 | H154: 4 | I154: 1 | J154: 5 | K154: 0 | L154: 2 | M154: 2 | N154: 2 | O154: 8 | P154: 7 | Q154: 37
C155: CONTROL DE ESPECIALIDAD POST ALTA | E155: 0 | F155: 0 | G155: 0 | H155: 0 | I155: 0 | J155: 0 | K155: 0 | L155: 0 | M155: 0 | N155: 0 | O155: 0 | P155: 0 | Q155: 0
C156: ALTAS ADMINISTRATIVAS | E156: 0 | F156: 0 | G156: 0 | H156: 0 | I156: 0 | J156: 0 | K156: 0 | L156: 0 | M156: 0 | N156: 0 | O156: 0 | P156: 0 | Q156: 0
B157: PATOLOGÍA ORAL | C157: CONSULTA NUEVA | E157: 0 | F157: 0 | G157: 0 | H157: 0 | I157: 0 | J157: 0 | K157: 0 | L157: 0 | M157: 0 | N157: 0 | O157: 15 | P157: 8 | Q157: 23
C158: CONTROL | E158: 0 | F158: 0 | G158: 0 | H158: 0 | I158: 0 | J158: 0 | K158: 0 | L158: 0 | M158: 0 | N158: 0 | O158: 13 | P158: 3 | Q158: 16
C159: INGRESOS A TRATAMIENTO | E159: 0 | F159: 0 | G159: 0 | H159: 0 | I159: 0 | J159: 0 | K159: 0 | L159: 0 | M159: 0 | N159: 0 | O159: 14 | P159: 5 | Q159: 19
C160: ALTAS DE TRATAMIENTO | E160: 0 | F160: 0 | G160: 0 | H160: 0 | I160: 0 | J160: 0 | K160: 0 | L160: 0 | M160: 0 | N160: 0 | O160: 4 | P160: 1 | Q160: 5
C161: CONTROL DE ESPECIALIDAD POST ALTA | E161: 0 | F161: 0 | G161: 0 | H161: 0 | I161: 0 | J161: 0 | K161: 0 | L161: 0 | M161: 0 | N161: 0 | O161: 0 | P161: 0 | Q161: 0
C162: ALTAS ADMINISTRATIVAS | E162: 0 | F162: 0 | G162: 0 | H162: 0 | I162: 0 | J162: 0 | K162: 0 | L162: 0 | M162: 0 | N162: 0 | O162: 0 | P162: 0 | Q162: 0
B163: TRASTORNOS TEMPOROMANDIBULARES Y DOLOR OROFACIAL | C163: CONSULTA NUEVA | E163: 6 | F163: 8 | G163: 10 | H163: 10 | I163: 7 | J163: 15 | K163: 7 | L163: 11 | M163: 12 | N163: 14 | O163: 2 | P163: 6 | Q163: 108
C164: CONTROL | E164: 36 | F164: 31 | G164: 38 | H164: 45 | I164: 46 | J164: 52 | K164: 34 | L164: 37 | M164: 41 | N164: 30 | O164: 20 | P164: 17 | Q164: 427
C165: INGRESOS A TRATAMIENTO | E165: 5 | F165: 9 | G165: 9 | H165: 12 | I165: 10 | J165: 15 | K165: 6 | L165: 11 | M165: 12 | N165: 13 | O165: 2 | P165: 7 | Q165: 111
C166: ALTAS DE TRATAMIENTO | E166: 3 | F166: 13 | G166: 8 | H166: 7 | I166: 7 | J166: 10 | K166: 11 | L166: 4 | M166: 6 | N166: 4 | O166: 5 | P166: 1 | Q166: 79
C167: CONTROL DE ESPECIALIDAD POST ALTA | E167: 0 | F167: 0 | G167: 0 | H167: 0 | I167: 0 | J167: 0 | K167: 0 | L167: 0 | M167: 0 | N167: 0 | O167: 0 | P167: 0 | Q167: 0
C168: ALTAS ADMINISTRATIVAS | E168: 0 | F168: 0 | G168: 0 | H168: 0 | I168: 0 | J168: 0 | K168: 0 | L168: 0 | M168: 0 | N168: 0 | O168: 0 | P168: 0 | Q168: 0
B169: TOTAL | C169: CONSULTA NUEVA | E169: =E85+E91+E97+E103+E109+E115+E121+E127+E133+E139+E145+E151+E157+E163 -> 423 | F169: =F85+F91+F97+F103+F109+F115+F121+F127+F133+F139+F145+F151+F157+F163 -> 314 | G169: 508 | H169: 386 | I169: 469 | J169: 591 | K169: 507 | L169: 324 | M169: 341 | N169: 416 | O169: 518 | P169: 381 | Q169: =SUM(E169:P169) -> 5178
C170: CONTROL | E170: =E86+E92+E98+E104+E110+E116+E122+E128+E134+E140+E146+E152+E158+E164 -> 1606 | F170: 1064 | G170: 1909 | H170: 1623 | I170: 1901 | J170: 1466 | K170: 1501 | L170: 1990 | M170: 1315 | N170: 1635 | O170: 1706 | P170: 1537 | Q170: =SUM(E170:P170) -> 19253
C171: INGRESOS A TRATAMIENTO | E171: 380 | F171: 239 | G171: 389 | H171: 367 | I171: 411 | J171: 464 | K171: 426 | L171: 319 | M171: 310 | N171: 393 | O171: 443 | P171: 328 | Q171: 4469
C172: ALTAS DE TRATAMIENTO | E172: 320 | F172: 238 | G172: 357 | H172: 334 | I172: 385 | J172: 314 | K172: 298 | L172: 340 | M172: 288 | N172: 321 | O172: 331 | P172: 275 | Q172: 3801
C173: CONTROL DE ESPECIALIDAD POST ALTA | E173: 44 | F173: 47 | G173: 35 | H173: 23 | I173: 94 | J173: 112 | K173: 77 | L173: 119 | M173: 66 | N173: 83 | O173: 104 | P173: 107 | Q173: 911
C174: ALTAS ADMINISTRATIVAS | E174: 1 | F174: 0 | G174: 1 | H174: 2 | I174: 2 | J174: 3 | K174: 4 | L174: 8 | M174: 2 | N174: 2 | O174: 7 | P174: 3 | Q174: 35
B175: Fuente: REM A09, Sección F, F1, I

Sheet HCQ
A1: MINISTERIO DE SALUD
A2: SERVICIO DE SALUD COQUIMBO
A3: DEPARTAMENTO DE GESTIÓN, PLANIFICACIÓN Y CONTROL
A4: SUBDEPTO. DE ESTADÍSTICAS Y GESTIÓN DE LA INFORMACIÓN
A5: AÑO 2022
B8: INDICADOR 2.3: Porcentaje de cumplimiento de la programación de horas de consultas nuevas, tratamientos y procedimientos imagenológicos realizados por profesionales Cirujanos Dentista.
C13: ACTIVIDADES DE ESPECIALIDADES | E13: Enero | F13: Febrero | G13: Marzo | H13: Abril | I13: Mayo | J13: Junio | K13: Julio | L13: Agosto | M13: Septiembre | N13: Octubre | O13: Noviembre | P13: Diciembre | Q13: Total
C14: EXAMEN Y DIAGNÓSTICO DE ESPECIALIDAD | E14: 902 | F14: 349 | G14: 992 | H14: 986 | I14: 837 | J14: 685 | K14: 676 | L14: 832 | M14: 617 | N14: 671 | O14: 543 | P14: 580 | Q14: =SUM(E14:P14) -> 8670
C15: EDUCACIÓN EN SALUD BUCAL | E15: 82 | F15: 45 | G15: 94 | H15: 76 | I15: 79 | J15: 65 | K15: 27 | L15: 94 | M15: 74 | N15: 82 | O15: 90 | P15: 84 | Q15: =SUM(E15:P15) -> 892
C16: RESPUESTA A INTERCONSULTA PERSONAS HOSPITALIZADOS | E16: 33 | F16: 13 | G16: 30 | H16: 19 | I16: 22 | J16: 20 | K16: 18 | L16: 33 | M16: 26 | N16: 28 | O16: 22 | P16: 25 | Q16: 289
C17: VISITA A SALA | E17: 28 | F17: 12 | G17: 33 | H17: 19 | I17: 29 | J17: 28 | K17: 20 | L17: 35 | M17: 25 | N17: 25 | O17: 27 | P17: 19 | Q17: 300
C18: CONTRALORÍA CLÍNICA | E18: 0 | F18: 0 | G18: 0 | H18: 0 | I18: 0 | J18: 0 | K18: 0 | L18: 0 | M18: 0 | N18: 0 | O18: 0 | P18: 0 | Q18: 0
C19: CIRUGÍA TERCER MOLAR | E19: 74 | F19: 68 | G19: 51 | H19: 0 | I19: 76 | J19: 88 | K19: 56 | L19: 117 | M19: 66 | N19: 79 | O19: 190 | P19: 88 | Q19: 953
C20: CIRUGÍA MENOR AMBULATORIA | E20: 21 | F20: 30 | G20: 34 | H20: 120 | I20: 44 | J20: 13 | K20: 31 | L20: 202 | M20: 114 | N20: 51 | O20: 79 | P20: 43 | Q20: 782
C21: CIRUGÍA MAYOR AMBULATORIA | E21: 6 | F21: 6 | G21: 2 | H21: 62 | I21: 7 | J21: 6 | K21: 3 | L21: 14 | M21: 1 | N21: 4 | O21: 6 | P21: 0 | Q21: 117
C22: TRATAMIENTO TRAUMATISMO DENTOALVEOLAR | E22: 0 | F22: 3 | G22: 4 | H22: 9 | I22: 15 | J22: 5 | K22: 6 | L22: 10 | M22: 7 | N22: 10 | O22: 9 | P22: 8 | Q22: 86
C23: OBTURACIÓN DIRECTA | E23: 41 | F23: 17 | G23: 53 | H23: 5 | I23: 65 | J23: 48 | K23: 28 | L23: 35 | M23: 28 | N23: 40 | O23: 43 | P23: 22 | Q23: 425
C24: OBTURACIÓN INDIRECTA (INLAYS U ONLAYS) | E24: 0 | F24: 1 | G24: 0 | H24: 0 | I24: 1 | J24: 0 | K24: 0 | L24: 0 | M24: 0 | N24: 0 | O24: 0 | P24: 0 | Q24: 2
C25: INSTALACIÓN APARATO REMOVIBLE ORTODÓNCICO | E25: 0 | F25: 28 | G25: 0 | H25: 0 | I25: 0 | J25: 1 | K25: 0 | L25: 0 | M25: 0 | N25: 0 | O25: 1 | P25: 1 | Q25: 31
C26: INSTALACIÓN APARATO FIJO ORTODÓNCICO | E26: 38 | F26: 0 | G26: 48 | H26: 46 | I26: 67 | J26: 46 | K26: 0 | L26: 32 | M26: 0 | N26: 58 | O26: 40 | P26: 24 | Q26: 399
C27: INSTALACIÓN APARATO DE CONTENCIÓN ORTODÓNCICO | E27: 2 | F27: 0 | G27: 3 | H27: 2 | I27: 0 | J27: 5 | K27: 17 | L27: 2 | M27: 0 | N27: 0 | O27: 1 | P27: 0 | Q27: 32
C28: RETIRO APARATOLOGÍA DE ORTODONCIA | E28: 7 | F28: 2 | G28: 5 | H28: 4 | I28: 0 | J28: 2 | K28: 0 | L28: 2 | M28: 0 | N28: 3 | O28: 3 | P28: 1 | Q28: 29
C29: ORTOPEDIA PREQUIRÚRGICA | E29: 0 | F29: 0 | G29: 0 | H29: 0 | I29: 0 | J29: 0 | K29: 0 | L29: 0 | M29: 0 | N29: 0 | O29: 0 | P29: 0 | Q29: 0
C30: ORTODONCIA PREVENTIVA E INTERCEPTIVA (OPI) | E30: 112 | F30: 59 | G30: 142 | H30: 121 | I30: 148 | J30: 122 | K30: 22 | L30: 71 | M30: 140 | N30: 128 | O30: 131 | P30: 75 | Q30: 1271
C31: TRATAMIENTO ENDODONCIA UNIRRADICULAR | E31: 26 | F31: 9 | G31: 32 | H31: 27 | I31: 20 | J31: 22 | K31: 22 | L31: 35 | M31: 15 | N31: 12 | O31: 18 | P31: 14 | Q31: 252
C32: TRATAMIENTO ENDODONCIA BIRRADICULAR | E32: 60 | F32: 9 | G32: 55 | H32: 30 | I32: 26 | J32: 28 | K32: 13 | L32: 30 | M32: 36 | N32: 14 | O32: 21 | P32: 14 | Q32: 336
C33: TRATAMIENTO ENDODONCIA MULTIRRADICULAR | E33: 62 | F33: 13 | G33: 76 | H33: 54 | I33: 50 | J33: 27 | K33: 24 | L33: 51 | M33: 63 | N33: 41 | O33: 35 | P33: 32 | Q33: 528
C34: INDUCCIÓN AL CIERRE APICAL | E34: 0 | F34: 0 | G34: 1 | H34: 0 | I34: 0 | J34: 0 | K34: 1 | L34: 0 | M34: 3 | N34: 1 | O34: 1 | P34: 1 | Q34: 8
C35: RETRATAMIENTO DE ENDODONCIA | E35: 7 | F35: 2 | G35: 2 | H35: 8 | I35: 0 | J35: 3 | K35: 1 | L35: 0 | M35: 3 | N35: 2 | O35: 0 | P35: 3 | Q35: 31
C36: CIRUGÍA APICAL | E36: 1 | F36: 0 | G36: 0 | H36: 0 | I36: 0 | J36: 0 | K36: 0 | L36: 0 | M36: 0 | N36: 0 | O36: 0 | P36: 0 | Q36: 1
C37: ADAPTACIÓN A LA ATENCIÓN ODONTOLÓGICA | E37: 42 | F37: 20 | G37: 63 | H37: 36 | I37: 68 | J37: 48 | K37: 41 | L37: 70 | M37: 64 | N37: 45 | O37: 52 | P37: 53 | Q37: 602
C38: PROCEDIMIENTO RESTAURADOR (ODONTOPEDIATRÍA) | E38: 34 | F38: 17 | G38: 24 | H38: 25 | I38: 56 | J38: 40 | K38: 25 | L38: 63 | M38: 37 | N38: 31 | O38: 33 | P38: 37 | Q38: 422
C39: PROCEDIMIENTO PULPAR (ODONTOPEDIATRÍA) | E39: 16 | F39: 10 | G39: 25 | H39: 14 | I39: 24 | J39: 24 | K39: 7 | L39: 19 | M39: 29 | N39: 18 | O39: 35 | P39: 26 | Q39: 247
C40: CIRUGÍA AMBULATORIA (ODONTOPEDIATRÍA) | E40: 13 | F40: 8 | G40: 9 | H40: 6 | I40: 7 | J40: 1 | K40: 0 | L40: 8 | M40: 3 | N40: 1 | O40: 1 | P40: 2 | Q40: 59
C41: DESTARTRAJE SUBGINGIVAL O PULIDO RADICULAR | E41: 294 | F41: 194 | G41: 444 | H41: 349 | I41: 0 | J41: 420 | K41: 243 | L41: 389 | M41: 262 | N41: 341 | O41: 251 | P41: 284 | Q41: 3471
C42: DESTARTRAJE SUPRAGINGIVAL O PULIDO CORONARIO | E42: 295 | F42: 196 | G42: 472 | H42: 373 | I42: 0 | J42: 424 | K42: 264 | L42: 407 | M42: 281 | N42: 359 | O42: 273 | P42: 284 | Q42: 3628
C43: PROCEDIMIENTO QUIRÚRGICO (PERIODONCIA) | E43: 0 | F43: 0 | G43: 0 | H43: 0 | I43: 0 | J43: 0 | K43: 0 | L43: 0 | M43: 0 | N43: 0 | O43: 0 | P43: 0 | Q43: 0
C44: PROCEDIMIENTO QUIRÚRGICO PERIIMPLANTAR (PERIODONCIA) | E44: 0 | F44: 0 | G44: 0 | H44: 0 | I44: 0 | J44: 0 | K44: 0 | L44: 0 | M44: 0 | N44: 0 | O44: 0 | P44: 0 | Q44: 0
C45: FERULIZACIÓN | E45: 6 | F45: 3 | G45: 7 | H45: 7 | I45: 9 | J45: 1 | K45: 5 | L45: 3 | M45: 5 | N45: 10 | O45: 7 | P45: 6 | Q45: 69
C46: REHABILITACIÓN MEDIANTE PRÓTESIS REMOVIBLE ACRÍLICA PARCIAL O TOTAL | E46: 298 | F46: 238 | G46: 380 | H46: 305 | I46: 0 | J46: 188 | K46: 195 | L46: 187 | M46: 201 | N46: 244 | O46: 268 | P46: 168 | Q46: 2672
C47: REHABILITACIÓN MEDIANTE PRÓTESIS REMOVIBLE METÁLICA PARCIAL | E47: 0 | F47: 3 | G47: 0 | H47: 0 | I47: 0 | J47: 0 | K47: 0 | L47: 0 | M47: 0 | N47: 0 | O47: 0 | P47: 0 | Q47: 3
C48: REHABILITACIÓN MEDIANTE PRÓTESIS FIJA UNITARIA O PLURAL | E48: 0 | F48: 0 | G48: 1 | H48: 0 | I48: 0 | J48: 0 | K48: 0 | L48: 0 | M48: 0 | N48: 0 | O48: 0 | P48: 0 | Q48: 1
C49: REHABILITACIÓN MEDIANTE PRÓTESIS FIJA IMPLANTOASISTIDA | E49: 10 | F49: 8 | G49: 45 | H49: 76 | I49: 0 | J49: 43 | K49: 23 | L49: 32 | M49: 40 | N49: 27 | O49: 29 | P49: 29 | Q49: 362
C50: REHABILITACIÓN MEDIANTE PRÓTESIS MUCO- IMPLANTOASISTIDA | E50: 15 | F50: 6 | G50: 40 | H50: 27 | I50: 0 | J50: 21 | K50: 23 | L50: 20 | M50: 7 | N50: 11 | O50: 12 | P50: 11 | Q50: 193
C51: REPARACIÓN DE PRÓTESIS | E51: 4 | F51: 5 | G51: 13 | H51: 3 | I51: 0 | J51: 6 | K51: 10 | L51: 5 | M51: 10 | N51: 8 | O51: 8 | P51: 6 | Q51: 78
C52: IMPLANTOLOGÍA QUIRÚRGICA | E52: 0 | F52: 1 | G52: 0 | H52: 0 | I52: 0 | J52: 8 | K52: 9 | L52: 9 | M52: 6 | N52: 3 | O52: 6 | P52: 33 | Q52: 75
C53: TOMA DE BIOPSIA | E53: 2 | F53: 0 | G53: 3 | H53: 10 | I53: 8 | J53: 1 | K53: 1 | L53: 10 | M53: 6 | N53: 4 | O53: 3 | P53: 4 | Q53: 52
C54: ESTUDIO HISTOPATOLÓGICO | E54: 0 | F54: 0 | G54: 0 | H54: 0 | I54: 2 | J54: 0 | K54: 0 | L54: 0 | M54: 0 | N54: 0 | O54: 0 | P54: 1 | Q54: 3
C55: SIALOMETRÍA | E55: 0 | F55: 0 | G55: 0 | H55: 0 | I55: 0 | J55: 0 | K55: 0 | L55: 0 | M55: 0 | N55: 0 | O55: 0 | P55: 0 | Q55: 0
C56: TERAPIA FARMACOLÓGICA DE LESIONES DEL TERRITORIO ORAL Y MAXILOFACIAL | E56: 65 | F56: 21 | G56: 106 | H56: 90 | I56: 66 | J56: 18 | K56: 18 | L56: 39 | M56: 28 | N56: 21 | O56: 26 | P56: 23 | Q56: 521
C57: TERAPIA NO FARMACOLÓGICA DE LESIONES DEL TERRITORIO ORAL Y MAXILOFACIAL | E57: 71 | F57: 43 | G57: 28 | H57: 75 | I57: 58 | J57: 78 | K57: 35 | L57: 88 | M57: 17 | N57: 57 | O57: 78 | P57: 10 | Q57: 638
C58: ESTUDIO CLÍNICO LESIONES DEL TERRITORIO ORAL MAXILOFACIAL | E58: 10 | F58: 0 | G58: 6 | H58: 10 | I58: 6 | J58: 7 | K58: 6 | L58: 3 | M58: 0 | N58: 3 | O58: 5 | P58: 2 | Q58: 58
C59: TERAPIA FÍSICA EN TRASTORNOS TEMPOROMANDIBULARES (TTM) Y DOLOR OROFACIAL (DOF) | E59: 12 | F59: 0 | G59: 25 | H59: 30 | I59: 40 | J59: 25 | K59: 20 | L59: 19 | M59: 15 | N59: 17 | O59: 19 | P59: 15 | Q59: 237
C60: INFILTRACIÓN EN ARTICULACIÓN TEMPORO MANDIBULAR (ATM) | E60: 20 | F60: 13 | G60: 38 | H60: 34 | I60: 59 | J60: 69 | K60: 42 | L60: 35 | M60: 50 | N60: 31 | O60: 61 | P60: 40 | Q60: 492
C61: BLOQUEO ANESTÉSICO Y/O MEDICAMENTOSO EN TTM Y DOF | E61: 64 | F61: 22 | G61: 60 | H61: 94 | I61: 123 | J61: 114 | K61: 75 | L61: 70 | M61: 97 | N61: 87 | O61: 83 | P61: 62 | Q61: 951
C62: ARTROCENTESIS EN ATM | E62: 42 | F62: 13 | G62: 50 | H62: 36 | I62: 47 | J62: 40 | K62: 19 | L62: 24 | M62: 26 | N62: 9 | O62: 24 | P62: 12 | Q62: 342
C63: TERAPIA BIOCONDUCTUAL | E63: 72 | F63: 20 | G63: 47 | H63: 54 | I63: 27 | J63: 21 | K63: 30 | L63: 32 | M63: 39 | N63: 28 | O63: 21 | P63: 13 | Q63: 404
C64: DESGASTE SELECTIVO | E64: 1 | F64: 0 | G64: 17 | H64: 41 | I64: 40 | J64: 36 | K64: 19 | L64: 32 | M64: 21 | N64: 9 | O64: 28 | P64: 12 | Q64: 256
C65: INSTALACIÓN DE DISPOSITIVO ORTOPÉDICO | E65: 24 | F65: 4 | G65: 26 | H65: 0 | I65: 39 | J65: 37 | K65: 19 | L65: 26 | M65: 23 | N65: 18 | O65: 27 | P65: 23 | Q65: 266
C66: ACTIVIDADES SOMATOPRÓTESIS | E66: 0 | F66: 0 | G66: 0 | H66: 0 | I66: 0 | J66: 0 | K66: 0 | L66: 0 | M66: 0 | N66: 0 | O66: 0 | P66: 0 | Q66: 0
C67: REHABILITACIÓN DE PRÓTESIS MAXILOFACIAL | E67: 0 | F67: 0 | G67: 2 | H67: 0 | I67: 0 | J67: 0 | K67: 0 | L67: 0 | M67: 0 | N67: 0 | O67: 0 | P67: 0 | Q67: 2
C68: TOTAL | E68: =SUM(E14:E67) -> 2912 | F68: =SUM(F14:F67) -> 1511 | G68: 3588 | H68: 3283 | I68: 2165 | J68: 2884 | K68: 2094 | L68: 3185 | M68: 2485 | N68: 2631 | O68: 2610 | P68: 2190 | Q68: 31538
C71: ACTIVIDADES DE ESPECIALIDADES | E71: Enero | F71: Febrero | G71: Marzo | H71: Abril | I71: Mayo | J71: Junio | K71: Julio | L71: Agosto | M71: Septiembre | N71: Octubre | O71: Noviembre | P71: Diciembre | Q71: Total
C72: RADIOGRAFÍA INTRAORAL MEDIANTE TÉCNICAS RETROALVEOLARES (POR PLACA) | E72: 246 | F72: 307 | G72: 459 | H72: 430 | I72: 340 | J72: 291 | K72: 158 | L72: 261 | M72: 263 | N72: 238 | O72: 261 | P72: 283 | Q72: =SUM(E72:P72) -> 3537
C73: RADIOGRAFÍA INTRAORAL MEDIANTE TÉCNICAS BITE WING (POR PLACA) | E73: 22 | F73: 29 | G73: 45 | H73: 33 | I73: 33 | J73: 24 | K73: 13 | L73: 13 | M73: 13 | N73: 12 | O73: 47 | P73: 23 | Q73: =SUM(E73:P73) -> 307
C74: RADIOGRAFÍA EXTRAORAL (POR PLACA) | E74: 1 | F74: 0 | G74: 0 | H74: 1 | I74: 0 | J74: 0 | K74: 0 | L74: 0 | M74: 0 | N74: 0 | O74: 0 | P74: 0 | Q74: 2
C75: RADIOGRAFÍA OCLUSAL (POR PLACA) | E75: 0 | F75: 0 | G75: 1 | H75: 0 | I75: 2 | J75: 0 | K75: 0 | L75: 4 | M75: 0 | N75: 4 | O75: 4 | P75: 0 | Q75: 15
C76: TELERRADIOGRAFÍA (POR PLACA) | E76: 31 | F76: 25 | G76: 39 | H76: 37 | I76: 0 | J76: 0 | K76: 0 | L76: 0 | M76: 19 | N76: 16 | O76: 25 | P76: 19 | Q76: 211
C77: RADIOGRAFÍA PANORÁMICA (POR PLACA) | E77: 79 | F77: 61 | G77: 103 | H77: 105 | I77: 0 | J77: 0 | K77: 0 | L77: 10 | M77: 75 | N77: 69 | O77: 94 | P77: 65 | Q77: 661
C78: TOMOGRAFÍA COMPUTACIONAL MAXILO FACIAL CONE BEAM (POR ADQUISICIÓN) | E78: 78 | F78: 76 | G78: 108 | H78: 66 | I78: 51 | J78: 72 | K78: 81 | L78: 126 | M78: 119 | N78: 65 | O78: 46 | P78: 47 | Q78: 935
C79: SIALOGRAFÍAS (POR PROCEDIMIENTO) | E79: 0 | F79: 0 | G79: 0 | H79: 0 | I79: 0 | J79: 0 | K79: 0 | L79: 0 | M79: 0 | N79: 0 | O79: 0 | P79: 0 | Q79: 0
C80: PROCEDIMIENTO IMAGENOLÓGICO COMPLEJO (POR PROCEDIMIENTO) | E80: 0 | F80: 0 | G80: 0 | H80: 0 | I80: 0 | J80: 387 | K80: 0 | L80: 0 | M80: 0 | N80: 0 | O80: 0 | P80: 0 | Q80: 387
C81: TOTAL | E81: =SUM(E72:E80) -> 457 | F81: 498 | G81: 755 | H81: 672 | I81: 426 | J81: 774 | K81: 252 | L81: 414 | M81: 489 | N81: 404 | O81: 477 | P81: 437 | Q81: 6055
B84: ESPECIALIDAD Y TIPO DE INGRESO O EGRESO | C84: Tipo de Ingreso | E84: Enero | F84: Febrero | G84: Marzo | H84: Abril | I84: Mayo | J84: Junio | K84: Julio | L84: Agosto | M84: Septiembre | N84: Octubre | O84: Noviembre | P84: Diciembre | Q84: Total
B85: CONSULTAS DE URGENCIA | C85: CONSULTAS GES | E85: 3 | F85: 14 | G85: 19 | H85: 11 | I85: 23 | J85: 14 | K85: 8 | L85: 33 | M85: 6 | N85: 17 | O85: 19 | P85: 9 | Q85: =SUM(E85:P85) -> 176
C86: CONSULTA NO GES | E86: 17 | F86: 14 | G86: 37 | H86: 8 | I86: 19 | J86: 17 | K86: 21 | L86: 18 | M86: 10 | N86: 38 | O86: 14 | P86: 7 | Q86: =SUM(E86:P86) -> 220
B87: CIRUGÍA BUCAL | C87: CONSULTA NUEVA | E87: 0 | F87: 0 | G87: 0 | H87: 0 | I87: 0 | J87: 0 | K87: 0 | L87: 0 | M87: 0 | N87: 0 | O87: 0 | P87: 0 | Q87: 0
C88: CONTROL | E88: 0 | F88: 0 | G88: 1 | H88: 0 | I88: 0 | J88: 0 | K88: 0 | L88: 0 | M88: 0 | N88: 0 | O88: 0 | P88: 0 | Q88: 1
C89: INGRESOS A TRATAMIENTO | E89: 0 | F89: 0 | G89: 0 | H89: 0 | I89: 0 | J89: 0 | K89: 0 | L89: 0 | M89: 0 | N89: 0 | O89: 0 | P89: 0 | Q89: 0
C90: ALTAS DE TRATAMIENTO | E90: 0 | F90: 0 | G90: 1 | H90: 0 | I90: 0 | J90: 0 | K90: 0 | L90: 0 | M90: 0 | N90: 0 | O90: 3 | P90: 0 | Q90: 4
C91: CONTROL DE ESPECIALIDAD POST ALTA | E91: 0 | F91: 0 | G91: 0 | H91: 0 | I91: 0 | J91: 0 | K91: 0 | L91: 0 | M91: 0 | N91: 0 | O91: 0 | P91: 0 | Q91: 0
C92: ALTAS ADMINISTRATIVAS | E92: 0 | F92: 0 | G92: 0 | H92: 0 | I92: 0 | J92: 0 | K92: 0 | L92: 0 | M92: 0 | N92: 0 | O92: 0 | P92: 0 | Q92: 0
B93: CIRUGÍA Y TRAUMATOLOGÍA MAXILOFACIAL | C93: CONSULTA NUEVA | E93: 100 | F93: 76 | G93: 78 | H93: 118 | I93: 126 | J93: 128 | K93: 89 | L93: 88 | M93: 41 | N93: 76 | O93: 72 | P93: 103 | Q93: 1095
C94: CONTROL | E94: 150 | F94: 130 | G94: 45 | H94: 93 | I94: 113 | J94: 150 | K94: 75 | L94: 130 | M94: 57 | N94: 97 | O94: 109 | P94: 58 | Q94: 1207
C95: INGRESOS A TRATAMIENTO | E95: 72 | F95: 55 | G95: 28 | H95: 82 | I95: 31 | J95: 52 | K95: 35 | L95: 71 | M95: 43 | N95: 40 | O95: 64 | P95: 34 | Q95: 607
C96: ALTAS DE TRATAMIENTO | E96: 52 | F96: 32 | G96: 32 | H96: 45 | I96: 47 | J96: 74 | K96: 50 | L96: 65 | M96: 46 | N96: 51 | O96: 67 | P96: 55 | Q96: 616
C97: CONTROL DE ESPECIALIDAD POST ALTA | E97: 26 | F97: 43 | G97: 0 | H97: 0 | I97: 0 | J97: 0 | K97: 0 | L97: 0 | M97: 0 | N97: 0 | O97: 0 | P97: 0 | Q97: 69
C98: ALTAS ADMINISTRATIVAS | E98: 0 | F98: 0 | G98: 0 | H98: 0 | I98: 0 | J98: 0 | K98: 0 | L98: 0 | M98: 0 | N98: 0 | O98: 0 | P98: 0 | Q98: 0
B99: ENDODONCIA | C99: CONSULTA NUEVA | E99: 81 | F99: 19 | G99: 81 | H99: 80 | I99: 63 | J99: 90 | K99: 46 | L99: 56 | M99: 36 | N99: 40 | O99: 44 | P99: 37 | Q99: 673
C100: CONTROL | E100: 183 | F100: 49 | G100: 148 | H100: 160 | I100: 157 | J100: 181 | K100: 100 | L100: 156 | M100: 131 | N100: 121 | O100: 100 | P100: 82 | Q100: 1568
C101: INGRESOS A TRATAMIENTO | E101: 53 | F101: 10 | G101: 73 | H101: 59 | I101: 67 | J101: 52 | K101: 37 | L101: 69 | M101: 53 | N101: 43 | O101: 39 | P101: 40 | Q101: 595
C102: ALTAS DE TRATAMIENTO | E102: 42 | F102: 11 | G102: 66 | H102: 48 | I102: 47 | J102: 91 | K102: 36 | L102: 66 | M102: 52 | N102: 48 | O102: 48 | P102: 31 | Q102: 586
C103: CONTROL DE ESPECIALIDAD POST ALTA | E103: 39 | F103: 13 | G103: 58 | H103: 58 | I103: 47 | J103: 67 | K103: 36 | L103: 53 | M103: 47 | N103: 35 | O103: 39 | P103: 34 | Q103: 526
C104: ALTAS ADMINISTRATIVAS | E104: 2 | F104: 15 | G104: 1 | H104: 1 | I104: 0 | J104: 0 | K104: 1 | L104: 1 | M104: 0 | N104: 0 | O104: 0 | P104: 0 | Q104: 21
B105: ODONTOPEDIATRÍA | C105: CONSULTA NUEVA | E105: 27 | F105: 10 | G105: 38 | H105: 21 | I105: 29 | J105: 35 | K105: 13 | L105: 35 | M105: 27 | N105: 11 | O105: 30 | P105: 19 | Q105: 295
C106: CONTROL | E106: 0 | F106: 59 | G106: 133 | H106: 106 | I106: 172 | J106: 173 | K106: 70 | L106: 165 | M106: 109 | N106: 104 | O106: 122 | P106: 116 | Q106: 1329
C107: INGRESOS A TRATAMIENTO | E107: 22 | F107: 44 | G107: 34 | H107: 16 | I107: 26 | J107: 20 | K107: 11 | L107: 29 | M107: 24 | N107: 20 | O107: 17 | P107: 15 | Q107: 278
C108: ALTAS DE TRATAMIENTO | E108: 7 | F108: 13 | G108: 17 | H108: 15 | I108: 19 | J108: 43 | K108: 12 | L108: 36 | M108: 36 | N108: 27 | O108: 38 | P108: 21 | Q108: 284
C109: CONTROL DE ESPECIALIDAD POST ALTA | E109: 6 | F109: 2 | G109: 7 | H109: 6 | I109: 7 | J109: 6 | K109: 5 | L109: 5 | M109: 5 | N109: 7 | O109: 5 | P109: 11 | Q109: 72
C110: ALTAS ADMINISTRATIVAS | E110: 0 | F110: 0 | G110: 0 | H110: 0 | I110: 0 | J110: 0 | K110: 0 | L110: 1 | M110: 0 | N110: 0 | O110: 0 | P110: 0 | Q110: 1
B111: OPERATORIA | C111: CONSULTA NUEVA | E111: 0 | F111: 0 | G111: 0 | H111: 1 | I111: 1 | J111: 0 | K111: 6 | L111: 0 | M111: 1 | N111: 1 | O111: 3 | P111: 0 | Q111: 13
C112: CONTROL | E112: 4 | F112: 0 | G112: 0 | H112: 7 | I112: 9 | J112: 8 | K112: 1 | L112: 3 | M112: 7 | N112: 6 | O112: 3 | P112: 0 | Q112: 48
C113: INGRESOS A TRATAMIENTO | E113: 2 | F113: 0 | G113: 0 | H113: 0 | I113: 3 | J113: 2 | K113: 4 | L113: 0 | M113: 1 | N113: 0 | O113: 0 | P113: 0 | Q113: 12
C114: ALTAS DE TRATAMIENTO | E114: 2 | F114: 0 | G114: 0 | H114: 0 | I114: 4 | J114: 2 | K114: 1 | L114: 0 | M114: 1 | N114: 2 | O114: 0 | P114: 0 | Q114: 12
C115: CONTROL DE ESPECIALIDAD POST ALTA | E115: 0 | F115: 0 | G115: 0 | H115: 1 | I115: 1 | J115: 0 | K115: 0 | L115: 0 | M115: 1 | N115: 0 | O115: 1 | P115: 0 | Q115: 4
C116: ALTAS ADMINISTRATIVAS | E116: 0 | F116: 0 | G116: 0 | H116: 0 | I116: 0 | J116: 0 | K116: 0 | L116: 0 | M116: 0 | N116: 0 | O116: 0 | P116: 0 | Q116: 0
B117: ORTODONCIA Y ORTOPEDIA DENTO MAXILOFACIAL: APARATOLOGÍA FIJA | C117: CONSULTA NUEVA | E117: 39 | F117: 22 | G117: 43 | H117: 37 | I117: 31 | J117: 30 | K117: 3 | L117: 15 | M117: 27 | N117: 26 | O117: 27 | P117: 15 | Q117: 315
C118: CONTROL | E118: 330 | F118: 180 | G118: 343 | H118: 279 | I118: 321 | J118: 380 | K118: 48 | L118: 167 | M118: 297 | N118: 293 | O118: 266 | P118: 145 | Q118: 3049
C119: INGRESOS A TRATAMIENTO | E119: 9 | F119: 169 | G119: 45 | H119: 25 | I119: 25 | J119: 15 | K119: 0 | L119: 6 | M119: 5 | N119: 4 | O119: 4 | P119: 1 | Q119: 308
C120: ALTAS DE TRATAMIENTO | E120: 7 | F120: 8 | G120: 9 | H120: 5 | I120: 4 | J120: 10 | K120: 0 | L120: 6 | M120: 15 | N120: 8 | O120: 26 | P120: 7 | Q120: 105
C121: CONTROL DE ESPECIALIDAD POST ALTA | E121: 12 | F121: 1 | G121: 3 | H121: 3 | I121: 4 | J121: 2 | K121: 0 | L121: 1 | M121: 4 | N121: 2 | O121: 4 | P121: 2 | Q121: 38
C122: ALTAS ADMINISTRATIVAS | E122: 0 | F122: 2 | G122: 0 | H122: 0 | I122: 0 | J122: 0 | K122: 0 | L122: 0 | M122: 0 | N122: 2 | O122: 2 | P122: 0 | Q122: 6
B123: ORTODONCIA Y ORTOPEDIA DENTO MAXILOFACIAL: APARATOLOGÍA REMOVIBLE | C123: CONSULTA NUEVA | E123: 0 | F123: 0 | G123: 0 | H123: 0 | I123: 0 | J123: 0 | K123: 0 | L123: 0 | M123: 0 | N123: 0 | O123: 0 | P123: 0 | Q123: 0
C124: CONTROL | E124: 0 | F124: 0 | G124: 0 | H124: 0 | I124: 0 | J124: 0 | K124: 0 | L124: 0 | M124: 0 | N124: 0 | O124: 0 | P124: 0 | Q124: 0
C125: INGRESOS A TRATAMIENTO | E125: 0 | F125: 0 | G125: 0 | H125: 0 | I125: 0 | J125: 0 | K125: 0 | L125: 0 | M125: 0 | N125: 0 | O125: 0 | P125: 0 | Q125: 0
C126: ALTAS DE TRATAMIENTO | E126: 0 | F126: 0 | G126: 0 | H126: 0 | I126: 0 | J126: 0 | K126: 0 | L126: 0 | M126: 0 | N126: 0 | O126: 0 | P126: 0 | Q126: 0
C127: CONTROL DE ESPECIALIDAD POST ALTA | E127: 0 | F127: 0 | G127: 0 | H127: 0 | I127: 0 | J127: 0 | K127: 0 | L127: 0 | M127: 0 | N127: 0 | O127: 0 | P127: 0 | Q127: 0
C128: ALTAS ADMINISTRATIVAS | E128: 0 | F128: 0 | G128: 0 | H128: 0 | I128: 0 | J128: 0 | K128: 0 | L128: 0 | M128: 0 | N128: 0 | O128: 0 | P128: 0 | Q128: 0
B129: PERIODONCIA | C129: CONSULTA NUEVA | E129: 24 | F129: 15 | G129: 24 | H129: 28 | I129: 23 | J129: 25 | K129: 22 | L129: 31 | M129: 37 | N129: 32 | O129: 21 | P129: 33 | Q129: 315
C130: CONTROL | E130: 61 | F130: 43 | G130: 76 | H130: 76 | I130: 81 | J130: 122 | K130: 52 | L130: 71 | M130: 52 | N130: 74 | O130: 56 | P130: 58 | Q130: 822
C131: INGRESOS A TRATAMIENTO | E131: 12 | F131: 14 | G131: 16 | H131: 13 | I131: 14 | J131: 30 | K131: 13 | L131: 17 | M131: 6 | N131: 17 | O131: 15 | P131: 12 | Q131: 179
C132: ALTAS DE TRATAMIENTO | E132: 25 | F132: 10 | G132: 36 | H132: 38 | I132: 24 | J132: 37 | K132: 11 | L132: 9 | M132: 9 | N132: 17 | O132: 9 | P132: 16 | Q132: 241
C133: CONTROL DE ESPECIALIDAD POST ALTA | E133: 0 | F133: 19 | G133: 4 | H133: 5 | I133: 18 | J133: 43 | K133: 15 | L133: 21 | M133: 26 | N133: 19 | O133: 16 | P133: 22 | Q133: 208
C134: ALTAS ADMINISTRATIVAS | E134: 1 | F134: 0 | G134: 0 | H134: 0 | I134: 0 | J134: 0 | K134: 0 | L134: 0 | M134: 0 | N134: 0 | O134: 0 | P134: 0 | Q134: 1
B135: REHABILITACIÓN: PRÓTESIS FIJA | C135: CONSULTA NUEVA | E135: 0 | F135: 0 | G135: 0 | H135: 0 | I135: 0 | J135: 0 | K135: 0 | L135: 0 | M135: 0 | N135: 0 | O135: 0 | P135: 0 | Q135: 0
C136: CONTROL | E136: 0 | F136: 0 | G136: 0 | H136: 0 | I136: 0 | J136: 0 | K136: 0 | L136: 0 | M136: 0 | N136: 0 | O136: 0 | P136: 0 | Q136: 0
C137: INGRESOS A TRATAMIENTO | E137: 0 | F137: 0 | G137: 0 | H137: 0 | I137: 0 | J137: 0 | K137: 0 | L137: 0 | M137: 0 | N137: 0 | O137: 0 | P137: 0 | Q137: 0
C138: ALTAS DE TRATAMIENTO | E138: 0 | F138: 0 | G138: 0 | H138: 0 | I138: 0 | J138: 0 | K138: 0 | L138: 0 | M138: 0 | N138: 0 | O138: 0 | P138: 0 | Q138: 0
C139: CONTROL DE ESPECIALIDAD POST ALTA | E139: 0 | F139: 0 | G139: 0 | H139: 0 | I139: 0 | J139: 0 | K139: 0 | L139: 0 | M139: 0 | N139: 0 | O139: 0 | P139: 0 | Q139: 0
C140: ALTAS ADMINISTRATIVAS | E140: 0 | F140: 0 | G140: 0 | H140: 0 | I140: 0 | J140: 0 | K140: 0 | L140: 0 | M140: 0 | N140: 0 | O140: 0 | P140: 0 | Q140: 0
B141: REHABILITACIÓN: PRÓTESIS REMOVIBLE | C141: CONSULTA NUEVA | E141: 85 | F141: 21 | G141: 87 | H141: 68 | I141: 51 | J141: 0 | K141: 55 | L141: 39 | M141: 45 | N141: 52 | O141: 37 | P141: 40 | Q141: 580
C142: CONTROL | E142: 489 | F142: 229 | G142: 386 | H142: 325 | I142: 211 | J142: 0 | K142: 148 | L142: 166 | M142: 105 | N142: 144 | O142: 136 | P142: 135 | Q142: 2474
C143: INGRESOS A TRATAMIENTO | E143: 61 | F143: 178 | G143: 80 | H143: 94 | I143: 61 | J143: 0 | K143: 67 | L143: 64 | M143: 45 | N143: 26 | O143: 31 | P143: 28 | Q143: 735
C144: ALTAS DE TRATAMIENTO | E144: 50 | F144: 16 | G144: 93 | H144: 36 | I144: 80 | J144: 0 | K144: 22 | L144: 36 | M144: 33 | N144: 34 | O144: 33 | P144: 29 | Q144: 462
C145: CONTROL DE ESPECIALIDAD POST ALTA | E145: 90 | F145: 17 | G145: 39 | H145: 38 | I145: 55 | J145: 0 | K145: 39 | L145: 41 | M145: 28 | N145: 25 | O145: 25 | P145: 39 | Q145: 436
C146: ALTAS ADMINISTRATIVAS | E146: 0 | F146: 18 | G146: 0 | H146: 1 | I146: 0 | J146: 0 | K146: 0 | L146: 1 | M146: 1 | N146: 0 | O146: 0 | P146: 0 | Q146: 21
B147: REHABILITACIÓN: PRÓTESIS IMPLANTOASISTIDA | C147: CONSULTA NUEVA | E147: 0 | F147: 0 | G147: 0 | H147: 0 | I147: 0 | J147: 0 | K147: 0 | L147: 0 | M147: 0 | N147: 27 | O147: 32 | P147: 15 | Q147: 74
C148: CONTROL | E148: 0 | F148: 0 | G148: 0 | H148: 0 | I148: 0 | J148: 0 | K148: 0 | L148: 3 | M148: 0 | N148: 54 | O148: 61 | P148: 53 | Q148: 171
C149: INGRESOS A TRATAMIENTO | E149: 0 | F149: 0 | G149: 0 | H149: 0 | I149: 0 | J149: 0 | K149: 0 | L149: 0 | M149: 0 | N149: 3 | O149: 21 | P149: 6 | Q149: 30
C150: ALTAS DE TRATAMIENTO | E150: 0 | F150: 0 | G150: 0 | H150: 0 | I150: 0 | J150: 0 | K150: 0 | L150: 0 | M150: 0 | N150: 5 | O150: 9 | P150: 7 | Q150: =SUM(E150:P150) -> 21
C151: CONTROL DE ESPECIALIDAD POST ALTA | E151: 0 | F151: 0 | G151: 0 | H151: 0 | I151: 0 | J151: 0 | K151: 0 | L151: 2 | M151: 0 | N151: 1 | O151: 3 | P151: 0 | Q151: 6
C152: ALTAS ADMINISTRATIVAS | E152: 0 | F152: 0 | G152: 0 | H152: 0 | I152: 0 | J152: 0 | K152: 0 | L152: 0 | M152: 0 | N152: 0 | O152: 0 | P152: 0 | Q152: 0
B153: IMPLANTOLOGÍA BUCO MAXILOFACIAL | C153: CONSULTA NUEVA | E153: 12 | F153: 12 | G153: 32 | H153: 15 | I153: 16 | J153: 45 | K153: 26 | L153: 24 | M153: 28 | N153: 3 | O153: 0 | P153: 1 | Q153: 214
C154: CONTROL | E154: 28 | F154: 27 | G154: 95 | H154: 94 | I154: 89 | J154: 116 | K154: 68 | L154: 69 | M154: 62 | N154: 0 | O154: 0 | P154: 0 | Q154: 648
C155: INGRESOS A TRATAMIENTO | E155: 1 | F155: 15 | G155: 7 | H155: 4 | I155: 11 | J155: 8 | K155: 2 | L155: 3 | M155: 2 | N155: 0 | O155: 1 | P155: 0 | Q155: 54
C156: ALTAS DE TRATAMIENTO | E156: 4 | F156: 2 | G156: 11 | H156: 17 | I156: 21 | J156: 42 | K156: 14 | L156: 8 | M156: 6 | N156: 0 | O156: 0 | P156: 0 | Q156: 125
C157: CONTROL DE ESPECIALIDAD POST ALTA | E157: 7 | F157: 3 | G157: 16 | H157: 17 | I157: 15 | J157: 22 | K157: 19 | L157: 9 | M157: 4 | N157: 0 | O157: 0 | P157: 0 | Q157: 112
C158: ALTAS ADMINISTRATIVAS | E158: 0 | F158: 1 | G158: 0 | H158: 0 | I158: 0 | J158: 0 | K158: 0 | L158: 0 | M158: 0 | N158: 0 | O158: 0 | P158: 0 | Q158: 1
B159: PATOLOGÍA ORAL | C159: CONSULTA NUEVA | E159: 0 | F159: 0 | G159: 0 | H159: 0 | I159: 0 | J159: 0 | K159: 0 | L159: 0 | M159: 0 | N159: 0 | O159: 0 | P159: 0 | Q159: 0
C160: CONTROL | E160: 0 | F160: 0 | G160: 0 | H160: 0 | I160: 0 | J160: 0 | K160: 0 | L160: 0 | M160: 0 | N160: 0 | O160: 0 | P160: 0 | Q160: 0
C161: INGRESOS A TRATAMIENTO | E161: 0 | F161: 0 | G161: 0 | H161: 0 | I161: 0 | J161: 0 | K161: 0 | L161: 0 | M161: 0 | N161: 0 | O161: 0 | P161: 0 | Q161: 0
C162: ALTAS DE TRATAMIENTO | E162: 0 | F162: 0 | G162: 0 | H162: 0 | I162: 0 | J162: 0 | K162: 0 | L162: 0 | M162: 0 | N162: 0 | O162: 0 | P162: 0 | Q162: 0
C163: CONTROL DE ESPECIALIDAD POST ALTA | E163: 0 | F163: 0 | G163: 0 | H163: 0 | I163: 0 | J163: 0 | K163: 0 | L163: 0 | M163: 0 | N163: 0 | O163: 0 | P163: 0 | Q163: 0
C164: ALTAS ADMINISTRATIVAS | E164: 0 | F164: 0 | G164: 0 | H164: 0 | I164: 0 | J164: 0 | K164: 0 | L164: 0 | M164: 0 | N164: 0 | O164: 0 | P164: 0 | Q164: 0
B165: TRASTORNOS TEMPOROMANDIBULARES Y DOLOR OROFACIAL | C165: CONSULTA NUEVA | E165: 29 | F165: 14 | G165: 24 | H165: 36 | I165: 37 | J165: 82 | K165: 20 | L165: 19 | M165: 19 | N165: 19 | O165: 20 | P165: 18 | Q165: 337
C166: CONTROL | E166: 182 | F166: 88 | G166: 123 | H166: 126 | I166: 135 | J166: 255 | K166: 94 | L166: 102 | M166: 117 | N166: 99 | O166: 108 | P166: 87 | Q166: 1516
C167: INGRESOS A TRATAMIENTO | E167: 32 | F167: 14 | G167: 25 | H167: 30 | I167: 35 | J167: 50 | K167: 20 | L167: 19 | M167: 15 | N167: 16 | O167: 19 | P167: 16 | Q167: 291
C168: ALTAS DE TRATAMIENTO | E168: 18 | F168: 8 | G168: 23 | H168: 33 | I168: 49 | J168: 77 | K168: 29 | L168: 32 | M168: 27 | N168: 15 | O168: 18 | P168: 9 | Q168: 338
C169: CONTROL DE ESPECIALIDAD POST ALTA | E169: 0 | F169: 4 | G169: 1 | H169: 0 | I169: 0 | J169: 0 | K169: 0 | L169: 0 | M169: 0 | N169: 0 | O169: 0 | P169: 0 | Q169: 5
C170: ALTAS ADMINISTRATIVAS | E170: 0 | F170: 0 | G170: 0 | H170: 0 | I170: 0 | J170: 0 | K170: 0 | L170: 0 | M170: 0 | N170: 0 | O170: 0 | P170: 0 | Q170: 0
B171: TOTAL | C171: CONSULTA NUEVA | E171: =E87+E93+E99+E105+E111+E117+E123+E129+E135+E141+E147+E153+E159+E165 -> 397 | F171: =F87+F93+F99+F105+F111+F117+F123+F129+F135+F141+F147+F153+F159+F165 -> 189 | G171: 407 | H171: 404 | I171: 377 | J171: 435 | K171: 280 | L171: 307 | M171: 261 | N171: 287 | O171: 286 | P171: 281 | Q171: =SUM(E171:P171) -> 3911
C172: CONTROL | E172: =E88+E94+E100+E106+E112+E118+E124+E130+E136+E142+E148+E154+E160+E166 -> 1427 | F172: 805 | G172: 1350 | H172: 1266 | I172: 1288 | J172: 1385 | K172: 656 | L172: 1032 | M172: 937 | N172: 992 | O172: 961 | P172: 734 | Q172: =SUM(E172:P172) -> 12833
C173: INGRESOS A TRATAMIENTO | E173: 264 | F173: 499 | G173: 308 | H173: 323 | I173: 273 | J173: 229 | K173: 189 | L173: 278 | M173: 194 | N173: 169 | O173: 211 | P173: 152 | Q173: 3089
C174: ALTAS DE TRATAMIENTO | E174: 207 | F174: 100 | G174: 288 | H174: 237 | I174: 295 | J174: 376 | K174: 175 | L174: 258 | M174: 225 | N174: 207 | O174: 251 | P174: 175 | Q174: 2794
C175: CONTROL DE ESPECIALIDAD POST ALTA | E175: 180 | F175: 102 | G175: 128 | H175: 128 | I175: 147 | J175: 140 | K175: 114 | L175: 132 | M175: 115 | N175: 89 | O175: 93 | P175: 108 | Q175: 1476
C176: ALTAS ADMINISTRATIVAS | E176: 3 | F176: 36 | G176: 1 | H176: 2 | I176: 0 | J176: 0 | K176: 1 | L176: 3 | M176: 1 | N176: 2 | O176: 2 | P176: 0 | Q176: 51
B177: Fuente: REM A09, Sección F, F1, I

Sheet HOV
A1: MINISTERIO DE SALUD
A2: SERVICIO DE SALUD COQUIMBO
A3: DEPARTAMENTO DE GESTIÓN, PLANIFICACIÓN Y CONTROL
A4: SUBDEPTO. DE ESTADÍSTICAS Y GESTIÓN DE LA INFORMACIÓN
A5: AÑO 2022
B8: INDICADOR 2.3: Porcentaje de cumplimiento de la programación de horas de consultas nuevas, tratamientos y procedimientos imagenológicos realizados por profesionales Cirujanos Dentista.
C13: ACTIVIDADES DE ESPECIALIDADES | E13: Enero | F13: Febrero | G13: Marzo | H13: Abril | I13: Mayo | J13: Junio | K13: Julio | L13: Agosto | M13: Septiembre | N13: Octubre | O13: Noviembre | P13: Diciembre | Q13: Total
C14: EXAMEN Y DIAGNÓSTICO DE ESPECIALIDAD | E14: 319 | F14: 215 | G14: 449 | H14: 379 | I14: 342 | J14: 365 | K14: 353 | L14: 426 | M14: 345 | N14: 359 | O14: 385 | P14: 414 | Q14: =SUM(E14:P14) -> 4351
C15: EDUCACIÓN EN SALUD BUCAL | E15: 242 | F15: 158 | G15: 287 | H15: 284 | I15: 288 | J15: 222 | K15: 255 | L15: 258 | M15: 184 | N15: 291 | O15: 234 | P15: 288 | Q15: =SUM(E15:P15) -> 2991
C16: RESPUESTA A INTERCONSULTA PERSONAS HOSPITALIZADOS | E16: 3 | F16: 7 | G16: 12 | H16: 7 | I16: 5 | J16: 3 | K16: 15 | L16: 11 | M16: 6 | N16: 2 | O16: 8 | P16: 8 | Q16: 87
C17: VISITA A SALA | E17: 3 | F17: 7 | G17: 18 | H17: 9 | I17: 15 | J17: 7 | K17: 17 | L17: 7 | M17: 6 | N17: 2 | O17: 8 | P17: 9 | Q17: 108
C18: CONTRALORÍA CLÍNICA | E18: 105 | F18: 0 | G18: 44 | H18: 128 | I18: 121 | J18: 47 | K18: 86 | L18: 70 | M18: 50 | N18: 67 | O18: 0 | P18: 149 | Q18: 867
C19: CIRUGÍA TERCER MOLAR | E19: 49 | F19: 33 | G19: 73 | H19: 71 | I19: 46 | J19: 47 | K19: 67 | L19: 72 | M19: 47 | N19: 48 | O19: 37 | P19: 45 | Q19: 635
C20: CIRUGÍA MENOR AMBULATORIA | E20: 46 | F20: 28 | G20: 53 | H20: 59 | I20: 48 | J20: 37 | K20: 41 | L20: 95 | M20: 43 | N20: 72 | O20: 53 | P20: 56 | Q20: 631
C21: CIRUGÍA MAYOR AMBULATORIA | E21: 2 | F21: 3 | G21: 2 | H21: 0 | I21: 9 | J21: 5 | K21: 7 | L21: 6 | M21: 2 | N21: 4 | O21: 4 | P21: 2 | Q21: 46
C22: TRATAMIENTO TRAUMATISMO DENTOALVEOLAR | E22: 0 | F22: 0 | G22: 5 | H22: 1 | I22: 1 | J22: 0 | K22: 0 | L22: 1 | M22: 0 | N22: 1 | O22: 1 | P22: 4 | Q22: 14
C23: OBTURACIÓN DIRECTA | E23: 22 | F23: 38 | G23: 69 | H23: 66 | I23: 116 | J23: 88 | K23: 79 | L23: 121 | M23: 81 | N23: 90 | O23: 84 | P23: 115 | Q23: 969
C24: OBTURACIÓN INDIRECTA (INLAYS U ONLAYS) | E24: 1 | F24: 1 | G24: 1 | H24: 0 | I24: 0 | J24: 0 | K24: 0 | L24: 0 | M24: 0 | N24: 0 | O24: 0 | P24: 1 | Q24: 4
C25: INSTALACIÓN APARATO REMOVIBLE ORTODÓNCICO | E25: 1 | F25: 2 | G25: 0 | H25: 2 | I25: 3 | J25: 1 | K25: 1 | L25: 1 | M25: 1 | N25: 1 | O25: 3 | P25: 0 | Q25: 16
C26: INSTALACIÓN APARATO FIJO ORTODÓNCICO | E26: 29 | F26: 16 | G26: 28 | H26: 26 | I26: 37 | J26: 31 | K26: 28 | L26: 23 | M26: 27 | N26: 28 | O26: 25 | P26: 24 | Q26: 322
C27: INSTALACIÓN APARATO DE CONTENCIÓN ORTODÓNCICO | E27: 3 | F27: 9 | G27: 3 | H27: 14 | I27: 11 | J27: 19 | K27: 11 | L27: 19 | M27: 9 | N27: 15 | O27: 15 | P27: 12 | Q27: 140
C28: RETIRO APARATOLOGÍA DE ORTODONCIA | E28: 13 | F28: 8 | G28: 8 | H28: 7 | I28: 14 | J28: 17 | K28: 13 | L28: 24 | M28: 17 | N28: 12 | O28: 16 | P28: 17 | Q28: 166
C29: ORTOPEDIA PREQUIRÚRGICA | E29: 0 | F29: 0 | G29: 0 | H29: 2 | I29: 0 | J29: 0 | K29: 0 | L29: 0 | M29: 0 | N29: 0 | O29: 0 | P29: 0 | Q29: 2
C30: ORTODONCIA PREVENTIVA E INTERCEPTIVA (OPI) | E30: 2 | F30: 0 | G30: 4 | H30: 1 | I30: 1 | J30: 0 | K30: 1 | L30: 3 | M30: 0 | N30: 1 | O30: 1 | P30: 2 | Q30: 16
C31: TRATAMIENTO ENDODONCIA UNIRRADICULAR | E31: 8 | F31: 4 | G31: 10 | H31: 15 | I31: 19 | J31: 18 | K31: 16 | L31: 21 | M31: 16 | N31: 20 | O31: 20 | P31: 23 | Q31: 190
C32: TRATAMIENTO ENDODONCIA BIRRADICULAR | E32: 9 | F32: 3 | G32: 26 | H32: 20 | I32: 21 | J32: 21 | K32: 19 | L32: 20 | M32: 25 | N32: 24 | O32: 25 | P32: 30 | Q32: 243
C33: TRATAMIENTO ENDODONCIA MULTIRRADICULAR | E33: 16 | F33: 5 | G33: 26 | H33: 24 | I33: 37 | J33: 31 | K33: 29 | L33: 44 | M33: 36 | N33: 52 | O33: 42 | P33: 53 | Q33: 395
C34: INDUCCIÓN AL CIERRE APICAL | E34: 1 | F34: 1 | G34: 0 | H34: 1 | I34: 0 | J34: 0 | K34: 0 | L34: 0 | M34: 1 | N34: 2 | O34: 1 | P34: 1 | Q34: 8
C35: RETRATAMIENTO DE ENDODONCIA | E35: 0 | F35: 2 | G35: 6 | H35: 2 | I35: 7 | J35: 5 | K35: 4 | L35: 5 | M35: 3 | N35: 3 | O35: 9 | P35: 2 | Q35: 48
C36: CIRUGÍA APICAL | E36: 0 | F36: 0 | G36: 0 | H36: 2 | I36: 1 | J36: 1 | K36: 0 | L36: 0 | M36: 0 | N36: 0 | O36: 1 | P36: 1 | Q36: 6
C37: ADAPTACIÓN A LA ATENCIÓN ODONTOLÓGICA | E37: 2 | F37: 15 | G37: 31 | H37: 38 | I37: 40 | J37: 0 | K37: 0 | L37: 0 | M37: 0 | N37: 0 | O37: 0 | P37: 0 | Q37: 126
C38: PROCEDIMIENTO RESTAURADOR (ODONTOPEDIATRÍA) | E38: 0 | F38: 12 | G38: 21 | H38: 27 | I38: 0 | J38: 0 | K38: 0 | L38: 0 | M38: 0 | N38: 0 | O38: 0 | P38: 0 | Q38: 60
C39: PROCEDIMIENTO PULPAR (ODONTOPEDIATRÍA) | E39: 0 | F39: 5 | G39: 4 | H39: 5 | I39: 12 | J39: 3 | K39: 0 | L39: 8 | M39: 2 | N39: 10 | O39: 7 | P39: 4 | Q39: 60
C40: CIRUGÍA AMBULATORIA (ODONTOPEDIATRÍA) | E40: 0 | F40: 2 | G40: 13 | H40: 14 | I40: 6 | J40: 9 | K40: 1 | L40: 24 | M40: 10 | N40: 18 | O40: 20 | P40: 14 | Q40: 131
C41: DESTARTRAJE SUBGINGIVAL O PULIDO RADICULAR | E41: 62 | F41: 14 | G41: 24 | H41: 72 | I41: 105 | J41: 70 | K41: 66 | L41: 97 | M41: 98 | N41: 91 | O41: 66 | P41: 81 | Q41: 846
C42: DESTARTRAJE SUPRAGINGIVAL O PULIDO CORONARIO | E42: 78 | F42: 13 | G42: 29 | H42: 91 | I42: 108 | J42: 81 | K42: 74 | L42: 106 | M42: 98 | N42: 101 | O42: 76 | P42: 90 | Q42: 945
C43: PROCEDIMIENTO QUIRÚRGICO (PERIODONCIA) | E43: 0 | F43: 0 | G43: 0 | H43: 2 | I43: 1 | J43: 3 | K43: 1 | L43: 0 | M43: 1 | N43: 2 | O43: 1 | P43: 2 | Q43: 13
C44: PROCEDIMIENTO QUIRÚRGICO PERIIMPLANTAR (PERIODONCIA) | E44: 0 | F44: 0 | G44: 0 | H44: 0 | I44: 1 | J44: 0 | K44: 0 | L44: 0 | M44: 1 | N44: 0 | O44: 0 | P44: 0 | Q44: 2
C45: FERULIZACIÓN | E45: 1 | F45: 1 | G45: 3 | H45: 0 | I45: 0 | J45: 3 | K45: 1 | L45: 1 | M45: 2 | N45: 1 | O45: 2 | P45: 0 | Q45: 15
C46: REHABILITACIÓN MEDIANTE PRÓTESIS REMOVIBLE ACRÍLICA PARCIAL O TOTAL | E46: 35 | F46: 35 | G46: 76 | H46: 78 | I46: 65 | J46: 57 | K46: 39 | L46: 63 | M46: 49 | N46: 31 | O46: 37 | P46: 59 | Q46: 624
C47: REHABILITACIÓN MEDIANTE PRÓTESIS REMOVIBLE METÁLICA PARCIAL | E47: 0 | F47: 0 | G47: 0 | H47: 0 | I47: 0 | J47: 0 | K47: 0 | L47: 0 | M47: 0 | N47: 0 | O47: 0 | P47: 0 | Q47: 0
C48: REHABILITACIÓN MEDIANTE PRÓTESIS FIJA UNITARIA O PLURAL | E48: 0 | F48: 2 | G48: 1 | H48: 0 | I48: 2 | J48: 0 | K48: 2 | L48: 2 | M48: 2 | N48: 0 | O48: 1 | P48: 10 | Q48: 22
C49: REHABILITACIÓN MEDIANTE PRÓTESIS FIJA IMPLANTOASISTIDA | E49: 1 | F49: 0 | G49: 1 | H49: 1 | I49: 3 | J49: 3 | K49: 2 | L49: 3 | M49: 1 | N49: 3 | O49: 7 | P49: 4 | Q49: 29
C50: REHABILITACIÓN MEDIANTE PRÓTESIS MUCO- IMPLANTOASISTIDA | E50: 0 | F50: 0 | G50: 0 | H50: 0 | I50: 0 | J50: 0 | K50: 2 | L50: 0 | M50: 1 | N50: 1 | O50: 0 | P50: 2 | Q50: 6
C51: REPARACIÓN DE PRÓTESIS | E51: 2 | F51: 3 | G51: 4 | H51: 0 | I51: 2 | J51: 1 | K51: 6 | L51: 2 | M51: 1 | N51: 1 | O51: 2 | P51: 2 | Q51: 26
C52: IMPLANTOLOGÍA QUIRÚRGICA | E52: 6 | F52: 2 | G52: 1 | H52: 0 | I52: 6 | J52: 5 | K52: 3 | L52: 12 | M52: 3 | N52: 11 | O52: 6 | P52: 3 | Q52: 58
C53: TOMA DE BIOPSIA | E53: 4 | F53: 2 | G53: 3 | H53: 1 | I53: 1 | J53: 2 | K53: 0 | L53: 1 | M53: 0 | N53: 2 | O53: 0 | P53: 1 | Q53: 17
C54: ESTUDIO HISTOPATOLÓGICO | E54: 6 | F54: 6 | G54: 4 | H54: 12 | I54: 12 | J54: 6 | K54: 6 | L54: 8 | M54: 0 | N54: 8 | O54: 6 | P54: 12 | Q54: 86
C55: SIALOMETRÍA | E55: 0 | F55: 0 | G55: 0 | H55: 0 | I55: 0 | J55: 0 | K55: 0 | L55: 0 | M55: 0 | N55: 0 | O55: 0 | P55: 0 | Q55: 0
C56: TERAPIA FARMACOLÓGICA DE LESIONES DEL TERRITORIO ORAL Y MAXILOFACIAL | E56: 24 | F56: 9 | G56: 35 | H56: 31 | I56: 31 | J56: 14 | K56: 31 | L56: 18 | M56: 6 | N56: 10 | O56: 9 | P56: 2 | Q56: 220
C57: TERAPIA NO FARMACOLÓGICA DE LESIONES DEL TERRITORIO ORAL Y MAXILOFACIAL | E57: 1 | F57: 0 | G57: 0 | H57: 0 | I57: 2 | J57: 3 | K57: 0 | L57: 0 | M57: 1 | N57: 2 | O57: 1 | P57: 0 | Q57: 10
C58: ESTUDIO CLÍNICO LESIONES DEL TERRITORIO ORAL MAXILOFACIAL | E58: 0 | F58: 0 | G58: 0 | H58: 2 | I58: 2 | J58: 0 | K58: 1 | L58: 0 | M58: 2 | N58: 3 | O58: 1 | P58: 0 | Q58: 11
C59: TERAPIA FÍSICA EN TRASTORNOS TEMPOROMANDIBULARES (TTM) Y DOLOR OROFACIAL (DOF) | E59: 1 | F59: 0 | G59: 0 | H59: 0 | I59: 0 | J59: 0 | K59: 0 | L59: 1 | M59: 2 | N59: 0 | O59: 0 | P59: 0 | Q59: 4
C60: INFILTRACIÓN EN ARTICULACIÓN TEMPORO MANDIBULAR (ATM) | E60: 0 | F60: 0 | G60: 0 | H60: 0 | I60: 2 | J60: 2 | K60: 0 | L60: 2 | M60: 0 | N60: 4 | O60: 0 | P60: 0 | Q60: 10
C61: BLOQUEO ANESTÉSICO Y/O MEDICAMENTOSO EN TTM Y DOF | E61: 0 | F61: 0 | G61: 0 | H61: 0 | I61: 2 | J61: 0 | K61: 0 | L61: 0 | M61: 0 | N61: 0 | O61: 0 | P61: 0 | Q61: 2
C62: ARTROCENTESIS EN ATM | E62: 0 | F62: 0 | G62: 0 | H62: 0 | I62: 0 | J62: 1 | K62: 0 | L62: 0 | M62: 0 | N62: 1 | O62: 0 | P62: 0 | Q62: 2
C63: TERAPIA BIOCONDUCTUAL | E63: 4 | F63: 0 | G63: 1 | H63: 2 | I63: 0 | J63: 0 | K63: 0 | L63: 0 | M63: 0 | N63: 0 | O63: 0 | P63: 0 | Q63: 7
C64: DESGASTE SELECTIVO | E64: 5 | F64: 2 | G64: 1 | H64: 4 | I64: 5 | J64: 6 | K64: 4 | L64: 7 | M64: 0 | N64: 1 | O64: 2 | P64: 0 | Q64: 37
C65: INSTALACIÓN DE DISPOSITIVO ORTOPÉDICO | E65: 2 | F65: 0 | G65: 3 | H65: 5 | I65: 0 | J65: 2 | K65: 3 | L65: 1 | M65: 1 | N65: 2 | O65: 0 | P65: 3 | Q65: 22
C66: ACTIVIDADES SOMATOPRÓTESIS | E66: 0 | F66: 0 | G66: 0 | H66: 0 | I66: 0 | J66: 0 | K66: 0 | L66: 0 | M66: 0 | N66: 0 | O66: 0 | P66: 0 | Q66: 0
C67: REHABILITACIÓN DE PRÓTESIS MAXILOFACIAL | E67: 0 | F67: 0 | G67: 0 | H67: 0 | I67: 0 | J67: 0 | K67: 0 | L67: 0 | M67: 0 | N67: 0 | O67: 0 | P67: 0 | Q67: 0
C68: TOTAL | E68: =SUM(E14:E67) -> 1108 | F68: =SUM(F14:F67) -> 663 | G68: 1379 | H68: 1505 | I68: 1550 | J68: 1236 | K68: 1284 | L68: 1583 | M68: 1180 | N68: 1397 | O68: 1216 | P68: 1545 | Q68: 15646
C71: ACTIVIDADES DE ESPECIALIDADES | E71: Enero | F71: Febrero | G71: Marzo | H71: Abril | I71: Mayo | J71: Junio | K71: Julio | L71: Agosto | M71: Septiembre | N71: Octubre | O71: Noviembre | P71: Diciembre | Q71: Total
C72: RADIOGRAFÍA INTRAORAL MEDIANTE TÉCNICAS RETROALVEOLARES (POR PLACA) | E72: 244 | F72: 113 | G72: 208 | H72: 248 | I72: 96 | J72: 112 | K72: 146 | L72: 146 | M72: 161 | N72: 65 | O72: 83 | P72: 144 | Q72: =SUM(E72:P72) -> 1766
C73: RADIOGRAFÍA INTRAORAL MEDIANTE TÉCNICAS BITE WING (POR PLACA) | E73: 35 | F73: 5 | G73: 12 | H73: 15 | I73: 31 | J73: 57 | K73: 43 | L73: 30 | M73: 53 | N73: 44 | O73: 48 | P73: 56 | Q73: =SUM(E73:P73) -> 429
C74: RADIOGRAFÍA EXTRAORAL (POR PLACA) | E74: 0 | F74: 0 | G74: 0 | H74: 0 | I74: 0 | J74: 0 | K74: 0 | L74: 0 | M74: 0 | N74: 0 | O74: 0 | P74: 0 | Q74: 0
C75: RADIOGRAFÍA OCLUSAL (POR PLACA) | E75: 0 | F75: 0 | G75: 0 | H75: 0 | I75: 0 | J75: 0 | K75: 1 | L75: 0 | M75: 0 | N75: 1 | O75: 0 | P75: 0 | Q75: 2
C76: TELERRADIOGRAFÍA (POR PLACA) | E76: 28 | F76: 22 | G76: 21 | H76: 20 | I76: 14 | J76: 9 | K76: 16 | L76: 23 | M76: 19 | N76: 13 | O76: 22 | P76: 21 | Q76: 228
C77: RADIOGRAFÍA PANORÁMICA (POR PLACA) | E77: 143 | F77: 62 | G77: 102 | H77: 130 | I77: 77 | J77: 72 | K77: 107 | L77: 150 | M77: 135 | N77: 76 | O77: 92 | P77: 134 | Q77: 1280
C78: TOMOGRAFÍA COMPUTACIONAL MAXILO FACIAL CONE BEAM (POR ADQUISICIÓN) | E78: 26 | F78: 14 | G78: 23 | H78: 40 | I78: 21 | J78: 22 | K78: 31 | L78: 41 | M78: 44 | N78: 24 | O78: 14 | P78: 46 | Q78: 346
C79: SIALOGRAFÍAS (POR PROCEDIMIENTO) | E79: 0 | F79: 0 | G79: 0 | H79: 0 | I79: 0 | J79: 0 | K79: 0 | L79: 0 | M79: 0 | N79: 0 | O79: 0 | P79: 0 | Q79: 0
C80: PROCEDIMIENTO IMAGENOLÓGICO COMPLEJO (POR PROCEDIMIENTO) | E80: 0 | F80: 0 | G80: 0 | H80: 0 | I80: 0 | J80: 0 | K80: 0 | L80: 0 | M80: 0 | N80: 0 | O80: 0 | P80: 0 | Q80: 0
C81: TOTAL | E81: =SUM(E72:E80) -> 476 | F81: 216 | G81: 366 | H81: 453 | I81: 239 | J81: 272 | K81: 344 | L81: 390 | M81: 412 | N81: 223 | O81: 259 | P81: 401 | Q81: 4051
B84: ESPECIALIDAD Y TIPO DE INGRESO O EGRESO | C84: Tipo de Ingreso | E84: Enero | F84: Febrero | G84: Marzo | H84: Abril | I84: Mayo | J84: Junio | K84: Julio | L84: Agosto | M84: Septiembre | N84: Octubre | O84: Noviembre | P84: Diciembre | Q84: Total
B85: CONSULTAS DE URGENCIA | C85: CONSULTAS GES | E85: 10 | F85: 6 | G85: 15 | H85: 13 | I85: 17 | J85: 9 | K85: 7 | L85: 13 | M85: 4 | N85: 11 | O85: 6 | P85: 8 | Q85: =SUM(E85:P85) -> 119
C86: CONSULTA NO GES | E86: 36 | F86: 16 | G86: 37 | H86: 25 | I86: 25 | J86: 24 | K86: 21 | L86: 29 | M86: 16 | N86: 24 | O86: 30 | P86: 27 | Q86: =SUM(E86:P86) -> 310
B87: CIRUGÍA BUCAL | C87: CONSULTA NUEVA | E87: 13 | F87: 4 | G87: 22 | H87: 20 | I87: 25 | J87: 10 | K87: 7 | L87: 25 | M87: 12 | N87: 28 | O87: 19 | P87: 14 | Q87: 199
C88: CONTROL | E88: 31 | F88: 3 | G88: 44 | H88: 34 | I88: 51 | J88: 42 | K88: 13 | L88: 37 | M88: 30 | N88: 78 | O88: 68 | P88: 82 | Q88: 513
C89: INGRESOS A TRATAMIENTO | E89: 13 | F89: 4 | G89: 22 | H89: 20 | I89: 25 | J89: 10 | K89: 7 | L89: 25 | M89: 12 | N89: 28 | O89: 19 | P89: 14 | Q89: 199
C90: ALTAS DE TRATAMIENTO | E90: 11 | F90: 2 | G90: 25 | H90: 17 | I90: 21 | J90: 19 | K90: 6 | L90: 21 | M90: 14 | N90: 27 | O90: 27 | P90: 28 | Q90: 218
C91: CONTROL DE ESPECIALIDAD POST ALTA | E91: 13 | F91: 3 | G91: 13 | H91: 20 | I91: 23 | J91: 18 | K91: 7 | L91: 26 | M91: 6 | N91: 16 | O91: 7 | P91: 8 | Q91: 160
C92: ALTAS ADMINISTRATIVAS | E92: 0 | F92: 0 | G92: 0 | H92: 0 | I92: 0 | J92: 0 | K92: 0 | L92: 0 | M92: 0 | N92: 0 | O92: 0 | P92: 0 | Q92: 0
B93: CIRUGÍA Y TRAUMATOLOGÍA MAXILOFACIAL | C93: CONSULTA NUEVA | E93: 38 | F93: 28 | G93: 68 | H93: 40 | I93: 58 | J93: 42 | K93: 47 | L93: 21 | M93: 29 | N93: 23 | O93: 33 | P93: 37 | Q93: 464
C94: CONTROL | E94: 85 | F94: 64 | G94: 176 | H94: 137 | I94: 142 | J94: 94 | K94: 143 | L94: 100 | M94: 88 | N94: 90 | O94: 92 | P94: 116 | Q94: 1327
C95: INGRESOS A TRATAMIENTO | E95: 35 | F95: 27 | G95: 62 | H95: 39 | I95: 56 | J95: 37 | K95: 34 | L95: 17 | M95: 23 | N95: 20 | O95: 24 | P95: 24 | Q95: 398
C96: ALTAS DE TRATAMIENTO | E96: 17 | F96: 16 | G96: 43 | H96: 47 | I96: 34 | J96: 28 | K96: 36 | L96: 26 | M96: 23 | N96: 23 | O96: 12 | P96: 21 | Q96: 326
C97: CONTROL DE ESPECIALIDAD POST ALTA | E97: 0 | F97: 0 | G97: 1 | H97: 2 | I97: 1 | J97: 0 | K97: 2 | L97: 1 | M97: 0 | N97: 0 | O97: 0 | P97: 0 | Q97: 7
C98: ALTAS ADMINISTRATIVAS | E98: 0 | F98: 0 | G98: 0 | H98: 0 | I98: 0 | J98: 7 | K98: 14 | L98: 3 | M98: 11 | N98: 7 | O98: 7 | P98: 2 | Q98: 51
B99: ENDODONCIA | C99: CONSULTA NUEVA | E99: 47 | F99: 16 | G99: 115 | H99: 81 | I99: 125 | J99: 107 | K99: 86 | L99: 128 | M99: 105 | N99: 115 | O99: 93 | P99: 96 | Q99: 1114
C100: CONTROL | E100: 71 | F100: 28 | G100: 164 | H100: 148 | I100: 217 | J100: 157 | K100: 163 | L100: 225 | M100: 183 | N100: 224 | O100: 212 | P100: 214 | Q100: 2006
C101: INGRESOS A TRATAMIENTO | E101: 33 | F101: 12 | G101: 63 | H101: 58 | I101: 76 | J101: 69 | K101: 64 | L101: 85 | M101: 78 | N101: 97 | O101: 88 | P101: 101 | Q101: 824
C102: ALTAS DE TRATAMIENTO | E102: 20 | F102: 9 | G102: 47 | H102: 46 | I102: 62 | J102: 42 | K102: 52 | L102: 64 | M102: 64 | N102: 61 | O102: 79 | P102: 65 | Q102: 611
C103: CONTROL DE ESPECIALIDAD POST ALTA | E103: 8 | F103: 4 | G103: 10 | H103: 9 | I103: 5 | J103: 2 | K103: 0 | L103: 0 | M103: 0 | N103: 0 | O103: 1 | P103: 2 | Q103: 41
C104: ALTAS ADMINISTRATIVAS | E104: 0 | F104: 0 | G104: 2 | H104: 4 | I104: 2 | J104: 3 | K104: 5 | L104: 5 | M104: 1 | N104: 1 | O104: 1 | P104: 2 | Q104: 26
B105: ODONTOPEDIATRÍA | C105: CONSULTA NUEVA | E105: 8 | F105: 6 | G105: 19 | H105: 23 | I105: 28 | J105: 24 | K105: 10 | L105: 29 | M105: 19 | N105: 24 | O105: 23 | P105: 30 | Q105: 243
C106: CONTROL | E106: 38 | F106: 32 | G106: 120 | H106: 121 | I106: 127 | J106: 101 | K106: 58 | L106: 141 | M106: 93 | N106: 141 | O106: 141 | P106: 142 | Q106: 1255
C107: INGRESOS A TRATAMIENTO | E107: 7 | F107: 6 | G107: 16 | H107: 26 | I107: 31 | J107: 25 | K107: 11 | L107: 29 | M107: 24 | N107: 28 | O107: 21 | P107: 31 | Q107: 255
C108: ALTAS DE TRATAMIENTO | E108: 5 | F108: 7 | G108: 18 | H108: 15 | I108: 25 | J108: 19 | K108: 17 | L108: 31 | M108: 8 | N108: 16 | O108: 21 | P108: 25 | Q108: 207
C109: CONTROL DE ESPECIALIDAD POST ALTA | E109: 7 | F109: 0 | G109: 10 | H109: 11 | I109: 7 | J109: 6 | K109: 5 | L109: 11 | M109: 2 | N109: 6 | O109: 13 | P109: 11 | Q109: 89
C110: ALTAS ADMINISTRATIVAS | E110: 0 | F110: 0 | G110: 0 | H110: 0 | I110: 0 | J110: 1 | K110: 0 | L110: 0 | M110: 0 | N110: 0 | O110: 0 | P110: 2 | Q110: 3
B111: OPERATORIA | C111: CONSULTA NUEVA | E111: 16 | F111: 14 | G111: 9 | H111: 5 | I111: 10 | J111: 4 | K111: 15 | L111: 5 | M111: 7 | N111: 0 | O111: 9 | P111: 5 | Q111: 99
C112: CONTROL | E112: 68 | F112: 64 | G112: 51 | H112: 64 | I112: 70 | J112: 33 | K112: 58 | L112: 75 | M112: 52 | N112: 23 | O112: 41 | P112: 58 | Q112: 657
C113: INGRESOS A TRATAMIENTO | E113: 15 | F113: 14 | G113: 10 | H113: 9 | I113: 9 | J113: 5 | K113: 10 | L113: 8 | M113: 6 | N113: 0 | O113: 10 | P113: 2 | Q113: 98
C114: ALTAS DE TRATAMIENTO | E114: 10 | F114: 11 | G114: 10 | H114: 7 | I114: 10 | J114: 6 | K114: 8 | L114: 12 | M114: 5 | N114: 3 | O114: 6 | P114: 9 | Q114: 97
C115: CONTROL DE ESPECIALIDAD POST ALTA | E115: 9 | F115: 2 | G115: 0 | H115: 0 | I115: 4 | J115: 0 | K115: 0 | L115: 0 | M115: 0 | N115: 0 | O115: 0 | P115: 0 | Q115: 15
C116: ALTAS ADMINISTRATIVAS | E116: 0 | F116: 0 | G116: 0 | H116: 0 | I116: 0 | J116: 0 | K116: 0 | L116: 0 | M116: 0 | N116: 0 | O116: 0 | P116: 0 | Q116: 0
B117: ORTODONCIA Y ORTOPEDIA DENTO MAXILOFACIAL: APARATOLOGÍA FIJA | C117: CONSULTA NUEVA | E117: 12 | F117: 17 | G117: 7 | H117: 20 | I117: 10 | J117: 19 | K117: 15 | L117: 15 | M117: 13 | N117: 11 | O117: 10 | P117: 15 | Q117: 164
C118: CONTROL | E118: 95 | F118: 142 | G118: 166 | H118: 161 | I118: 158 | J118: 183 | K118: 97 | L118: 208 | M118: 168 | N118: 165 | O118: 179 | P118: 190 | Q118: 1912
C119: INGRESOS A TRATAMIENTO | E119: 8 | F119: 16 | G119: 14 | H119: 35 | I119: 22 | J119: 40 | K119: 9 | L119: 20 | M119: 23 | N119: 16 | O119: 12 | P119: 9 | Q119: 224
C120: ALTAS DE TRATAMIENTO | E120: 1 | F120: 14 | G120: 3 | H120: 7 | I120: 6 | J120: 22 | K120: 4 | L120: 17 | M120: 7 | N120: 8 | O120: 7 | P120: 10 | Q120: 106
C121: CONTROL DE ESPECIALIDAD POST ALTA | E121: 2 | F121: 1 | G121: 4 | H121: 2 | I121: 3 | J121: 4 | K121: 3 | L121: 5 | M121: 2 | N121: 6 | O121: 6 | P121: 2 | Q121: 40
C122: ALTAS ADMINISTRATIVAS | E122: 0 | F122: 2 | G122: 0 | H122: 1 | I122: 1 | J122: 2 | K122: 0 | L122: 0 | M122: 0 | N122: 0 | O122: 0 | P122: 0 | Q122: 6
B123: ORTODONCIA Y ORTOPEDIA DENTO MAXILOFACIAL: APARATOLOGÍA REMOVIBLE | C123: CONSULTA NUEVA | E123: 1 | F123: 0 | G123: 0 | H123: 0 | I123: 0 | J123: 1 | K123: 2 | L123: 1 | M123: 0 | N123: 2 | O123: 1 | P123: 1 | Q123: 9
C124: CONTROL | E124: 8 | F124: 9 | G124: 10 | H124: 9 | I124: 6 | J124: 9 | K124: 5 | L124: 11 | M124: 4 | N124: 7 | O124: 7 | P124: 9 | Q124: 94
C125: INGRESOS A TRATAMIENTO | E125: 2 | F125: 1 | G125: 1 | H125: 1 | I125: 1 | J125: 5 | K125: 3 | L125: 2 | M125: 0 | N125: 3 | O125: 1 | P125: 1 | Q125: 21
C126: ALTAS DE TRATAMIENTO | E126: 0 | F126: 0 | G126: 0 | H126: 0 | I126: 0 | J126: 5 | K126: 0 | L126: 4 | M126: 1 | N126: 1 | O126: 0 | P126: 3 | Q126: 14
C127: CONTROL DE ESPECIALIDAD POST ALTA | E127: 0 | F127: 0 | G127: 0 | H127: 0 | I127: 0 | J127: 0 | K127: 0 | L127: 0 | M127: 0 | N127: 0 | O127: 0 | P127: 0 | Q127: 0
C128: ALTAS ADMINISTRATIVAS | E128: 0 | F128: 0 | G128: 0 | H128: 0 | I128: 0 | J128: 0 | K128: 0 | L128: 0 | M128: 0 | N128: 0 | O128: 0 | P128: 0 | Q128: 0
B129: PERIODONCIA | C129: CONSULTA NUEVA | E129: 21 | F129: 3 | G129: 10 | H129: 34 | I129: 36 | J129: 18 | K129: 29 | L129: 29 | M129: 34 | N129: 31 | O129: 29 | P129: 39 | Q129: 313
C130: CONTROL | E130: 48 | F130: 12 | G130: 21 | H130: 84 | I130: 107 | J130: 74 | K130: 74 | L130: 103 | M130: 105 | N130: 103 | O130: 68 | P130: 86 | Q130: 885
C131: INGRESOS A TRATAMIENTO | E131: 21 | F131: 2 | G131: 9 | H131: 33 | I131: 35 | J131: 18 | K131: 29 | L131: 28 | M131: 33 | N131: 31 | O131: 25 | P131: 35 | Q131: 299
C132: ALTAS DE TRATAMIENTO | E132: 14 | F132: 3 | G132: 1 | H132: 9 | I132: 18 | J132: 14 | K132: 18 | L132: 28 | M132: 36 | N132: 16 | O132: 12 | P132: 12 | Q132: 181
C133: CONTROL DE ESPECIALIDAD POST ALTA | E133: 7 | F133: 1 | G133: 4 | H133: 5 | I133: 3 | J133: 2 | K133: 5 | L133: 0 | M133: 0 | N133: 0 | O133: 0 | P133: 0 | Q133: 27
C134: ALTAS ADMINISTRATIVAS | E134: 3 | F134: 0 | G134: 0 | H134: 1 | I134: 3 | J134: 0 | K134: 2 | L134: 1 | M134: 2 | N134: 0 | O134: 0 | P134: 1 | Q134: 13
B135: REHABILITACIÓN: PRÓTESIS FIJA | C135: CONSULTA NUEVA | E135: 0 | F135: 0 | G135: 0 | H135: 0 | I135: 1 | J135: 1 | K135: 1 | L135: 4 | M135: 2 | N135: 0 | O135: 0 | P135: 3 | Q135: 12
C136: CONTROL | E136: 5 | F136: 11 | G136: 7 | H136: 5 | I136: 9 | J136: 7 | K136: 6 | L136: 17 | M136: 12 | N136: 4 | O136: 8 | P136: 15 | Q136: 106
C137: INGRESOS A TRATAMIENTO | E137: 0 | F137: 2 | G137: 0 | H137: 1 | I137: 3 | J137: 2 | K137: 1 | L137: 4 | M137: 1 | N137: 1 | O137: 1 | P137: 3 | Q137: 19
C138: ALTAS DE TRATAMIENTO | E138: 0 | F138: 2 | G138: 2 | H138: 0 | I138: 2 | J138: 0 | K138: 2 | L138: 1 | M138: 2 | N138: 0 | O138: 0 | P138: 4 | Q138: 15
C139: CONTROL DE ESPECIALIDAD POST ALTA | E139: 0 | F139: 0 | G139: 0 | H139: 0 | I139: 0 | J139: 0 | K139: 0 | L139: 0 | M139: 0 | N139: 0 | O139: 0 | P139: 0 | Q139: 0
C140: ALTAS ADMINISTRATIVAS | E140: 0 | F140: 0 | G140: 0 | H140: 0 | I140: 0 | J140: 0 | K140: 0 | L140: 0 | M140: 0 | N140: 0 | O140: 0 | P140: 0 | Q140: 0
B141: REHABILITACIÓN: PRÓTESIS REMOVIBLE | C141: CONSULTA NUEVA | E141: 43 | F141: 56 | G141: 35 | H141: 58 | I141: 41 | J141: 35 | K141: 27 | L141: 38 | M141: 25 | N141: 20 | O141: 20 | P141: 32 | Q141: 430
C142: CONTROL | E142: 156 | F142: 115 | G142: 162 | H142: 207 | I142: 213 | J142: 161 | K142: 134 | L142: 201 | M142: 122 | N142: 87 | O142: 126 | P142: 177 | Q142: 1861
C143: INGRESOS A TRATAMIENTO | E143: 39 | F143: 25 | G143: 16 | H143: 41 | I143: 39 | J143: 19 | K143: 16 | L143: 33 | M143: 14 | N143: 14 | O143: 20 | P143: 29 | Q143: 305
C144: ALTAS DE TRATAMIENTO | E144: 23 | F144: 24 | G144: 39 | H144: 43 | I144: 37 | J144: 33 | K144: 23 | L144: 34 | M144: 26 | N144: 14 | O144: 22 | P144: 33 | Q144: 351
C145: CONTROL DE ESPECIALIDAD POST ALTA | E145: 2 | F145: 0 | G145: 0 | H145: 0 | I145: 0 | J145: 0 | K145: 0 | L145: 0 | M145: 0 | N145: 0 | O145: 0 | P145: 6 | Q145: 8
C146: ALTAS ADMINISTRATIVAS | E146: 0 | F146: 0 | G146: 1 | H146: 0 | I146: 0 | J146: 1 | K146: 0 | L146: 1 | M146: 0 | N146: 0 | O146: 0 | P146: 0 | Q146: 3
B147: REHABILITACIÓN: PRÓTESIS IMPLANTOASISTIDA | C147: CONSULTA NUEVA | E147: 2 | F147: 0 | G147: 5 | H147: 3 | I147: 3 | J147: 3 | K147: 2 | L147: 3 | M147: 2 | N147: 2 | O147: 5 | P147: 2 | Q147: 32
C148: CONTROL | E148: 7 | F148: 12 | G148: 19 | H148: 20 | I148: 21 | J148: 15 | K148: 8 | L148: 15 | M148: 14 | N148: 28 | O148: 25 | P148: 29 | Q148: 213
C149: INGRESOS A TRATAMIENTO | E149: 3 | F149: 0 | G149: 5 | H149: 4 | I149: 3 | J149: 3 | K149: 2 | L149: 3 | M149: 2 | N149: 2 | O149: 4 | P149: 2 | Q149: 33
C150: ALTAS DE TRATAMIENTO | E150: 1 | F150: 0 | G150: 2 | H150: 1 | I150: 4 | J150: 3 | K150: 1 | L150: 2 | M150: 4 | N150: 5 | O150: 9 | P150: 8 | Q150: =SUM(E150:P150) -> 40
C151: CONTROL DE ESPECIALIDAD POST ALTA | E151: 7 | F151: 1 | G151: 4 | H151: 5 | I151: 2 | J151: 4 | K151: 1 | L151: 7 | M151: 1 | N151: 2 | O151: 1 | P151: 6 | Q151: 41
C152: ALTAS ADMINISTRATIVAS | E152: 0 | F152: 0 | G152: 0 | H152: 0 | I152: 0 | J152: 0 | K152: 0 | L152: 0 | M152: 0 | N152: 0 | O152: 0 | P152: 0 | Q152: 0
B153: IMPLANTOLOGÍA BUCO MAXILOFACIAL | C153: CONSULTA NUEVA | E153: 3 | F153: 0 | G153: 1 | H153: 4 | I153: 3 | J153: 3 | K153: 0 | L153: 3 | M153: 0 | N153: 3 | O153: 1 | P153: 1 | Q153: 22
C154: CONTROL | E154: 17 | F154: 1 | G154: 6 | H154: 6 | I154: 14 | J154: 8 | K154: 3 | L154: 16 | M154: 4 | N154: 11 | O154: 5 | P154: 6 | Q154: 97
C155: INGRESOS A TRATAMIENTO | E155: 3 | F155: 0 | G155: 1 | H155: 4 | I155: 3 | J155: 3 | K155: 0 | L155: 3 | M155: 0 | N155: 3 | O155: 1 | P155: 1 | Q155: 22
C156: ALTAS DE TRATAMIENTO | E156: 4 | F156: 1 | G156: 1 | H156: 1 | I156: 3 | J156: 2 | K156: 0 | L156: 6 | M156: 1 | N156: 4 | O156: 3 | P156: 1 | Q156: 27
C157: CONTROL DE ESPECIALIDAD POST ALTA | E157: 1 | F157: 3 | G157: 3 | H157: 4 | I157: 1 | J157: 4 | K157: 0 | L157: 2 | M157: 2 | N157: 2 | O157: 0 | P157: 0 | Q157: 22
C158: ALTAS ADMINISTRATIVAS | E158: 0 | F158: 0 | G158: 0 | H158: 0 | I158: 0 | J158: 0 | K158: 0 | L158: 0 | M158: 0 | N158: 0 | O158: 0 | P158: 0 | Q158: 0
B159: PATOLOGÍA ORAL | C159: CONSULTA NUEVA | E159: 0 | F159: 0 | G159: 0 | H159: 0 | I159: 0 | J159: 0 | K159: 0 | L159: 0 | M159: 0 | N159: 0 | O159: 0 | P159: 0 | Q159: 0
C160: CONTROL | E160: 0 | F160: 0 | G160: 0 | H160: 0 | I160: 0 | J160: 0 | K160: 0 | L160: 0 | M160: 0 | N160: 0 | O160: 0 | P160: 0 | Q160: 0
C161: INGRESOS A TRATAMIENTO | E161: 0 | F161: 0 | G161: 0 | H161: 0 | I161: 0 | J161: 0 | K161: 0 | L161: 0 | M161: 0 | N161: 0 | O161: 0 | P161: 0 | Q161: 0
C162: ALTAS DE TRATAMIENTO | E162: 0 | F162: 0 | G162: 0 | H162: 0 | I162: 0 | J162: 0 | K162: 0 | L162: 0 | M162: 0 | N162: 0 | O162: 0 | P162: 0 | Q162: 0
C163: CONTROL DE ESPECIALIDAD POST ALTA | E163: 0 | F163: 0 | G163: 0 | H163: 0 | I163: 0 | J163: 0 | K163: 0 | L163: 0 | M163: 0 | N163: 0 | O163: 0 | P163: 0 | Q163: 0
C164: ALTAS ADMINISTRATIVAS | E164: 0 | F164: 0 | G164: 0 | H164: 0 | I164: 0 | J164: 0 | K164: 0 | L164: 0 | M164: 0 | N164: 0 | O164: 0 | P164: 0 | Q164: 0
B165: TRASTORNOS TEMPOROMANDIBULARES Y DOLOR OROFACIAL | C165: CONSULTA NUEVA | E165: 0 | F165: 0 | G165: 0 | H165: 0 | I165: 0 | J165: 0 | K165: 0 | L165: 0 | M165: 0 | N165: 0 | O165: 0 | P165: 0 | Q165: 0
C166: CONTROL | E166: 0 | F166: 0 | G166: 0 | H166: 0 | I166: 0 | J166: 0 | K166: 0 | L166: 0 | M166: 0 | N166: 0 | O166: 0 | P166: 0 | Q166: 0
C167: INGRESOS A TRATAMIENTO | E167: 0 | F167: 0 | G167: 0 | H167: 0 | I167: 0 | J167: 0 | K167: 0 | L167: 0 | M167: 0 | N167: 0 | O167: 0 | P167: 0 | Q167: 0
C168: ALTAS DE TRATAMIENTO | E168: 0 | F168: 0 | G168: 0 | H168: 0 | I168: 0 | J168: 0 | K168: 0 | L168: 0 | M168: 0 | N168: 0 | O168: 0 | P168: 0 | Q168: 0
C169: CONTROL DE ESPECIALIDAD POST ALTA | E169: 0 | F169: 0 | G169: 0 | H169: 0 | I169: 0 | J169: 0 | K169: 0 | L169: 0 | M169: 0 | N169: 0 | O169: 0 | P169: 0 | Q169: 0
C170: ALTAS ADMINISTRATIVAS | E170: 0 | F170: 0 | G170: 0 | H170: 0 | I170: 0 | J170: 0 | K170: 0 | L170: 0 | M170: 0 | N170: 0 | O170: 0 | P170: 0 | Q170: 0
B171: TOTAL | C171: CONSULTA NUEVA | E171: =E87+E93+E99+E105+E111+E117+E123+E129+E135+E141+E147+E153+E159+E165 -> 204 | F171: =F87+F93+F99+F105+F111+F117+F123+F129+F135+F141+F147+F153+F159+F165 -> 144 | G171: 291 | H171: 288 | I171: 340 | J171: 267 | K171: 241 | L171: 301 | M171: 248 | N171: 259 | O171: 243 | P171: 275 | Q171: =SUM(E171:P171) -> 3101
C172: CONTROL | E172: =E88+E94+E100+E106+E112+E118+E124+E130+E136+E142+E148+E154+E160+E166 -> 629 | F172: 493 | G172: 946 | H172: 996 | I172: 1135 | J172: 884 | K172: 762 | L172: 1149 | M172: 875 | N172: 961 | O172: 972 | P172: 1124 | Q172: =SUM(E172:P172) -> 10926
C173: INGRESOS A TRATAMIENTO | E173: 179 | F173: 109 | G173: 219 | H173: 271 | I173: 303 | J173: 236 | K173: 186 | L173: 257 | M173: 216 | N173: 243 | O173: 226 | P173: 252 | Q173: 2697
C174: ALTAS DE TRATAMIENTO | E174: 106 | F174: 89 | G174: 191 | H174: 193 | I174: 222 | J174: 193 | K174: 167 | L174: 246 | M174: 191 | N174: 178 | O174: 198 | P174: 219 | Q174: 2193
C175: CONTROL DE ESPECIALIDAD POST ALTA | E175: 56 | F175: 15 | G175: 49 | H175: 58 | I175: 49 | J175: 40 | K175: 23 | L175: 52 | M175: 13 | N175: 32 | O175: 28 | P175: 35 | Q175: 450
C176: ALTAS ADMINISTRATIVAS | E176: 3 | F176: 2 | G176: 3 | H176: 6 | I176: 6 | J176: 14 | K176: 21 | L176: 10 | M176: 14 | N176: 8 | O176: 8 | P176: 7 | Q176: 102
B177: Fuente: REM A09, Sección F, F1, I

Sheet HILL
A1: MINISTERIO DE SALUD
A2: SERVICIO DE SALUD COQUIMBO
A3: DEPARTAMENTO DE GESTIÓN, PLANIFICACIÓN Y CONTROL
A4: SUBDEPTO. DE ESTADÍSTICAS Y GESTIÓN DE LA INFORMACIÓN
A5: AÑO 2022
B8: INDICADOR 2.3: Porcentaje de cumplimiento de la programación de horas de consultas nuevas, tratamientos y procedimientos imagenológicos realizados por profesionales Cirujanos Dentista.
C13: ACTIVIDADES DE ESPECIALIDADES | E13: Enero | F13: Febrero | G13: Marzo | H13: Abril | I13: Mayo | J13: Junio | K13: Julio | L13: Agosto | M13: Septiembre | N13: Octubre | O13: Noviembre | P13: Diciembre | Q13: Total
C14: EXAMEN Y DIAGNÓSTICO DE ESPECIALIDAD | E14: 164 | F14: 199 | G14: 164 | H14: 173 | I14: 295 | J14: 253 | K14: 186 | L14: 356 | M14: 351 | N14: 350 | O14: 551 | P14: 325 | Q14: =SUM(E14:P14) -> 3367
C15: EDUCACIÓN EN SALUD BUCAL | E15: 210 | F15: 44 | G15: 252 | H15: 226 | I15: 243 | J15: 248 | K15: 199 | L15: 291 | M15: 238 | N15: 120 | O15: 245 | P15: 124 | Q15: =SUM(E15:P15) -> 2440
C16: RESPUESTA A INTERCONSULTA PERSONAS HOSPITALIZADOS | E16: 0 | F16: 2 | G16: 0 | H16: 2 | I16: 3 | J16: 4 | K16: 0 | L16: 0 | M16: 0 | N16: 0 | O16: 0 | P16: 6 | Q16: 17
C17: VISITA A SALA | E17: 15 | F17: 12 | G17: 4 | H17: 7 | I17: 17 | J17: 7 | K17: 4 | L17: 7 | M17: 2 | N17: 4 | O17: 7 | P17: 3 | Q17: 89
C18: CONTRALORÍA CLÍNICA | E18: 0 | F18: 0 | G18: 0 | H18: 0 | I18: 0 | J18: 0 | K18: 0 | L18: 0 | M18: 0 | N18: 0 | O18: 0 | P18: 0 | Q18: 0
C19: CIRUGÍA TERCER MOLAR | E19: 16 | F19: 12 | G19: 8 | H19: 5 | I19: 11 | J19: 24 | K19: 22 | L19: 18 | M19: 16 | N19: 10 | O19: 19 | P19: 5 | Q19: 166
C20: CIRUGÍA MENOR AMBULATORIA | E20: 13 | F20: 8 | G20: 21 | H20: 19 | I20: 17 | J20: 14 | K20: 23 | L20: 21 | M20: 20 | N20: 2 | O20: 17 | P20: 8 | Q20: 183
C21: CIRUGÍA MAYOR AMBULATORIA | E21: 27 | F21: 21 | G21: 12 | H21: 24 | I21: 22 | J21: 34 | K21: 26 | L21: 19 | M21: 12 | N21: 25 | O21: 20 | P21: 6 | Q21: 248
C22: TRATAMIENTO TRAUMATISMO DENTOALVEOLAR | E22: 1 | F22: 0 | G22: 1 | H22: 1 | I22: 3 | J22: 1 | K22: 0 | L22: 0 | M22: 0 | N22: 0 | O22: 0 | P22: 0 | Q22: 7
C23: OBTURACIÓN DIRECTA | E23: 0 | F23: 30 | G23: 0 | H23: 55 | I23: 59 | J23: 40 | K23: 53 | L23: 0 | M23: 51 | N23: 0 | O23: 0 | P23: 83 | Q23: 371
C24: OBTURACIÓN INDIRECTA (INLAYS U ONLAYS) | E24: 0 | F24: 0 | G24: 16 | H24: 0 | I24: 0 | J24: 0 | K24: 0 | L24: 0 | M24: 0 | N24: 0 | O24: 0 | P24: 1 | Q24: 17
C25: INSTALACIÓN APARATO REMOVIBLE ORTODÓNCICO | E25: 0 | F25: 2 | G25: 1 | H25: 0 | I25: 3 | J25: 1 | K25: 0 | L25: 1 | M25: 0 | N25: 3 | O25: 1 | P25: 0 | Q25: 12
C26: INSTALACIÓN APARATO FIJO ORTODÓNCICO | E26: 0 | F26: 8 | G26: 13 | H26: 2 | I26: 8 | J26: 4 | K26: 2 | L26: 13 | M26: 8 | N26: 10 | O26: 12 | P26: 6 | Q26: 86
C27: INSTALACIÓN APARATO DE CONTENCIÓN ORTODÓNCICO | E27: 0 | F27: 9 | G27: 7 | H27: 5 | I27: 6 | J27: 16 | K27: 6 | L27: 6 | M27: 6 | N27: 9 | O27: 4 | P27: 13 | Q27: 87
C28: RETIRO APARATOLOGÍA DE ORTODONCIA | E28: 21 | F28: 9 | G28: 6 | H28: 5 | I28: 6 | J28: 11 | K28: 6 | L28: 5 | M28: 6 | N28: 8 | O28: 3 | P28: 7 | Q28: 93
C29: ORTOPEDIA PREQUIRÚRGICA | E29: 0 | F29: 0 | G29: 0 | H29: 0 | I29: 0 | J29: 0 | K29: 0 | L29: 0 | M29: 0 | N29: 0 | O29: 0 | P29: 0 | Q29: 0
C30: ORTODONCIA PREVENTIVA E INTERCEPTIVA (OPI) | E30: 12 | F30: 1 | G30: 0 | H30: 0 | I30: 0 | J30: 0 | K30: 0 | L30: 0 | M30: 0 | N30: 0 | O30: 0 | P30: 0 | Q30: 13
C31: TRATAMIENTO ENDODONCIA UNIRRADICULAR | E31: 10 | F31: 12 | G31: 6 | H31: 22 | I31: 22 | J31: 11 | K31: 29 | L31: 30 | M31: 15 | N31: 18 | O31: 17 | P31: 14 | Q31: 206
C32: TRATAMIENTO ENDODONCIA BIRRADICULAR | E32: 14 | F32: 9 | G32: 5 | H32: 13 | I32: 9 | J32: 15 | K32: 15 | L32: 17 | M32: 13 | N32: 11 | O32: 11 | P32: 11 | Q32: 143
C33: TRATAMIENTO ENDODONCIA MULTIRRADICULAR | E33: 15 | F33: 9 | G33: 5 | H33: 18 | I33: 28 | J33: 18 | K33: 20 | L33: 29 | M33: 25 | N33: 30 | O33: 30 | P33: 30 | Q33: 257
C34: INDUCCIÓN AL CIERRE APICAL | E34: 0 | F34: 0 | G34: 0 | H34: 0 | I34: 0 | J34: 0 | K34: 0 | L34: 0 | M34: 0 | N34: 0 | O34: 0 | P34: 0 | Q34: 0
C35: RETRATAMIENTO DE ENDODONCIA | E35: 0 | F35: 0 | G35: 0 | H35: 0 | I35: 0 | J35: 0 | K35: 0 | L35: 1 | M35: 0 | N35: 0 | O35: 0 | P35: 0 | Q35: 1
C36: CIRUGÍA APICAL | E36: 0 | F36: 0 | G36: 0 | H36: 4 | I36: 2 | J36: 0 | K36: 0 | L36: 0 | M36: 0 | N36: 0 | O36: 0 | P36: 0 | Q36: 6
C37: ADAPTACIÓN A LA ATENCIÓN ODONTOLÓGICA | E37: 3 | F37: 8 | G37: 8 | H37: 9 | I37: 13 | J37: 26 | K37: 12 | L37: 35 | M37: 26 | N37: 5 | O37: 4 | P37: 0 | Q37: 149
C38: PROCEDIMIENTO RESTAURADOR (ODONTOPEDIATRÍA) | E38: 0 | F38: 0 | G38: 0 | H38: 0 | I38: 0 | J38: 0 | K38: 0 | L38: 0 | M38: 0 | N38: 0 | O38: 0 | P38: 0 | Q38: 0
C39: PROCEDIMIENTO PULPAR (ODONTOPEDIATRÍA) | E39: 0 | F39: 0 | G39: 0 | H39: 0 | I39: 0 | J39: 0 | K39: 0 | L39: 0 | M39: 0 | N39: 0 | O39: 0 | P39: 0 | Q39: 0
C40: CIRUGÍA AMBULATORIA (ODONTOPEDIATRÍA) | E40: 1 | F40: 0 | G40: 0 | H40: 0 | I40: 1 | J40: 0 | K40: 0 | L40: 0 | M40: 0 | N40: 0 | O40: 0 | P40: 0 | Q40: 2
C41: DESTARTRAJE SUBGINGIVAL O PULIDO RADICULAR | E41: 263 | F41: 17 | G41: 177 | H41: 128 | I41: 136 | J41: 113 | K41: 60 | L41: 105 | M41: 64 | N41: 44 | O41: 104 | P41: 121 | Q41: 1332
C42: DESTARTRAJE SUPRAGINGIVAL O PULIDO CORONARIO | E42: 10 | F42: 64 | G42: 166 | H42: 118 | I42: 66 | J42: 47 | K42: 71 | L42: 89 | M42: 96 | N42: 205 | O42: 49 | P42: 130 | Q42: 1111
C43: PROCEDIMIENTO QUIRÚRGICO (PERIODONCIA) | E43: 2 | F43: 0 | G43: 1 | H43: 3 | I43: 2 | J43: 7 | K43: 4 | L43: 2 | M43: 1 | N43: 1 | O43: 1 | P43: 4 | Q43: 28
C44: PROCEDIMIENTO QUIRÚRGICO PERIIMPLANTAR (PERIODONCIA) | E44: 0 | F44: 0 | G44: 0 | H44: 0 | I44: 0 | J44: 0 | K44: 0 | L44: 0 | M44: 0 | N44: 0 | O44: 0 | P44: 1 | Q44: 1
C45: FERULIZACIÓN | E45: 0 | F45: 0 | G45: 0 | H45: 0 | I45: 2 | J45: 0 | K45: 1 | L45: 0 | M45: 0 | N45: 0 | O45: 0 | P45: 0 | Q45: 3
C46: REHABILITACIÓN MEDIANTE PRÓTESIS REMOVIBLE ACRÍLICA PARCIAL O TOTAL | E46: 43 | F46: 28 | G46: 44 | H46: 29 | I46: 24 | J46: 12 | K46: 14 | L46: 27 | M46: 9 | N46: 74 | O46: 129 | P46: 124 | Q46: 557
C47: REHABILITACIÓN MEDIANTE PRÓTESIS REMOVIBLE METÁLICA PARCIAL | E47: 0 | F47: 0 | G47: 0 | H47: 0 | I47: 1 | J47: 0 | K47: 1 | L47: 1 | M47: 0 | N47: 24 | O47: 25 | P47: 34 | Q47: 86
C48: REHABILITACIÓN MEDIANTE PRÓTESIS FIJA UNITARIA O PLURAL | E48: 0 | F48: 0 | G48: 0 | H48: 0 | I48: 0 | J48: 0 | K48: 0 | L48: 0 | M48: 0 | N48: 0 | O48: 0 | P48: 0 | Q48: 0
C49: REHABILITACIÓN MEDIANTE PRÓTESIS FIJA IMPLANTOASISTIDA | E49: 0 | F49: 0 | G49: 0 | H49: 0 | I49: 1 | J49: 0 | K49: 1 | L49: 0 | M49: 0 | N49: 0 | O49: 0 | P49: 0 | Q49: 2
C50: REHABILITACIÓN MEDIANTE PRÓTESIS MUCO- IMPLANTOASISTIDA | E50: 1 | F50: 1 | G50: 0 | H50: 0 | I50: 1 | J50: 0 | K50: 1 | L50: 0 | M50: 0 | N50: 0 | O50: 1 | P50: 0 | Q50: 5
C51: REPARACIÓN DE PRÓTESIS | E51: 1 | F51: 1 | G51: 1 | H51: 0 | I51: 0 | J51: 1 | K51: 0 | L51: 0 | M51: 0 | N51: 0 | O51: 0 | P51: 0 | Q51: 4
C52: IMPLANTOLOGÍA QUIRÚRGICA | E52: 0 | F52: 0 | G52: 0 | H52: 0 | I52: 0 | J52: 0 | K52: 0 | L52: 0 | M52: 0 | N52: 0 | O52: 0 | P52: 0 | Q52: 0
C53: TOMA DE BIOPSIA | E53: 1 | F53: 0 | G53: 2 | H53: 0 | I53: 0 | J53: 0 | K53: 0 | L53: 0 | M53: 0 | N53: 0 | O53: 1 | P53: 0 | Q53: 4
C54: ESTUDIO HISTOPATOLÓGICO | E54: 0 | F54: 0 | G54: 0 | H54: 0 | I54: 0 | J54: 0 | K54: 0 | L54: 0 | M54: 0 | N54: 0 | O54: 0 | P54: 0 | Q54: 0
C55: SIALOMETRÍA | E55: 0 | F55: 0 | G55: 0 | H55: 0 | I55: 0 | J55: 0 | K55: 0 | L55: 0 | M55: 0 | N55: 0 | O55: 0 | P55: 0 | Q55: 0
C56: TERAPIA FARMACOLÓGICA DE LESIONES DEL TERRITORIO ORAL Y MAXILOFACIAL | E56: 6 | F56: 21 | G56: 57 | H56: 50 | I56: 54 | J56: 25 | K56: 23 | L56: 44 | M56: 26 | N56: 13 | O56: 44 | P56: 19 | Q56: 382
C57: TERAPIA NO FARMACOLÓGICA DE LESIONES DEL TERRITORIO ORAL Y MAXILOFACIAL | E57: 0 | F57: 0 | G57: 1 | H57: 0 | I57: 0 | J57: 0 | K57: 0 | L57: 0 | M57: 0 | N57: 0 | O57: 13 | P57: 0 | Q57: 14
C58: ESTUDIO CLÍNICO LESIONES DEL TERRITORIO ORAL MAXILOFACIAL | E58: 0 | F58: 0 | G58: 0 | H58: 0 | I58: 0 | J58: 0 | K58: 0 | L58: 0 | M58: 0 | N58: 0 | O58: 0 | P58: 0 | Q58: 0
C59: TERAPIA FÍSICA EN TRASTORNOS TEMPOROMANDIBULARES (TTM) Y DOLOR OROFACIAL (DOF) | E59: 0 | F59: 0 | G59: 0 | H59: 0 | I59: 0 | J59: 0 | K59: 0 | L59: 0 | M59: 0 | N59: 0 | O59: 0 | P59: 0 | Q59: 0
C60: INFILTRACIÓN EN ARTICULACIÓN TEMPORO MANDIBULAR (ATM) | E60: 0 | F60: 0 | G60: 0 | H60: 0 | I60: 0 | J60: 0 | K60: 0 | L60: 0 | M60: 0 | N60: 0 | O60: 0 | P60: 0 | Q60: 0
C61: BLOQUEO ANESTÉSICO Y/O MEDICAMENTOSO EN TTM Y DOF | E61: 0 | F61: 0 | G61: 1 | H61: 0 | I61: 0 | J61: 0 | K61: 0 | L61: 0 | M61: 0 | N61: 0 | O61: 0 | P61: 0 | Q61: 1
C62: ARTROCENTESIS EN ATM | E62: 0 | F62: 0 | G62: 0 | H62: 0 | I62: 0 | J62: 0 | K62: 0 | L62: 0 | M62: 0 | N62: 0 | O62: 0 | P62: 0 | Q62: 0
C63: TERAPIA BIOCONDUCTUAL | E63: 0 | F63: 0 | G63: 0 | H63: 0 | I63: 0 | J63: 0 | K63: 0 | L63: 0 | M63: 0 | N63: 0 | O63: 0 | P63: 0 | Q63: 0
C64: DESGASTE SELECTIVO | E64: 0 | F64: 0 | G64: 0 | H64: 0 | I64: 1 | J64: 0 | K64: 0 | L64: 0 | M64: 1 | N64: 0 | O64: 0 | P64: 0 | Q64: 2
C65: INSTALACIÓN DE DISPOSITIVO ORTOPÉDICO | E65: 0 | F65: 0 | G65: 0 | H65: 0 | I65: 0 | J65: 0 | K65: 0 | L65: 0 | M65: 0 | N65: 0 | O65: 0 | P65: 0 | Q65: 0
C66: ACTIVIDADES SOMATOPRÓTESIS | E66: 0 | F66: 0 | G66: 0 | H66: 0 | I66: 0 | J66: 0 | K66: 0 | L66: 0 | M66: 0 | N66: 0 | O66: 0 | P66: 0 | Q66: 0
C67: REHABILITACIÓN DE PRÓTESIS MAXILOFACIAL | E67: 0 | F67: 0 | G67: 0 | H67: 0 | I67: 0 | J67: 0 | K67: 0 | L67: 0 | M67: 0 | N67: 0 | O67: 0 | P67: 0 | Q67: 0
C68: TOTAL | E68: =SUM(E14:E67) -> 849 | F68: =SUM(F14:F67) -> 527 | G68: 979 | H68: 918 | I68: 1056 | J68: 932 | K68: 779 | L68: 1117 | M68: 986 | N68: 966 | O68: 1308 | P68: 1075 | Q68: 11492
C71: ACTIVIDADES DE ESPECIALIDADES | E71: Enero | F71: Febrero | G71: Marzo | H71: Abril | I71: Mayo | J71: Junio | K71: Julio | L71: Agosto | M71: Septiembre | N71: Octubre | O71: Noviembre | P71: Diciembre | Q71: Total
C72: RADIOGRAFÍA INTRAORAL MEDIANTE TÉCNICAS RETROALVEOLARES (POR PLACA) | E72: 65 | F72: 76 | G72: 40 | H72: 7 | I72: 137 | J72: 145 | K72: 122 | L72: 177 | M72: 113 | N72: 156 | O72: 103 | P72: 72 | Q72: =SUM(E72:P72) -> 1213
C73: RADIOGRAFÍA INTRAORAL MEDIANTE TÉCNICAS BITE WING (POR PLACA) | E73: 0 | F73: 0 | G73: 0 | H73: 0 | I73: 0 | J73: 0 | K73: 0 | L73: 0 | M73: 0 | N73: 0 | O73: 0 | P73: 0 | Q73: =SUM(E73:P73) -> 0
C74: RADIOGRAFÍA EXTRAORAL (POR PLACA) | E74: 0 | F74: 0 | G74: 0 | H74: 0 | I74: 0 | J74: 0 | K74: 0 | L74: 0 | M74: 0 | N74: 0 | O74: 0 | P74: 0 | Q74: 0
C75: RADIOGRAFÍA OCLUSAL (POR PLACA) | E75: 0 | F75: 0 | G75: 0 | H75: 0 | I75: 0 | J75: 0 | K75: 0 | L75: 0 | M75: 0 | N75: 0 | O75: 0 | P75: 0 | Q75: 0
C76: TELERRADIOGRAFÍA (POR PLACA) | E76: 0 | F76: 0 | G76: 0 | H76: 0 | I76: 33 | J76: 13 | K76: 27 | L76: 34 | M76: 54 | N76: 0 | O76: 0 | P76: 0 | Q76: 161
C77: RADIOGRAFÍA PANORÁMICA (POR PLACA) | E77: 0 | F77: 0 | G77: 0 | H77: 19 | I77: 78 | J77: 41 | K77: 67 | L77: 93 | M77: 123 | N77: 39 | O77: 125 | P77: 0 | Q77: 585
C78: TOMOGRAFÍA COMPUTACIONAL MAXILO FACIAL CONE BEAM (POR ADQUISICIÓN) | E78: 0 | F78: 0 | G78: 0 | H78: 0 | I78: 0 | J78: 0 | K78: 0 | L78: 0 | M78: 0 | N78: 0 | O78: 0 | P78: 0 | Q78: 0
C79: SIALOGRAFÍAS (POR PROCEDIMIENTO) | E79: 0 | F79: 0 | G79: 0 | H79: 0 | I79: 0 | J79: 0 | K79: 0 | L79: 0 | M79: 0 | N79: 0 | O79: 0 | P79: 0 | Q79: 0
C80: PROCEDIMIENTO IMAGENOLÓGICO COMPLEJO (POR PROCEDIMIENTO) | E80: 0 | F80: 0 | G80: 0 | H80: 0 | I80: 0 | J80: 0 | K80: 0 | L80: 0 | M80: 0 | N80: 0 | O80: 0 | P80: 0 | Q80: 0
C81: TOTAL | E81: =SUM(E72:E80) -> 65 | F81: 76 | G81: 40 | H81: 26 | I81: 248 | J81: 199 | K81: 216 | L81: 304 | M81: 290 | N81: 195 | O81: 228 | P81: 72 | Q81: 1959
B84: ESPECIALIDAD Y TIPO DE INGRESO O EGRESO | C84: Tipo de Ingreso | E84: Enero | F84: Febrero | G84: Marzo | H84: Abril | I84: Mayo | J84: Junio | K84: Julio | L84: Agosto | M84: Septiembre | N84: Octubre | O84: Noviembre | P84: Diciembre | Q84: Total
B85: CONSULTAS DE URGENCIA | C85: CONSULTAS GES | E85: 0 | F85: 0 | G85: 0 | H85: 0 | I85: 0 | J85: 0 | K85: 0 | L85: 0 | M85: 0 | N85: 0 | O85: 0 | P85: 0 | Q85: =SUM(E85:P85) -> 0
C86: CONSULTA NO GES | E86: 6 | F86: 32 | G86: 24 | H86: 18 | I86: 28 | J86: 17 | K86: 14 | L86: 33 | M86: 46 | N86: 20 | O86: 15 | P86: 25 | Q86: =SUM(E86:P86) -> 278
B87: CIRUGÍA BUCAL | C87: CONSULTA NUEVA | E87: 0 | F87: 0 | G87: 0 | H87: 0 | I87: 0 | J87: 0 | K87: 0 | L87: 0 | M87: 0 | N87: 0 | O87: 0 | P87: 0 | Q87: 0
C88: CONTROL | E88: 0 | F88: 0 | G88: 0 | H88: 0 | I88: 0 | J88: 0 | K88: 0 | L88: 0 | M88: 0 | N88: 0 | O88: 0 | P88: 0 | Q88: 0
C89: INGRESOS A TRATAMIENTO | E89: 0 | F89: 0 | G89: 0 | H89: 0 | I89: 0 | J89: 0 | K89: 0 | L89: 0 | M89: 0 | N89: 0 | O89: 0 | P89: 0 | Q89: 0
C90: ALTAS DE TRATAMIENTO | E90: 0 | F90: 0 | G90: 0 | H90: 0 | I90: 0 | J90: 0 | K90: 0 | L90: 0 | M90: 0 | N90: 0 | O90: 0 | P90: 0 | Q90: 0
C91: CONTROL DE ESPECIALIDAD POST ALTA | E91: 0 | F91: 0 | G91: 0 | H91: 0 | I91: 0 | J91: 0 | K91: 0 | L91: 0 | M91: 0 | N91: 0 | O91: 0 | P91: 0 | Q91: 0
C92: ALTAS ADMINISTRATIVAS | E92: 0 | F92: 0 | G92: 0 | H92: 0 | I92: 0 | J92: 0 | K92: 0 | L92: 0 | M92: 0 | N92: 0 | O92: 0 | P92: 0 | Q92: 0
B93: CIRUGÍA Y TRAUMATOLOGÍA MAXILOFACIAL | C93: CONSULTA NUEVA | E93: 18 | F93: 12 | G93: 14 | H93: 26 | I93: 55 | J93: 28 | K93: 45 | L93: 82 | M93: 31 | N93: 26 | O93: 41 | P93: 16 | Q93: 394
C94: CONTROL | E94: 122 | F94: 98 | G94: 86 | H94: 126 | I94: 130 | J94: 128 | K94: 103 | L94: 118 | M94: 83 | N94: 178 | O94: 127 | P94: 44 | Q94: 1343
C95: INGRESOS A TRATAMIENTO | E95: 25 | F95: 30 | G95: 29 | H95: 43 | I95: 60 | J95: 31 | K95: 45 | L95: 83 | M95: 28 | N95: 34 | O95: 41 | P95: 17 | Q95: 466
C96: ALTAS DE TRATAMIENTO | E96: 39 | F96: 24 | G96: 32 | H96: 51 | I96: 44 | J96: 43 | K96: 28 | L96: 47 | M96: 33 | N96: 70 | O96: 39 | P96: 16 | Q96: 466
C97: CONTROL DE ESPECIALIDAD POST ALTA | E97: 0 | F97: 0 | G97: 24 | H97: 33 | I97: 45 | J97: 34 | K97: 40 | L97: 32 | M97: 29 | N97: 55 | O97: 50 | P97: 21 | Q97: 363
C98: ALTAS ADMINISTRATIVAS | E98: 0 | F98: 0 | G98: 0 | H98: 0 | I98: 3 | J98: 2 | K98: 1 | L98: 0 | M98: 0 | N98: 0 | O98: 0 | P98: 0 | Q98: 6
B99: ENDODONCIA | C99: CONSULTA NUEVA | E99: 45 | F99: 44 | G99: 30 | H99: 53 | I99: 84 | J99: 79 | K99: 70 | L99: 101 | M99: 48 | N99: 72 | O99: 54 | P99: 43 | Q99: 723
C100: CONTROL | E100: 88 | F100: 70 | G100: 51 | H100: 105 | I100: 119 | J100: 118 | K100: 122 | L100: 155 | M100: 120 | N100: 142 | O100: 110 | P100: 112 | Q100: 1312
C101: INGRESOS A TRATAMIENTO | E101: 40 | F101: 42 | G101: 29 | H101: 52 | I101: 79 | J101: 72 | K101: 61 | L101: 96 | M101: 39 | N101: 71 | O101: 44 | P101: 37 | Q101: 662
C102: ALTAS DE TRATAMIENTO | E102: 39 | F102: 31 | G102: 15 | H102: 54 | I102: 55 | J102: 44 | K102: 57 | L102: 74 | M102: 51 | N102: 59 | O102: 53 | P102: 54 | Q102: 586
C103: CONTROL DE ESPECIALIDAD POST ALTA | E103: 0 | F103: 0 | G103: 0 | H103: 0 | I103: 0 | J103: 0 | K103: 0 | L103: 1 | M103: 0 | N103: 1 | O103: 0 | P103: 0 | Q103: 2
C104: ALTAS ADMINISTRATIVAS | E104: 0 | F104: 0 | G104: 0 | H104: 0 | I104: 0 | J104: 0 | K104: 0 | L104: 0 | M104: 3 | N104: 0 | O104: 1 | P104: 2 | Q104: 6
B105: ODONTOPEDIATRÍA | C105: CONSULTA NUEVA | E105: 6 | F105: 11 | G105: 18 | H105: 12 | I105: 31 | J105: 27 | K105: 16 | L105: 50 | M105: 33 | N105: 12 | O105: 26 | P105: 11 | Q105: 253
C106: CONTROL | E106: 111 | F106: 96 | G106: 118 | H106: 189 | I106: 241 | J106: 161 | K106: 104 | L106: 108 | M106: 168 | N106: 95 | O106: 169 | P106: 132 | Q106: 1692
C107: INGRESOS A TRATAMIENTO | E107: 8 | F107: 10 | G107: 17 | H107: 12 | I107: 32 | J107: 27 | K107: 16 | L107: 51 | M107: 33 | N107: 12 | O107: 25 | P107: 11 | Q107: 254
C108: ALTAS DE TRATAMIENTO | E108: 7 | F108: 16 | G108: 3 | H108: 19 | I108: 24 | J108: 19 | K108: 13 | L108: 25 | M108: 19 | N108: 7 | O108: 15 | P108: 36 | Q108: 203
C109: CONTROL DE ESPECIALIDAD POST ALTA | E109: 0 | F109: 6 | G109: 4 | H109: 2 | I109: 0 | J109: 0 | K109: 0 | L109: 1 | M109: 0 | N109: 0 | O109: 1 | P109: 0 | Q109: 14
C110: ALTAS ADMINISTRATIVAS | E110: 0 | F110: 0 | G110: 0 | H110: 0 | I110: 0 | J110: 0 | K110: 0 | L110: 0 | M110: 0 | N110: 0 | O110: 0 | P110: 0 | Q110: 0
B111: OPERATORIA | C111: CONSULTA NUEVA | E111: 0 | F111: 0 | G111: 0 | H111: 0 | I111: 0 | J111: 0 | K111: 0 | L111: 0 | M111: 0 | N111: 0 | O111: 0 | P111: 0 | Q111: 0
C112: CONTROL | E112: 0 | F112: 0 | G112: 0 | H112: 0 | I112: 0 | J112: 0 | K112: 0 | L112: 0 | M112: 0 | N112: 0 | O112: 0 | P112: 0 | Q112: 0
C113: INGRESOS A TRATAMIENTO | E113: 0 | F113: 0 | G113: 0 | H113: 0 | I113: 0 | J113: 0 | K113: 0 | L113: 0 | M113: 0 | N113: 0 | O113: 0 | P113: 0 | Q113: 0
C114: ALTAS DE TRATAMIENTO | E114: 0 | F114: 0 | G114: 0 | H114: 0 | I114: 0 | J114: 0 | K114: 0 | L114: 0 | M114: 0 | N114: 0 | O114: 0 | P114: 0 | Q114: 0
C115: CONTROL DE ESPECIALIDAD POST ALTA | E115: 0 | F115: 0 | G115: 0 | H115: 0 | I115: 0 | J115: 0 | K115: 0 | L115: 0 | M115: 0 | N115: 0 | O115: 0 | P115: 0 | Q115: 0
C116: ALTAS ADMINISTRATIVAS | E116: 0 | F116: 0 | G116: 0 | H116: 0 | I116: 0 | J116: 0 | K116: 0 | L116: 0 | M116: 0 | N116: 0 | O116: 0 | P116: 0 | Q116: 0
B117: ORTODONCIA Y ORTOPEDIA DENTO MAXILOFACIAL: APARATOLOGÍA FIJA | C117: CONSULTA NUEVA | E117: 10 | F117: 0 | G117: 4 | H117: 0 | I117: 9 | J117: 1 | K117: 1 | L117: 17 | M117: 84 | N117: 41 | O117: 61 | P117: 34 | Q117: 262
C118: CONTROL | E118: 271 | F118: 211 | G118: 238 | H118: 93 | I118: 209 | J118: 208 | K118: 181 | L118: 264 | M118: 147 | N118: 158 | O118: 158 | P118: 110 | Q118: 2248
C119: INGRESOS A TRATAMIENTO | E119: 8 | F119: 10 | G119: 18 | H119: 2 | I119: 10 | J119: 4 | K119: 2 | L119: 17 | M119: 8 | N119: 11 | O119: 9 | P119: 7 | Q119: 106
C120: ALTAS DE TRATAMIENTO | E120: 24 | F120: 11 | G120: 11 | H120: 5 | I120: 8 | J120: 18 | K120: 7 | L120: 7 | M120: 6 | N120: 10 | O120: 5 | P120: 13 | Q120: 125
C121: CONTROL DE ESPECIALIDAD POST ALTA | E121: 0 | F121: 14 | G121: 18 | H121: 11 | I121: 8 | J121: 20 | K121: 7 | L121: 19 | M121: 9 | N121: 15 | O121: 2 | P121: 6 | Q121: 129
C122: ALTAS ADMINISTRATIVAS | E122: 1 | F122: 0 | G122: 0 | H122: 0 | I122: 0 | J122: 0 | K122: 0 | L122: 0 | M122: 1 | N122: 1 | O122: 0 | P122: 0 | Q122: 3
B123: ORTODONCIA Y ORTOPEDIA DENTO MAXILOFACIAL: APARATOLOGÍA REMOVIBLE | C123: CONSULTA NUEVA | E123: 1 | F123: 4 | G123: 11 | H123: 0 | I123: 3 | J123: 0 | K123: 1 | L123: 9 | M123: 8 | N123: 19 | O123: 0 | P123: 0 | Q123: 56
C124: CONTROL | E124: 7 | F124: 6 | G124: 5 | H124: 1 | I124: 5 | J124: 10 | K124: 5 | L124: 7 | M124: 5 | N124: 3 | O124: 6 | P124: 1 | Q124: 61
C125: INGRESOS A TRATAMIENTO | E125: 2 | F125: 1 | G125: 1 | H125: 0 | I125: 3 | J125: 2 | K125: 0 | L125: 1 | M125: 0 | N125: 1 | O125: 1 | P125: 0 | Q125: 12
C126: ALTAS DE TRATAMIENTO | E126: 2 | F126: 2 | G126: 1 | H126: 0 | I126: 1 | J126: 0 | K126: 1 | L126: 1 | M126: 1 | N126: 0 | O126: 2 | P126: 0 | Q126: 11
C127: CONTROL DE ESPECIALIDAD POST ALTA | E127: 0 | F127: 4 | G127: 1 | H127: 6 | I127: 0 | J127: 0 | K127: 0 | L127: 1 | M127: 0 | N127: 0 | O127: 0 | P127: 0 | Q127: 12
C128: ALTAS ADMINISTRATIVAS | E128: 0 | F128: 1 | G128: 0 | H128: 0 | I128: 0 | J128: 0 | K128: 0 | L128: 0 | M128: 0 | N128: 0 | O128: 0 | P128: 0 | Q128: 1
B129: PERIODONCIA | C129: CONSULTA NUEVA | E129: 39 | F129: 18 | G129: 46 | H129: 13 | I129: 13 | J129: 30 | K129: 26 | L129: 25 | M129: 67 | N129: 25 | O129: 59 | P129: 10 | Q129: 371
C130: CONTROL | E130: 109 | F130: 31 | G130: 167 | H130: 133 | I130: 111 | J130: 67 | K130: 68 | L130: 98 | M130: 94 | N130: 87 | O130: 85 | P130: 166 | Q130: 1216
C131: INGRESOS A TRATAMIENTO | E131: 34 | F131: 8 | G131: 45 | H131: 13 | I131: 11 | J131: 20 | K131: 21 | L131: 13 | M131: 66 | N131: 25 | O131: 59 | P131: 10 | Q131: 325
C132: ALTAS DE TRATAMIENTO | E132: 23 | F132: 1 | G132: 17 | H132: 11 | I132: 16 | J132: 9 | K132: 11 | L132: 17 | M132: 5 | N132: 11 | O132: 11 | P132: 8 | Q132: 140
C133: CONTROL DE ESPECIALIDAD POST ALTA | E133: 0 | F133: 0 | G133: 0 | H133: 0 | I133: 0 | J133: 0 | K133: 0 | L133: 1 | M133: 0 | N133: 0 | O133: 0 | P133: 0 | Q133: 1
C134: ALTAS ADMINISTRATIVAS | E134: 0 | F134: 0 | G134: 2 | H134: 1 | I134: 0 | J134: 0 | K134: 0 | L134: 0 | M134: 0 | N134: 0 | O134: 0 | P134: 0 | Q134: 3
B135: REHABILITACIÓN: PRÓTESIS FIJA | C135: CONSULTA NUEVA | E135: 0 | F135: 0 | G135: 0 | H135: 0 | I135: 0 | J135: 0 | K135: 0 | L135: 0 | M135: 0 | N135: 0 | O135: 0 | P135: 0 | Q135: 0
C136: CONTROL | E136: 0 | F136: 0 | G136: 0 | H136: 0 | I136: 0 | J136: 0 | K136: 0 | L136: 0 | M136: 0 | N136: 0 | O136: 0 | P136: 0 | Q136: 0
C137: INGRESOS A TRATAMIENTO | E137: 0 | F137: 0 | G137: 0 | H137: 0 | I137: 0 | J137: 0 | K137: 0 | L137: 0 | M137: 0 | N137: 0 | O137: 0 | P137: 0 | Q137: 0
C138: ALTAS DE TRATAMIENTO | E138: 0 | F138: 0 | G138: 0 | H138: 0 | I138: 0 | J138: 0 | K138: 0 | L138: 0 | M138: 0 | N138: 0 | O138: 0 | P138: 0 | Q138: 0
C139: CONTROL DE ESPECIALIDAD POST ALTA | E139: 0 | F139: 0 | G139: 0 | H139: 0 | I139: 0 | J139: 0 | K139: 0 | L139: 0 | M139: 0 | N139: 0 | O139: 0 | P139: 0 | Q139: 0
C140: ALTAS ADMINISTRATIVAS | E140: 0 | F140: 0 | G140: 0 | H140: 0 | I140: 0 | J140: 0 | K140: 0 | L140: 0 | M140: 0 | N140: 0 | O140: 0 | P140: 0 | Q140: 0
B141: REHABILITACIÓN: PRÓTESIS REMOVIBLE | C141: CONSULTA NUEVA | E141: 22 | F141: 16 | G141: 22 | H141: 18 | I141: 18 | J141: 6 | K141: 15 | L141: 23 | M141: 14 | N141: 90 | O141: 102 | P141: 28 | Q141: 374
C142: CONTROL | E142: 55 | F142: 39 | G142: 67 | H142: 56 | I142: 31 | J142: 28 | K142: 47 | L142: 73 | M142: 18 | N142: 20 | O142: 41 | P142: 22 | Q142: 497
C143: INGRESOS A TRATAMIENTO | E143: 22 | F143: 15 | G143: 22 | H143: 18 | I143: 18 | J143: 6 | K143: 15 | L143: 23 | M143: 13 | N143: 90 | O143: 87 | P143: 25 | Q143: 354
C144: ALTAS DE TRATAMIENTO | E144: 22 | F144: 16 | G144: 20 | H144: 18 | I144: 16 | J144: 7 | K144: 10 | L144: 16 | M144: 4 | N144: 13 | O144: 19 | P144: 14 | Q144: 175
C145: CONTROL DE ESPECIALIDAD POST ALTA | E145: 15 | F145: 23 | G145: 15 | H145: 27 | I145: 22 | J145: 8 | K145: 16 | L145: 19 | M145: 5 | N145: 4 | O145: 32 | P145: 10 | Q145: 196
C146: ALTAS ADMINISTRATIVAS | E146: 0 | F146: 0 | G146: 0 | H146: 2 | I146: 0 | J146: 0 | K146: 1 | L146: 1 | M146: 0 | N146: 0 | O146: 0 | P146: 0 | Q146: 4
B147: REHABILITACIÓN: PRÓTESIS IMPLANTOASISTIDA | C147: CONSULTA NUEVA | E147: 0 | F147: 0 | G147: 0 | H147: 0 | I147: 0 | J147: 0 | K147: 0 | L147: 0 | M147: 0 | N147: 0 | O147: 0 | P147: 0 | Q147: 0
C148: CONTROL | E148: 0 | F148: 0 | G148: 0 | H148: 0 | I148: 0 | J148: 0 | K148: 0 | L148: 0 | M148: 0 | N148: 0 | O148: 0 | P148: 0 | Q148: 0
C149: INGRESOS A TRATAMIENTO | E149: 0 | F149: 0 | G149: 0 | H149: 0 | I149: 0 | J149: 0 | K149: 0 | L149: 0 | M149: 0 | N149: 0 | O149: 0 | P149: 0 | Q149: 0
C150: ALTAS DE TRATAMIENTO | E150: 0 | F150: 0 | G150: 0 | H150: 0 | I150: 0 | J150: 0 | K150: 0 | L150: 0 | M150: 0 | N150: 0 | O150: 0 | P150: 0 | Q150: =SUM(E150:P150) -> 0
C151: CONTROL DE ESPECIALIDAD POST ALTA | E151: 0 | F151: 0 | G151: 0 | H151: 0 | I151: 0 | J151: 0 | K151: 0 | L151: 0 | M151: 0 | N151: 0 | O151: 0 | P151: 0 | Q151: 0
C152: ALTAS ADMINISTRATIVAS | E152: 0 | F152: 0 | G152: 0 | H152: 0 | I152: 0 | J152: 0 | K152: 0 | L152: 0 | M152: 0 | N152: 0 | O152: 0 | P152: 0 | Q152: 0
B153: IMPLANTOLOGÍA BUCO MAXILOFACIAL | C153: CONSULTA NUEVA | E153: 0 | F153: 0 | G153: 0 | H153: 0 | I153: 0 | J153: 0 | K153: 0 | L153: 0 | M153: 0 | N153: 0 | O153: 0 | P153: 0 | Q153: 0
C154: CONTROL | E154: 0 | F154: 0 | G154: 0 | H154: 0 | I154: 0 | J154: 0 | K154: 0 | L154: 0 | M154: 0 | N154: 0 | O154: 0 | P154: 0 | Q154: 0
C155: INGRESOS A TRATAMIENTO | E155: 0 | F155: 0 | G155: 0 | H155: 0 | I155: 0 | J155: 0 | K155: 0 | L155: 0 | M155: 0 | N155: 0 | O155: 0 | P155: 0 | Q155: 0
C156: ALTAS DE TRATAMIENTO | E156: 0 | F156: 0 | G156: 0 | H156: 0 | I156: 0 | J156: 0 | K156: 0 | L156: 0 | M156: 0 | N156: 0 | O156: 0 | P156: 0 | Q156: 0
C157: CONTROL DE ESPECIALIDAD POST ALTA | E157: 0 | F157: 0 | G157: 0 | H157: 0 | I157: 0 | J157: 0 | K157: 0 | L157: 0 | M157: 0 | N157: 0 | O157: 0 | P157: 0 | Q157: 0
C158: ALTAS ADMINISTRATIVAS | E158: 0 | F158: 0 | G158: 0 | H158: 0 | I158: 0 | J158: 0 | K158: 0 | L158: 0 | M158: 0 | N158: 0 | O158: 0 | P158: 0 | Q158: 0
B159: PATOLOGÍA ORAL | C159: CONSULTA NUEVA | E159: 0 | F159: 0 | G159: 0 | H159: 0 | I159: 0 | J159: 0 | K159: 0 | L159: 0 | M159: 0 | N159: 0 | O159: 0 | P159: 0 | Q159: 0
C160: CONTROL | E160: 0 | F160: 0 | G160: 0 | H160: 0 | I160: 0 | J160: 0 | K160: 0 | L160: 0 | M160: 0 | N160: 0 | O160: 0 | P160: 0 | Q160: 0
C161: INGRESOS A TRATAMIENTO | E161: 0 | F161: 0 | G161: 0 | H161: 0 | I161: 0 | J161: 0 | K161: 0 | L161: 0 | M161: 0 | N161: 0 | O161: 0 | P161: 0 | Q161: 0
C162: ALTAS DE TRATAMIENTO | E162: 0 | F162: 0 | G162: 0 | H162: 0 | I162: 0 | J162: 0 | K162: 0 | L162: 0 | M162: 0 | N162: 0 | O162: 0 | P162: 0 | Q162: 0
C163: CONTROL DE ESPECIALIDAD POST ALTA | E163: 0 | F163: 0 | G163: 0 | H163: 0 | I163: 0 | J163: 0 | K163: 0 | L163: 0 | M163: 0 | N163: 0 | O163: 0 | P163: 0 | Q163: 0
C164: ALTAS ADMINISTRATIVAS | E164: 0 | F164: 0 | G164: 0 | H164: 0 | I164: 0 | J164: 0 | K164: 0 | L164: 0 | M164: 0 | N164: 0 | O164: 0 | P164: 0 | Q164: 0
B165: TRASTORNOS TEMPOROMANDIBULARES Y DOLOR OROFACIAL | C165: CONSULTA NUEVA | E165: 0 | F165: 0 | G165: 0 | H165: 0 | I165: 0 | J165: 0 | K165: 0 | L165: 0 | M165: 0 | N165: 0 | O165: 0 | P165: 0 | Q165: 0
C166: CONTROL | E166: 0 | F166: 0 | G166: 0 | H166: 0 | I166: 0 | J166: 0 | K166: 0 | L166: 0 | M166: 0 | N166: 0 | O166: 0 | P166: 0 | Q166: 0
C167: INGRESOS A TRATAMIENTO | E167: 0 | F167: 0 | G167: 0 | H167: 0 | I167: 0 | J167: 0 | K167: 0 | L167: 0 | M167: 0 | N167: 0 | O167: 0 | P167: 0 | Q167: 0
C168: ALTAS DE TRATAMIENTO | E168: 0 | F168: 0 | G168: 0 | H168: 0 | I168: 0 | J168: 0 | K168: 0 | L168: 0 | M168: 0 | N168: 0 | O168: 0 | P168: 0 | Q168: 0
C169: CONTROL DE ESPECIALIDAD POST ALTA | E169: 0 | F169: 0 | G169: 0 | H169: 0 | I169: 0 | J169: 0 | K169: 0 | L169: 0 | M169: 0 | N169: 0 | O169: 0 | P169: 0 | Q169: 0
C170: ALTAS ADMINISTRATIVAS | E170: 0 | F170: 0 | G170: 0 | H170: 0 | I170: 0 | J170: 0 | K170: 0 | L170: 0 | M170: 0 | N170: 0 | O170: 0 | P170: 0 | Q170: 0
B171: TOTAL | C171: CONSULTA NUEVA | E171: =E87+E93+E99+E105+E111+E117+E123+E129+E135+E141+E147+E153+E159+E165 -> 141 | F171: =F87+F93+F99+F105+F111+F117+F123+F129+F135+F141+F147+F153+F159+F165 -> 105 | G171: 145 | H171: 122 | I171: 213 | J171: 171 | K171: 174 | L171: 307 | M171: 285 | N171: 285 | O171: 343 | P171: 142 | Q171: =SUM(E171:P171) -> 2433
C172: CONTROL | E172: =E88+E94+E100+E106+E112+E118+E124+E130+E136+E142+E148+E154+E160+E166 -> 763 | F172: 551 | G172: 732 | H172: 703 | I172: 846 | J172: 720 | K172: 630 | L172: 823 | M172: 635 | N172: 683 | O172: 696 | P172: 587 | Q172: =SUM(E172:P172) -> 8369
C173: INGRESOS A TRATAMIENTO | E173: 139 | F173: 116 | G173: 161 | H173: 140 | I173: 213 | J173: 162 | K173: 160 | L173: 284 | M173: 187 | N173: 244 | O173: 266 | P173: 107 | Q173: 2179
C174: ALTAS DE TRATAMIENTO | E174: 156 | F174: 101 | G174: 99 | H174: 158 | I174: 164 | J174: 140 | K174: 127 | L174: 187 | M174: 119 | N174: 170 | O174: 144 | P174: 141 | Q174: 1706
C175: CONTROL DE ESPECIALIDAD POST ALTA | E175: 15 | F175: 47 | G175: 62 | H175: 79 | I175: 75 | J175: 62 | K175: 63 | L175: 74 | M175: 43 | N175: 75 | O175: 85 | P175: 37 | Q175: 717
C176: ALTAS ADMINISTRATIVAS | E176: 1 | F176: 1 | G176: 2 | H176: 3 | I176: 3 | J176: 2 | K176: 2 | L176: 1 | M176: 4 | N176: 1 | O176: 1 | P176: 2 | Q176: 23
B177: Fuente: REM A09, Sección F, F1, I

Sheet FILTRO DIC. (hidden)
A1: IdEstablecimiento | B1: (Todas)
A3: Suma de Col01 | B3: Etiquetas de columna
A4: Etiquetas de fila | B4: 1 | C4: 2 | D4: 3 | E4: 4 | F4: 5 | G4: 6 | H4: 7 | I4: 8 | J4: 9 | K4: 10 | L4: 11 | M4: 12 | N4: Total general
A5: 09200313 | B5: 10505 | C5: 9609 | D5: 14016 | E5: 14967 | F5: 15792 | G5: 14566 | H5: 14155 | I5: 16990 | J5: 14953 | K5: 15383 | L5: 15799 | M5: 14513 | N5: 171248
A6: 09200513 | B6: 7841 | C6: 6404 | D6: 11164 | E6: 11080 | F6: 11620 | G6: 12014 | H6: 9491 | I6: 12346 | J6: 10260 | K6: 10685 | L6: 12096 | M6: 10730 | N6: 125731
A7: 09201225 | B7: 2804 | C7: 2603 | D7: 3360 | E7: 3517 | F7: 3465 | G7: 3157 | H7: 2933 | I7: 3737 | J7: 3296 | K7: 3626 | L7: 3371 | M7: 3245 | N7: 39114
A8: 09201713 | B8: 968 | C8: 925 | D8: 1095 | E8: 1648 | F8: 1383 | G8: 1300 | H8: 1060 | I8: 1719 | J8: 1239 | K8: 1653 | L8: 1425 | M8: 1868 | N8: 16283
A9: 09202313 | B9: 6 | C9: 8 | D9: 49 | E9: 66 | F9: 104 | G9: 163 | H9: 193 | I9: 353 | J9: 329 | K9: 275 | L9: 497 | M9: 897 | N9: 2940
A10: 09202413 | B10: 1 | C10: 3 | G10: 2 | H10: 3 | I10: 3 | J10: 1 | K10: 2 | L10: 4 | M10: 6 | N10: 25
A11: 09202725 | B11: 62 | C11: 39 | D11: 74 | E11: 70 | F11: 81 | G11: 72 | H11: 85 | I11: 100 | J11: 55 | K11: 63 | L11: 60 | M11: 59 | N11: 820
A12: 09202735 | B12: 96 | C12: 28 | D12: 102 | E12: 76 | F12: 70 | G12: 76 | H12: 65 | I12: 82 | J12: 89 | K12: 63 | L12: 77 | M12: 72 | N12: 896
A13: 09202745 | B13: 127 | C13: 42 | D13: 140 | E13: 121 | F13: 149 | G13: 99 | H13: 100 | I13: 156 | J13: 154 | K13: 172 | L13: 142 | M13: 144 | N13: 1546
A14: 09203213 | B14: 37 | C14: 38 | D14: 29 | E14: 37 | F14: 39 | G14: 26 | H14: 27 | I14: 19 | J14: 3 | K14: 24 | L14: 24 | M14: 19 | N14: 322
A15: 09203313 | C15: 4 | D15: 6 | E15: 5 | F15: 7 | G15: 3 | H15: 5 | I15: 9 | J15: 5 | K15: 3 | L15: 1 | M15: 11 | N15: 59
A16: 09203425 | B16: 848 | C16: 607 | D16: 1093 | E16: 1048 | F16: 617 | G16: 733 | H16: 503 | I16: 839 | J16: 751 | K16: 802 | L16: 905 | M16: 647 | N16: 9393
A17: 09203435 | C17: 4 | D17: 2 | F17: 11 | H17: 1 | I17: 1 | J17: 2 | K17: 26 | L17: 27 | M17: 34 | N17: 108
A18: 09203813 | B18: 7 | C18: 10 | D18: 20 | E18: 34 | F18: 37 | G18: 13 | H18: 13 | I18: 27 | J18: 20 | K18: 20 | L18: 31 | M18: 23 | N18: 255
A19: 09203913 | B19: 1 | E19: 1 | N19: 2
A20: 09204213 | B20: 74 | C20: 45 | D20: 51 | E20: 78 | F20: 51 | G20: 39 | H20: 40 | I20: 77 | J20: 37 | K20: 60 | L20: 72 | M20: 35 | N20: 659
A21: 09204214 | J21: 1 | N21: 1
A22: 09204317 | B22: 122 | C22: 122 | F22: 2 | N22: 246
A23: 09204417 | F23: 16 | G23: 11 | N23: 27
A24: 09204517 | F24: 3 | N24: 3
A25: 09204717 | B25: 135 | C25: 135 | F25: 16 | G25: 11 | N25: 297
A26: 09204918 | B26: 6265 | C26: 5375 | D26: 7846 | E26: 8651 | F26: 8827 | G26: 8688 | H26: 8254 | I26: 10192 | J26: 8613 | K26: 8950 | L26: 9099 | M26: 7778 | N26: 98538
A27: 09204919 | B27: 1923 | C27: 1643 | D27: 2424 | E27: 2714 | F27: 2940 | G27: 2489 | H27: 2247 | I27: 2955 | J27: 2404 | K27: 2771 | L27: 2759 | M27: 2331 | N27: 29600
A28: 09204924 | B28: 1294 | C28: 1057 | D28: 1809 | E28: 2184 | F28: 3052 | G28: 2552 | H28: 3739 | I28: 3684 | J28: 3144 | K28: 3414 | L28: 3641 | M28: 3459 | N28: 33029
A29: 09204926 | B29: 274 | C29: 262 | D29: 355 | E29: 362 | F29: 381 | G29: 344 | H29: 379 | I29: 427 | J29: 363 | K29: 371 | L29: 442 | M29: 349 | N29: 4309
A30: 09204931 | B30: 57 | C30: 70 | D30: 97 | E30: 75 | F30: 85 | G30: 94 | H30: 78 | I30: 97 | J30: 66 | K30: 98 | L30: 95 | M30: 72 | N30: 984
A31: 09204934 | B31: 48 | C31: 51 | D31: 81 | E31: 88 | F31: 110 | G31: 100 | H31: 112 | I31: 98 | J31: 115 | K31: 98 | L31: 138 | M31: 101 | N31: 1140
A32: 09204935 | B32: 2238 | C32: 1308 | D32: 2444 | E32: 2196 | F32: 2231 | G32: 2069 | H32: 1961 | I32: 2282 | J32: 1720 | K32: 2095 | L32: 2253 | M32: 1881 | N32: 24678
A33: 09204944 | G33: 10 | H33: 2 | I33: 2 | J33: 6 | K33: 8 | L33: 11 | M33: 5 | N33: 44
A34: 09204947 | B34: 6 | C34: 29 | D34: 29 | E34: 66 | F34: 70 | G34: 80 | H34: 82 | I34: 92 | J34: 60 | K34: 57 | L34: 105 | M34: 114 | N34: 790
A35: 09204949 | B35: 2 | C35: 4 | D35: 1 | E35: 20 | F35: 51 | G35: 65 | H35: 89 | I35: 70 | J35: 71 | K35: 31 | L35: 88 | M35: 135 | N35: 627
A36: 09204953 | B36: 167 | C36: 149 | D36: 160 | E36: 211 | F36: 196 | G36: 151 | H36: 148 | I36: 196 | J36: 119 | K36: 161 | L36: 216 | M36: 142 | N36: 2016
A37: 09204954 | B37: 119 | C37: 106 | D37: 160 | E37: 197 | F37: 163 | G37: 162 | H37: 138 | I37: 171 | J37: 127 | K37: 177 | L37: 153 | M37: 141 | N37: 1814
A38: 09215013 | B38: 1034 | C38: 597 | D38: 1286 | E38: 1622 | F38: 1643 | G38: 1348 | H38: 1122 | I38: 1332 | J38: 1189 | K38: 1304 | L38: 1185 | M38: 1012 | N38: 14674
A39: 09215014 | B39: 1587 | C39: 1135 | D39: 1984 | E39: 2543 | F39: 3105 | G39: 2424 | H39: 1936 | I39: 2718 | J39: 2237 | K39: 2471 | L39: 2536 | M39: 1955 | N39: 26631
A40: 09215015 | B40: 74 | C40: 46 | D40: 107 | E40: 124 | F40: 87 | G40: 109 | H40: 74 | I40: 98 | J40: 83 | K40: 116 | L40: 89 | M40: 61 | N40: 1068
A41: 09215313 | B41: 117 | C41: 100 | D41: 161 | E41: 93 | F41: 112 | G41: 155 | H41: 130 | I41: 148 | J41: 165 | K41: 163 | L41: 158 | M41: 151 | N41: 1653
A42: 09215413 | B42: 343 | C42: 310 | D42: 460 | E42: 469 | F42: 544 | G42: 481 | H42: 418 | I42: 443 | J42: 356 | K42: 375 | L42: 371 | M42: 514 | N42: 5084
A43: 09216113 | B43: 28 | C43: 28 | D43: 47 | E43: 26 | F43: 62 | G43: 46 | H43: 44 | I43: 36 | J43: 57 | K43: 85 | L43: 75 | M43: 48 | N43: 582
A44: 09216213 | B44: 36 | C44: 22 | D44: 41 | E44: 25 | F44: 44 | G44: 38 | H44: 26 | I44: 36 | J44: 25 | K44: 52 | L44: 60 | M44: 44 | N44: 449
A45: 09216513 | B45: 215 | C45: 128 | D45: 292 | E45: 267 | F45: 320 | G45: 274 | H45: 292 | I45: 333 | J45: 240 | K45: 275 | L45: 244 | M45: 246 | N45: 3126
A46: 09216613 | B46: 172 | C46: 92 | D46: 215 | E46: 196 | F46: 244 | G46: 202 | H46: 220 | I46: 266 | J46: 225 | K46: 257 | L46: 248 | M46: 223 | N46: 2560
A47: 09216913 | B47: 100 | C47: 83 | D47: 100 | E47: 98 | F47: 126 | G47: 107 | H47: 85 | I47: 138 | J47: 115 | K47: 102 | L47: 106 | M47: 92 | N47: 1252
A48: 09217013 | B48: 75 | C48: 76 | D48: 85 | E48: 102 | F48: 128 | G48: 112 | H48: 108 | I48: 136 | J48: 113 | K48: 97 | L48: 136 | M48: 140 | N48: 1308
A49: 09217413 | B49: 31 | C49: 20 | D49: 21 | E49: 16 | F49: 25 | G49: 21 | H49: 18 | I49: 27 | J49: 21 | K49: 12 | L49: 21 | M49: 11 | N49: 244
A50: 09217513 | B50: 37 | C50: 24 | D50: 25 | E50: 21 | F50: 39 | G50: 27 | H50: 29 | I50: 35 | J50: 29 | K50: 23 | L50: 21 | M50: 19 | N50: 329
A51: 09217913 | B51: 45 | C51: 198 | D51: 99 | E51: 96 | F51: 83 | G51: 64 | H51: 40 | I51: 53 | J51: 40 | K51: 36 | L51: 42 | M51: 35 | N51: 831
A52: 09218013 | B52: 43 | C52: 35 | D52: 31 | E52: 27 | F52: 27 | G52: 54 | H52: 25 | I52: 47 | J52: 29 | K52: 43 | L52: 46 | M52: 34 | N52: 441
A53: 09218313 | B53: 115 | C53: 66 | D53: 107 | E53: 96 | F53: 104 | G53: 157 | H53: 132 | I53: 125 | J53: 187 | K53: 154 | L53: 169 | M53: 113 | N53: 1525
A54: 09218413 | B54: 93 | C54: 40 | D54: 94 | E54: 83 | F54: 88 | G54: 87 | H54: 67 | I54: 96 | J54: 79 | K54: 64 | L54: 51 | M54: 50 | N54: 892
A55: 09218813 | B55: 1 | C55: 6 | D55: 8 | E55: 3 | F55: 8 | G55: 9 | H55: 2 | I55: 5 | J55: 6 | K55: 6 | L55: 7 | M55: 4 | N55: 65
A56: 09218913 | B56: 2 | C56: 6 | D56: 7 | E56: 2 | F56: 4 | G56: 5 | H56: 2 | I56: 5 | J56: 4 | K56: 1 | L56: 5 | M56: 9 | N56: 52
A57: 09219213 | B57: 181 | C57: 245 | D57: 175 | E57: 214 | F57: 180 | G57: 111 | H57: 147 | I57: 169 | J57: 105 | K57: 174 | L57: 196 | M57: 113 | N57: 2010
A58: 09219313 | B58: 169 | C58: 91 | D58: 213 | E58: 185 | F58: 217 | G58: 154 | H58: 91 | I58: 160 | J58: 145 | K58: 115 | L58: 134 | M58: 111 | N58: 1785
A59: 09220100 | B59: 1572 | C59: 1298 | D59: 2133 | E59: 2198 | F59: 2392 | G59: 1971 | H59: 1687 | I59: 2405 | J59: 1920 | K59: 2065 | L59: 2399 | M59: 1748 | N59: 23788
A60: 09220150 | B60: 587 | C60: 406 | D60: 704 | E60: 805 | F60: 797 | G60: 801 | H60: 668 | I60: 805 | J60: 606 | K60: 771 | L60: 678 | M60: 922 | N60: 8550
A61: 09220250 | B61: 373 | C61: 279 | D61: 492 | E61: 580 | F61: 544 | G61: 569 | H61: 490 | I61: 537 | J61: 473 | K61: 537 | L61: 500 | M61: 644 | N61: 6018
A62: 09220350 | B62: 299 | C62: 196 | D62: 333 | E62: 392 | F62: 391 | G62: 349 | H62: 306 | I62: 365 | J62: 346 | K62: 391 | L62: 318 | M62: 392 | N62: 4078
A63: 09220450 | B63: 188 | C63: 113 | D63: 216 | E63: 271 | F63: 247 | G63: 228 | H63: 156 | I63: 228 | J63: 203 | K63: 242 | L63: 200 | M63: 283 | N63: 2575
A64: 09220500 | B64: 218 | C64: 156 | D64: 279 | E64: 317 | F64: 292 | G64: 264 | H64: 243 | I64: 270 | J64: 244 | K64: 285 | L64: 252 | M64: 504 | N64: 3324
A65: 09230100 | B65: 2025 | C65: 2209 | D65: 2493 | E65: 3016 | F65: 3856 | G65: 3841 | H65: 3585 | I65: 5119 | J65: 3920 | K65: 3856 | L65: 4431 | M65: 3254 | N65: 41605
A66: 09230200 | B66: 14 | C66: 28 | D66: 39 | E66: 24 | F66: 154 | G66: 302 | H66: 313 | I66: 391 | J66: 437 | K66: 318 | L66: 387 | M66: 378 | N66: 2785
A67: 09230300 | B67: 1086 | C67: 1036 | D67: 1284 | E67: 1163 | F67: 1167 | G67: 1072 | H67: 1072 | I67: 1283 | J67: 1156 | K67: 1071 | L67: 1142 | M67: 1131 | N67: 13663
A68: 09230500 | B68: 1062 | C68: 799 | D68: 1241 | E68: 1592 | F68: 1454 | G68: 1823 | H68: 1618 | I68: 1536 | J68: 1292 | K68: 1775 | L68: 1618 | M68: 1019 | N68: 16829
A69: 09240500 | B69: 37 | C69: 23 | D69: 34 | E69: 42 | F69: 45 | G69: 40 | H69: 26 | I69: 30 | J69: 27 | K69: 29 | L69: 21 | M69: 23 | N69: 377
A70: 09240600 | B70: 21 | C70: 21 | D70: 31 | E70: 40 | F70: 56 | G70: 48 | H70: 40 | I70: 36 | J70: 33 | K70: 19 | L70: 23 | M70: 10 | N70: 378
A71: 09240700 | B71: 61 | C71: 56 | D71: 71 | E71: 65 | F71: 78 | G71: 33 | H71: 33 | I71: 83 | J71: 27 | K71: 50 | L71: 47 | M71: 28 | N71: 632
A72: 09260100 | B72: 198 | C72: 181 | D72: 228 | E72: 222 | F72: 242 | G72: 281 | H72: 286 | I72: 294 | J72: 235 | K72: 253 | L72: 334 | M72: 218 | N72: 2972
A73: 09260500 | C73: 3 | D73: 9 | E73: 20 | F73: 3 | G73: 7 | H73: 7 | I73: 54 | J73: 32 | K73: 19 | L73: 32 | M73: 89 | N73: 275
A74: 09260600 | D74: 13 | E74: 5 | F74: 5 | G74: 25 | H74: 37 | I74: 89 | J74: 68 | K74: 45 | L74: 34 | M74: 50 | N74: 371
A75: 09300300 | B75: 26 | C75: 2 | D75: 1 | E75: 12 | F75: 49 | G75: 47 | I75: 3 | J75: 1 | L75: 2 | M75: 3 | N75: 146
A76: 09300500 | B76: 2 | C76: 36 | D76: 29 | E76: 42 | F76: 125 | G76: 114 | H76: 69 | I76: 121 | J76: 83 | K76: 74 | L76: 220 | M76: 146 | N76: 1061
A77: 09305400 | B77: 1 | G77: 1 | H77: 2 | I77: 2 | J77: 3 | K77: 2 | L77: 2 | M77: 3 | N77: 16
A78: 09305500 | B78: 5 | C78: 6 | D78: 8 | E78: 4 | F78: 6 | G78: 5 | H78: 5 | I78: 10 | J78: 4 | K78: 3 | L78: 5 | M78: 5 | N78: 66
A79: 09305600 | B79: 1413 | C79: 680 | D79: 1563 | E79: 940 | F79: 879 | G79: 1376 | H79: 888 | I79: 1535 | J79: 953 | K79: 1092 | L79: 1160 | M79: 1075 | N79: 13554
A80: 09305700 | B80: 96 | C80: 26 | D80: 125 | E80: 109 | F80: 128 | G80: 92 | H80: 72 | I80: 90 | J80: 48 | K80: 111 | L80: 96 | M80: 74 | N80: 1067
A81: 09305800 | B81: 12 | C81: 20 | D81: 21 | E81: 26 | F81: 27 | G81: 46 | H81: 50 | I81: 40 | J81: 18 | K81: 41 | L81: 37 | M81: 29 | N81: 367
A82: 09306000 | B82: 204 | C82: 124 | D82: 188 | E82: 248 | F82: 279 | G82: 194 | H82: 145 | I82: 245 | J82: 243 | K82: 240 | L82: 218 | M82: 129 | N82: 2457
A83: 09306200 | D83: 1 | F83: 2 | H83: 1 | I83: 4 | K83: 5 | L83: 4 | N83: 17
A84: 09306300 | B84: 89 | C84: 72 | D84: 74 | E84: 57 | F84: 81 | G84: 58 | H84: 50 | I84: 57 | J84: 92 | K84: 34 | L84: 64 | M84: 70 | N84: 798
A85: 09306400 | B85: 405 | C85: 234 | D85: 270 | E85: 254 | F85: 245 | G85: 235 | H85: 217 | I85: 253 | J85: 333 | K85: 376 | L85: 537 | M85: 387 | N85: 3746
A86: 09306500 | B86: 136 | C86: 114 | D86: 151 | E86: 106 | F86: 140 | G86: 139 | H86: 140 | I86: 167 | J86: 163 | K86: 123 | L86: 115 | M86: 128 | N86: 1622
A87: 09306600 | B87: 33 | C87: 2 | D87: 1633 | E87: 2699 | F87: 2786 | G87: 3560 | H87: 791 | I87: 2604 | J87: 2098 | K87: 1696 | L87: 2653 | M87: 1984 | N87: 22539
A88: 09306800 | B88: 336 | C88: 2 | D88: 1533 | E88: 2483 | F88: 2511 | G88: 3077 | H88: 493 | I88: 2400 | J88: 2705 | K88: 3355 | L88: 5568 | M88: 2779 | N88: 27242
A89: 09306900 | B89: 24 | C89: 14 | I89: 6 | K89: 4 | L89: 10 | M89: 231 | N89: 289
A90: 09309000 | B90: 16 | C90: 15 | D90: 10 | E90: 13 | F90: 24 | G90: 11 | H90: 1 | I90: 4 | J90: 3 | K90: 3 | L90: 3 | M90: 1 | N90: 104
A91: 09309050 | B91: 10 | C91: 3 | D91: 16 | E91: 22 | F91: 25 | G91: 7 | I91: 8 | J91: 3 | K91: 6 | L91: 11 | M91: 8 | N91: 119
A92: 09309200 | L92: 14 | M92: 5 | N92: 19
A93: 09309250 | L93: 4 | M93: 1 | N93: 5
A94: 09310700 | C94: 4 | D94: 4 | E94: 5 | F94: 9 | G94: 5 | H94: 7 | I94: 5 | J94: 4 | K94: 3 | L94: 8 | M94: 3 | N94: 57
A95: 09310800 | B95: 17 | C95: 22 | D95: 34 | E95: 39 | F95: 37 | G95: 41 | H95: 34 | I95: 51 | J95: 49 | K95: 30 | L95: 58 | M95: 21 | N95: 433
A96: 09310900 | E96: 1 | G96: 1 | I96: 2 | J96: 2 | K96: 1 | L96: 5 | M96: 1 | N96: 13
A97: 09311000 | E97: 1 | G97: 1 | H97: 2 | I97: 2 | J97: 2 | K97: 1 | L97: 7 | M97: 1 | N97: 17
A98: 09311100 | B98: 1 | C98: 45 | D98: 18 | E98: 24 | F98: 75 | G98: 91 | H98: 62 | I98: 90 | J98: 86 | K98: 66 | L98: 165 | M98: 148 | N98: 871
A99: 09311200 | B99: 2 | C99: 60 | D99: 28 | E99: 39 | F99: 117 | G99: 146 | H99: 103 | I99: 158 | J99: 130 | K99: 71 | L99: 330 | M99: 213 | N99: 1397
A100: 09400030 | B100: 4 | C100: 2 | D100: 3 | E100: 1 | F100: 4 | G100: 4 | H100: 2 | I100: 5 | J100: 1 | K100: 4 | L100: 2 | M100: 2 | N100: 34
A101: 09400080 | B101: 168 | C101: 149 | D101: 207 | E101: 120 | F101: 306 | G101: 263 | H101: 207 | I101: 334 | J101: 353 | K101: 473 | L101: 484 | M101: 302 | N101: 3366
A102: 09400081 | B102: 3918 | C102: 3472 | D102: 4840 | E102: 5650 | F102: 5881 | G102: 4929 | H102: 4563 | I102: 5380 | J102: 4811 | K102: 4979 | L102: 5542 | M102: 4117 | N102: 58082
A103: 09400082 | B103: 10756 | C103: 9446 | D103: 13858 | E103: 14368 | F103: 15052 | G103: 14344 | H103: 13985 | I103: 17839 | J103: 15124 | K103: 15282 | L103: 15757 | M103: 14762 | N103: 170573
A104: 09400084 | B104: 3145 | C104: 2744 | D104: 4112 | E104: 3853 | F104: 4127 | G104: 4444 | H104: 4555 | I104: 4494 | J104: 4028 | K104: 3862 | L104: 4437 | M104: 4758 | N104: 48559
A105: 09400085 | B105: 59 | C105: 8 | D105: 46 | E105: 55 | F105: 69 | G105: 34 | H105: 129 | I105: 77 | J105: 47 | K105: 36 | L105: 57 | M105: 64 | N105: 681
A106: 09400087 | B106: 4838 | C106: 4026 | D106: 5916 | E106: 7289 | F106: 7660 | G106: 6568 | H106: 6652 | I106: 8283 | J106: 7573 | K106: 7873 | L106: 8948 | M106: 7358 | N106: 82984
A107: 09400088 | B107: 36 | C107: 26 | D107: 38 | E107: 73 | F107: 34 | G107: 105 | H107: 240 | I107: 43 | J107: 29 | K107: 25 | L107: 28 | M107: 34 | N107: 711
A108: 09400089 | B108: 3299 | C108: 3006 | D108: 4423 | E108: 4521 | F108: 5113 | G108: 4708 | H108: 4758 | I108: 5892 | J108: 4944 | K108: 4943 | L108: 5648 | M108: 5594 | N108: 56849
A109: 09400090 | B109: 346 | C109: 2 | D109: 1527 | E109: 2478 | F109: 2505 | G109: 3080 | H109: 509 | I109: 2056 | J109: 1876 | K109: 1461 | L109: 2459 | M109: 1708 | N109: 20007
A110: 09400091 | B110: 296 | C110: 1 | D110: 1189 | E110: 1681 | F110: 1546 | G110: 1741 | H110: 332 | I110: 1096 | J110: 1220 | K110: 875 | L110: 1888 | M110: 719 | N110: 12584
A111: 09400092 | G111: 3 | H111: 7 | I111: 7 | J111: 8 | K111: 7 | L111: 10 | M111: 32 | N111: 74
A112: 09400093 | B112: 18 | C112: 5 | D112: 35 | E112: 45 | F112: 114 | G112: 132 | H112: 189 | I112: 269 | J112: 315 | K112: 223 | L112: 447 | M112: 955 | N112: 2747
A113: 09400094 | B113: 6 | C113: 24 | D113: 30 | E113: 278 | F113: 205 | G113: 116 | H113: 74 | I113: 174 | J113: 195 | K113: 194 | L113: 151 | M113: 194 | N113: 1641
A114: 09400095 | B114: 8 | D114: 25 | E114: 96 | F114: 64 | G114: 71 | H114: 10 | I114: 119 | J114: 70 | K114: 86 | L114: 139 | M114: 3 | N114: 691
A115: 09400096 | F115: 50 | G115: 21 | H115: 60 | I115: 4 | J115: 42 | K115: 24 | L115: 9 | N115: 210
A116: 09400097 | B116: 1154 | C116: 2045 | D116: 2297 | E116: 3442 | F116: 5191 | G116: 3854 | H116: 5955 | I116: 7050 | J116: 7221 | K116: 5720 | L116: 9712 | M116: 8496 | N116: 62137
A117: 09400098 | B117: 335 | C117: 728 | D117: 807 | E117: 1528 | F117: 1927 | G117: 1415 | H117: 1874 | I117: 2203 | J117: 2144 | K117: 1766 | L117: 2948 | M117: 2206 | N117: 19881
A118: 09400101
A119: 09400102
A120: 09400103
A121: 09400104 | B121: 264 | C121: 484 | D121: 484 | E121: 440 | F121: 484 | G121: 440 | H121: 484 | I121: 484 | J121: 440 | K121: 440 | L121: 440 | M121: 396 | N121: 5280
A122: 09400200 | F122: 4 | G122: 1 | N122: 5
A123: 09400202 | B123: 1 | N123: 1
A124: 09400204 | B124: 22 | C124: 25 | D124: 25 | E124: 8 | F124: 22 | G124: 51 | H124: 18 | I124: 46 | J124: 30 | K124: 45 | L124: 38 | M124: 39 | N124: 369
A125: 09500500 | C125: 3 | D125: 4 | E125: 6 | F125: 48 | G125: 96 | H125: 78 | I125: 90 | J125: 101 | K125: 116 | L125: 219 | M125: 118 | N125: 879
A126: 09500501 | B126: 2 | I126: 5 | K126: 1 | M126: 47 | N126: 55
A127: 09500502 | C127: 2 | K127: 2 | L127: 1 | N127: 5
A128: 09500503 | B128: 2 | D128: 3 | E128: 5 | F128: 31 | G128: 70 | H128: 61 | I128: 70 | J128: 83 | K128: 92 | L128: 134 | M128: 96 | N128: 647
A129: 09600100 | B129: 7 | C129: 15 | D129: 34 | E129: 42 | F129: 90 | G129: 80 | H129: 48 | I129: 75 | J129: 46 | K129: 26 | L129: 21 | M129: 22 | N129: 506
A130: 09600101 | B130: 69 | C130: 66 | D130: 170 | E130: 197 | F130: 167 | G130: 205 | H130: 226 | I130: 228 | J130: 216 | K130: 166 | L130: 320 | M130: 182 | N130: 2212
A131: 09600102 | B131: 5 | C131: 5 | D131: 10 | E131: 9 | F131: 16 | G131: 18 | H131: 14 | I131: 5 | J131: 14 | K131: 15 | L131: 8 | M131: 13 | N131: 132
A132: 09600103 | B132: 2 | E132: 9 | F132: 1 | H132: 6 | I132: 4 | J132: 18 | K132: 23 | L132: 3 | M132: 1 | N132: 67
A133: 09600105
A134: 09600106 | B134: 23 | C134: 33 | D134: 43 | E134: 56 | F134: 35 | G134: 34 | H134: 20 | I134: 39 | J134: 18 | K134: 23 | L134: 29 | M134: 7 | N134: 360
A135: 09600110 | B135: 767 | C135: 330 | D135: 928 | E135: 800 | F135: 893 | G135: 695 | H135: 731 | I135: 992 | J135: 568 | K135: 794 | L135: 861 | M135: 765 | N135: 9124
A136: 09600111 | B136: 74 | C136: 48 | D136: 103 | E136: 52 | F136: 65 | G136: 45 | H136: 55 | I136: 81 | J136: 52 | K136: 48 | L136: 59 | M136: 60 | N136: 742
A137: 09600112 | B137: 46 | C137: 31 | D137: 58 | E137: 35 | F137: 66 | G137: 42 | H137: 45 | I137: 61 | J137: 35 | K137: 35 | L137: 54 | M137: 32 | N137: 540
A138: 09600113 | B138: 105 | D138: 44 | E138: 128 | F138: 121 | G138: 47 | H138: 86 | I138: 70 | J138: 50 | K138: 67 | M138: 149 | N138: 867
A139: 09600114 | B139: 182 | C139: 162 | D139: 211 | E139: 142 | F139: 185 | G139: 224 | H139: 199 | I139: 274 | J139: 194 | K139: 231 | L139: 312 | M139: 237 | N139: 2553
A140: 09600115 | B140: 171 | C140: 172 | D140: 233 | E140: 291 | F140: 242 | G140: 165 | H140: 176 | I140: 416 | J140: 255 | K140: 221 | L140: 235 | M140: 190 | N140: 2767
A141: 09600116 | B141: 38 | C141: 32 | D141: 22 | E141: 90 | F141: 45 | G141: 47 | H141: 37 | I141: 43 | J141: 16 | K141: 38 | L141: 37 | M141: 16 | N141: 461
A142: 09600117 | B142: 220 | C142: 176 | D142: 309 | E142: 278 | F142: 436 | G142: 314 | H142: 311 | I142: 286 | J142: 291 | K142: 276 | L142: 328 | M142: 446 | N142: 3671
A143: 09600118 | B143: 3 | C143: 5 | D143: 22 | E143: 1 | F143: 2 | G143: 3 | L143: 4 | M143: 7 | N143: 47
A144: 09600119 | B144: 62 | C144: 27 | D144: 27 | E144: 26 | F144: 36 | G144: 36 | H144: 36 | I144: 47 | J144: 25 | K144: 52 | L144: 38 | M144: 28 | N144: 440
A145: 09600120 | E145: 2 | N145: 2
A146: 09600121 | B146: 133 | C146: 63 | D146: 153 | E146: 129 | F146: 167 | G146: 128 | H146: 32 | I146: 85 | J146: 149 | K146: 136 | L146: 148 | M146: 98 | N146: 1421
A147: 09600122 | B147: 1 | C147: 3 | D147: 2 | E147: 3 | F147: 1 | G147: 1 | H147: 2 | I147: 1 | J147: 4 | K147: 5 | L147: 2 | M147: 4 | N147: 29
A148: 09600123 | B148: 7 | C148: 4 | D148: 8 | E148: 10 | F148: 8 | G148: 8 | H148: 5 | I148: 6 | J148: 6 | K148: 5 | L148: 9 | M148: 6 | N148: 82
A149: 09600124 | B149: 1 | C149: 1 | D149: 1 | E149: 6 | F149: 5 | G149: 1 | H149: 1 | L149: 3 | M149: 1 | N149: 20
A150: 09600125 | B150: 189 | C150: 145 | D150: 259 | E150: 197 | F150: 290 | G150: 194 | H150: 206 | I150: 183 | J150: 227 | K150: 163 | L150: 222 | M150: 199 | N150: 2474
A151: 09600126 | B151: 130 | C151: 89 | D151: 153 | E151: 144 | F151: 160 | G151: 119 | H151: 110 | I151: 135 | J151: 112 | K151: 122 | L151: 145 | M151: 144 | N151: 1563
A152: 09600127 | B152: 33 | C152: 22 | D152: 43 | E152: 26 | F152: 49 | G152: 39 | H152: 28 | I152: 30 | J152: 43 | K152: 39 | L152: 68 | M152: 40 | N152: 460
A153: 09600128 | B153: 21 | C153: 14 | D153: 27 | E153: 27 | F153: 21 | G153: 17 | H153: 7 | I153: 43 | J153: 22 | K153: 28 | L153: 30 | M153: 22 | N153: 279
A154: 09600129 | B154: 452 | C154: 311 | D154: 725 | E154: 609 | F154: 254 | G154: 605 | H154: 465 | I154: 698 | J154: 540 | K154: 729 | L154: 480 | M154: 572 | N154: 6440
A155: 09600130 | B155: 2 | D155: 1 | E155: 5 | F155: 3 | G155: 11 | H155: 5 | I155: 3 | J155: 3 | K155: 3 | L155: 2 | M155: 6 | N155: 44
A156: 09600131 | F156: 1 | J156: 1 | M156: 1 | N156: 3
A157: 09600132 | B157: 7 | C157: 4 | D157: 10 | E157: 7 | F157: 11 | G157: 4 | H157: 7 | I157: 4 | J157: 8 | K157: 11 | L157: 10 | M157: 6 | N157: 89
A158: 09600133 | B158: 13 | C158: 10 | D158: 48 | E158: 83 | F158: 9 | G158: 47 | H158: 27 | I158: 37 | J158: 43 | K158: 30 | L158: 39 | M158: 36 | N158: 422
A159: 09600134 | B159: 18 | C159: 7 | D159: 41 | E159: 31 | F159: 2 | G159: 21 | H159: 26 | I159: 21 | J159: 8 | K159: 12 | L159: 13 | M159: 13 | N159: 213
A160: 09600135 | B160: 11 | C160: 4 | D160: 4 | E160: 2 | F160: 8 | G160: 15 | H160: 12 | I160: 26 | J160: 11 | K160: 17 | L160: 13 | M160: 39 | N160: 162
A161: 09600137 | B161: 7 | C161: 2 | D161: 8 | E161: 11 | F161: 9 | G161: 4 | H161: 1 | I161: 12 | J161: 7 | K161: 6 | L161: 6 | M161: 5 | N161: 78
A162: 09600138 | B162: 6 | C162: 6 | D162: 4 | E162: 12 | F162: 14 | G162: 6 | H162: 6 | I162: 8 | K162: 8 | L162: 6 | M162: 13 | N162: 89
A163: 09600140 | B163: 221 | C163: 151 | D163: 327 | E163: 279 | F163: 254 | G163: 135 | H163: 122 | I163: 178 | J163: 113 | K163: 100 | L163: 154 | M163: 130 | N163: 2164
A164: 09600141 | B164: 34 | C164: 24 | D164: 48 | E164: 62 | F164: 75 | G164: 58 | H164: 41 | I164: 47 | J164: 45 | K164: 53 | L164: 35 | M164: 32 | N164: 554
A165: 09600142 | B165: 24 | C165: 14 | D165: 39 | E165: 37 | F165: 62 | G165: 73 | H165: 42 | I165: 40 | J165: 51 | K165: 35 | L165: 63 | M165: 42 | N165: 522
A166: 09600143 | B166: 77 | C166: 34 | D166: 75 | E166: 106 | F166: 134 | G166: 132 | H166: 80 | I166: 78 | J166: 111 | K166: 100 | L166: 91 | M166: 66 | N166: 1084
A167: 09600144 | B167: 46 | C167: 14 | D167: 51 | E167: 39 | F167: 49 | G167: 43 | H167: 19 | I167: 27 | J167: 27 | K167: 10 | L167: 26 | M167: 14 | N167: 365
A168: 09600145 | B168: 101 | C168: 51 | D168: 75 | E168: 92 | F168: 65 | G168: 57 | H168: 55 | I168: 64 | J168: 72 | K168: 65 | L168: 37 | M168: 31 | N168: 765
A169: 09600146 | B169: 28 | C169: 10 | D169: 27 | E169: 54 | F169: 69 | G169: 59 | H169: 41 | I169: 59 | J169: 45 | K169: 24 | L169: 42 | M169: 25 | N169: 483
A170: 09600147 | B170: 33 | C170: 6 | D170: 34 | E170: 10 | F170: 48 | G170: 47 | H170: 28 | I170: 32 | J170: 35 | K170: 22 | L170: 27 | M170: 29 | N170: 351
A171: 09600148 | B171: 6 | C171: 1 | D171: 5 | E171: 18 | F171: 4 | G171: 3 | H171: 1 | I171: 4 | J171: 4 | K171: 2 | M171: 3 | N171: 51
A172: 09600149 | B172: 796 | C172: 687 | D172: 1067 | E172: 898 | F172: 862 | G172: 773 | H172: 643 | I172: 819 | J172: 744 | K172: 687 | L172: 669 | M172: 661 | N172: 9306
A173: 09600151 | B173: 64 | C173: 39 | D173: 89 | E173: 113 | F173: 138 | G173: 121 | H173: 64 | I173: 164 | J173: 217 | K173: 135 | L173: 102 | M173: 119 | N173: 1365
A174: 09600152 | B174: 49 | C174: 12 | D174: 71 | E174: 67 | F174: 74 | G174: 44 | H174: 9 | I174: 23 | J174: 16 | K174: 74 | L174: 21 | M174: 18 | N174: 478
A175: 09600153 | E175: 9 | F175: 24 | G175: 32 | H175: 42 | I175: 40 | J175: 47 | K175: 45 | L175: 49 | M175: 61 | N175: 349
A176: 09600154 | E176: 54 | F176: 31 | G176: 64 | H176: 115 | I176: 102 | J176: 97 | K176: 72 | L176: 102 | M176: 197 | N176: 834
A177: 09600155 | B177: 29 | C177: 28 | D177: 47 | E177: 27 | F177: 61 | G177: 49 | H177: 43 | I177: 36 | J177: 57 | K177: 87 | L177: 78 | M177: 49 | N177: 591
A178: 09600156 | B178: 106 | C178: 95 | D178: 120 | E178: 59 | F178: 140 | G178: 135 | H178: 117 | I178: 169 | J178: 106 | K178: 170 | L178: 186 | M178: 137 | N178: 1540
A179: 09600158 | B179: 201 | C179: 171 | D179: 213 | E179: 236 | F179: 300 | G179: 218 | H179: 223 | I179: 241 | J179: 168 | K179: 215 | L179: 236 | M179: 229 | N179: 2651
A180: 09600159 | B180: 477 | C180: 443 | D180: 517 | E180: 585 | F180: 578 | G180: 519 | H180: 457 | I180: 513 | J180: 368 | K180: 566 | L180: 536 | M180: 470 | N180: 6029
A181: 09600160 | F181: 3 | G181: 9 | H181: 15 | I181: 4 | J181: 12 | K181: 7 | L181: 10 | M181: 6 | N181: 66
A182: 09600161 | B182: 285 | C182: 167 | D182: 401 | E182: 338 | F182: 400 | G182: 382 | H182: 348 | I182: 389 | J182: 273 | K182: 309 | L182: 276 | M182: 270 | N182: 3838
A183: 09600162 | B183: 531 | C183: 300 | D183: 614 | E183: 585 | F183: 739 | G183: 563 | H183: 601 | I183: 759 | J183: 621 | K183: 713 | L183: 620 | M183: 598 | N183: 7244
A184: 09600163 | B184: 2 | C184: 15 | D184: 4 | E184: 5 | F184: 2 | G184: 3 | H184: 6 | I184: 6 | J184: 5 | K184: 1 | L184: 2 | M184: 4 | N184: 55
A185: 09600164 | B185: 111 | C185: 57 | D185: 123 | E185: 104 | F185: 137 | G185: 118 | H185: 94 | I185: 150 | J185: 111 | K185: 91 | L185: 121 | M185: 95 | N185: 1312
A186: 09600165 | B186: 376 | C186: 326 | D186: 597 | E186: 605 | F186: 765 | G186: 559 | H186: 465 | I186: 601 | J186: 561 | K186: 532 | L186: 680 | M186: 635 | N186: 6702
A187: 09600166 | G187: 1 | I187: 1 | L187: 1 | M187: 2 | N187: 5
A188: 09600167 | B188: 27 | C188: 19 | D188: 18 | E188: 12 | F188: 22 | G188: 19 | H188: 22 | I188: 11 | J188: 16 | K188: 7 | L188: 26 | M188: 9 | N188: 208
A189: 09600168 | B189: 124 | C189: 81 | D189: 86 | E189: 103 | F189: 129 | G189: 70 | H189: 84 | I189: 119 | J189: 89 | K189: 54 | L189: 70 | M189: 73 | N189: 1082
A190: 09600169 | F190: 1 | N190: 1
A191: 09600170 | B191: 92 | C191: 51 | D191: 96 | E191: 95 | F191: 102 | G191: 92 | H191: 87 | I191: 57 | J191: 124 | K191: 78 | L191: 141 | M191: 121 | N191: 1136
A192: 09600171 | B192: 912 | C192: 643 | D192: 1056 | E192: 793 | F192: 1015 | G192: 835 | H192: 671 | I192: 1003 | J192: 694 | K192: 919 | L192: 895 | M192: 781 | N192: 10217
A193: 09600172 | B193: 1 | C193: 4 | E193: 3 | F193: 1 | G193: 4 | H193: 2 | I193: 4 | J193: 1 | K193: 5 | L193: 3 | M193: 1 | N193: 29
A194: 09600173 | B194: 16 | C194: 7 | D194: 21 | E194: 1 | F194: 11 | G194: 8 | H194: 13 | I194: 11 | J194: 8 | K194: 21 | L194: 17 | M194: 14 | N194: 148
A195: 09600174 | B195: 116 | C195: 53 | D195: 132 | E195: 115 | F195: 140 | G195: 92 | H195: 114 | I195: 144 | J195: 36 | K195: 126 | L195: 106 | M195: 95 | N195: 1269
A196: 09600175 | B196: 21 | C196: 2 | D196: 13 | E196: 12 | F196: 20 | G196: 18 | H196: 17 | I196: 10 | K196: 6 | L196: 6 | M196: 3 | N196: 128
A197: 09600176 | B197: 7 | C197: 10 | D197: 12 | E197: 13 | F197: 21 | G197: 10 | H197: 8 | I197: 20 | J197: 2 | K197: 12 | L197: 12 | M197: 7 | N197: 134
A198: 09600177 | C198: 1 | H198: 1 | I198: 1 | L198: 1 | N198: 4
A199: 09600178 | B199: 124 | C199: 79 | D199: 126 | E199: 108 | F199: 114 | G199: 166 | H199: 145 | I199: 151 | J199: 215 | K199: 175 | L199: 178 | M199: 138 | N199: 1719
A200: 09600179 | B200: 399 | C200: 198 | D200: 478 | E200: 398 | F200: 457 | G200: 388 | H200: 312 | I200: 473 | J200: 416 | K200: 422 | L200: 367 | M200: 439 | N200: 4747
A201: 09600180 | B201: 5 | D201: 2 | E201: 2 | F201: 3 | G201: 1 | H201: 2 | I201: 2 | J201: 3 | M201: 1 | N201: 21
... 52 more rows
